organisation_name,service_responsible,supplier_code,supplier_name,payment_date,transaction_ref,net_amount_by_line_item,irrecoverable_vat,purpose_of_spend,procurement_category_name,transaction_type,payment_type,card_transaction,invoice_date,financial_year,financial_period,supplier_invoice_reference,cost_centre_code,cost_centre_desc,account_code,account_desc,SeRCOP_subdivision_code,SeRCOP_Subdivision_description,SeRCOP_division_codee,SeRCOP_division_description,SeRCOP_service_code,SeRCOP_service_description,SeRCOP_major_service_code,SeRCOP_major_service_description
GUILDFORD BOROUGH COUNCIL,Doors and Windows,1000554,Seville Developments,04/10/2022,30083433,65219,0,Contractor Payments,,Invoice,BACS,No,26/09/2022 00:00,2022,7,5975,N45071,Replacement of external doors 2020-21,1233,Contractor Payments,,,,,,,,
GUILDFORD BOROUGH COUNCIL,Modern Homes,1000554,Seville Developments,04/10/2022,30083434,13591.11,0,Contractor Payments,,Invoice,BACS,No,28/09/2022 00:00,2022,7,5986,N42068,"Kitchen, bathroom and electrical upgrades",1233,Contractor Payments,,,,,,,,
GUILDFORD BOROUGH COUNCIL,Renovations,1000554,Seville Developments,04/10/2022,30083435,4351,0,Contractor Payments,,Invoice,BACS,No,28/09/2022 00:00,2022,7,5987,N40292,Fire protection works,1233,Contractor Payments,,,,,,,,
GUILDFORD BOROUGH COUNCIL,Modern Homes,1000554,Seville Developments,04/10/2022,30083436,17787.65,0,Contractor Payments,,Invoice,BACS,No,28/09/2022 00:00,2022,7,5988,N42069,Void Properties - refurbishment,1233,Contractor Payments,,,,,,,,
GUILDFORD BOROUGH COUNCIL,Modern Homes,1000554,Seville Developments,04/10/2022,30083437,20502,0,Contractor Payments,,Invoice,BACS,No,28/09/2022 00:00,2022,7,5989,N42069,Void Properties - refurbishment,1233,Contractor Payments,,,,,,,,
GUILDFORD BOROUGH COUNCIL,Tenant Services,341270,British Gas Trading Ltd,04/10/2022,30083429,542.01,0,Utilities,Mains Utility Multiple Service Providers,Invoice,BACS,No,29/07/2022 00:00,2022,7,8.50E+11,M1151,Tenants Services (BHS),B2001,Utilities,XXX99,*** UNASSIGNED ***,WCC,CEC Recharges,WC,CEC Recharges,A,Central Services
GUILDFORD BOROUGH COUNCIL,Responsive & Planned Maintenance,648550,J T S Civil Engineers Ltd,04/10/2022,30083417,300,0,Asset Maintenance,Sewerage And Drainage Service Providers,Invoice,BACS,No,30/09/2022 00:00,2022,7,158611,M5113,Repairs-Responsive (BHS),B1001,Asset Maintenance,XXX99,*** UNASSIGNED ***,WCC,CEC Recharges,WC,CEC Recharges,A,Central Services
GUILDFORD BOROUGH COUNCIL,Responsive & Planned Maintenance,648550,J T S Civil Engineers Ltd,04/10/2022,30083417,600,0,Asset Maintenance,Sewerage And Drainage Service Providers,Invoice,BACS,No,30/09/2022 00:00,2022,7,158611,M5113,Repairs-Responsive (BHS),B1001,Asset Maintenance,XXX99,*** UNASSIGNED ***,WCC,CEC Recharges,WC,CEC Recharges,A,Central Services
GUILDFORD BOROUGH COUNCIL,Modern Homes,788901,Guildford Fencing Co (CIS),04/10/2022,30083414,398,0,Contractor Payments,,Invoice,BACS,No,26/09/2022 00:00,2022,7,15148,N48057,Structural works - various properties,1233,Contractor Payments,,,,,,,,
GUILDFORD BOROUGH COUNCIL,Flats Communal Services,788901,Guildford Fencing Co (CIS),04/10/2022,30083416,277,0,Asset Maintenance,,Invoice,BACS,No,29/09/2022 00:00,2022,7,15156,M2667,Clover Road 53-63 Odd (6),B1001,Asset Maintenance,XXX99,*** UNASSIGNED ***,WCC,CEC Recharges,WC,CEC Recharges,A,Central Services
GUILDFORD BOROUGH COUNCIL,Responsive & Planned Maintenance,900320,BSW Building Services Ltd,04/10/2022,30083419,596.11,0,Asset Maintenance,"Plumbing, Heating And Ac (Hvac) Contractors",Invoice,BACS,No,28/09/2022 00:00,2022,7,77805,M5113,Repairs-Responsive (BHS),B1001,Asset Maintenance,XXX99,*** UNASSIGNED ***,WCC,CEC Recharges,WC,CEC Recharges,A,Central Services
GUILDFORD BOROUGH COUNCIL,Responsive & Planned Maintenance,900320,BSW Building Services Ltd,04/10/2022,30083419,586.16,0,Asset Maintenance,"Plumbing, Heating And Ac (Hvac) Contractors",Invoice,BACS,No,28/09/2022 00:00,2022,7,77805,M5113,Repairs-Responsive (BHS),B1001,Asset Maintenance,XXX99,*** UNASSIGNED ***,WCC,CEC Recharges,WC,CEC Recharges,A,Central Services
GUILDFORD BOROUGH COUNCIL,Property,1000735,White Star Properties Limited,06/10/2022,30083584,11050,0,Consultants Fees,,Invoice,BACS,No,02/10/2022 00:00,2022,7,1046,P74040,Slyfield Area Regeneration Project,1221,Consultants Fees,XXX99,*** UNASSIGNED ***,WCC,CEC Recharges,WC,CEC Recharges,A,Central Services
GUILDFORD BOROUGH COUNCIL,Major Projects,1000735,White Star Properties Limited,06/10/2022,30083588,7367,0,Consultancy,,Invoice,BACS,No,02/10/2022 00:00,2022,7,1047,F5530,Major Projects,D6001,Consultancy,DBX70,Other Management Costs,DBX,Support Service and Management Costs,DB,Children's Social Care,E,Childrens and Education Services
GUILDFORD BOROUGH COUNCIL,Civil Emergencies,230230,Surrey County Council,06/10/2022,30083700,334,0,Staff Costs,Local Government [Uk Only],Invoice,BACS,No,03/10/2022 00:00,2022,7,9500307993,F1511,Civil Emergencies,A7100,Staff Costs,ACG00,Emergency Planning,ACG,Emergency Planning,AC,Central Services to the Public,A,Central Services
GUILDFORD BOROUGH COUNCIL,Woking Road Depot,233960,Pressure Clean Ltd,06/10/2022,30083576,481.06,0,Services,,Invoice,BACS,No,29/07/2022 00:00,2022,7,156882,B4452,Woking Road Depot,D6004,Services,W3A48,Current Service Costs - Fleet Management,W3A,Current Service Costs adjustment,W3,Current Service Costs,W,Other Operating Income and Expenditure
GUILDFORD BOROUGH COUNCIL,Woking Road Depot,233960,Pressure Clean Ltd,06/10/2022,30083564,439.51,0,Services,,Invoice,BACS,No,29/07/2022 00:00,2022,7,156881,B4452,Woking Road Depot,D6004,Services,W3A48,Current Service Costs - Fleet Management,W3A,Current Service Costs adjustment,W3,Current Service Costs,W,Other Operating Income and Expenditure
GUILDFORD BOROUGH COUNCIL,Woking Road Depot,233960,Pressure Clean Ltd,06/10/2022,30083547,625.47,0,Services,,Invoice,BACS,No,29/07/2022 00:00,2022,7,156883,B4452,Woking Road Depot,D6004,Services,W3A48,Current Service Costs - Fleet Management,W3A,Current Service Costs adjustment,W3,Current Service Costs,W,Other Operating Income and Expenditure
GUILDFORD BOROUGH COUNCIL,Industrial Estates,291600,Lambert Smith Hampton Group Limited,06/10/2022,30083549,5625,0,Consultancy,Outsourced Building Management Service Providers,Invoice,BACS,No,08/09/2022 00:00,2022,7,ARINV/00526702,B5311,Industrial Estates Admin,D6001,Consultancy,CPJ00,Market Undertakings,CPJ,Economic Development,CP,Planning and Development Services,C,"Cultural, Environmental & Planning Services"
GUILDFORD BOROUGH COUNCIL,Industrial Estates,291600,Lambert Smith Hampton Group Limited,06/10/2022,30083585,3300,0,Consultancy,Outsourced Building Management Service Providers,Invoice,BACS,No,08/09/2022 00:00,2022,7,ARINV/00526703,B5311,Industrial Estates Admin,D6001,Consultancy,CPJ00,Market Undertakings,CPJ,Economic Development,CP,Planning and Development Services,C,"Cultural, Environmental & Planning Services"
GUILDFORD BOROUGH COUNCIL,Tenant Selection,292900,Language Line Limited,06/10/2022,30081179,494.75,0,Expenses,Translation And Interpretation Service Providers,Invoice,BACS,No,31/08/2022 00:00,2022,7,10621639,M1131,"Advice,Regs,Tenant Select(SHS)",D8004,Expenses,XXX99,*** UNASSIGNED ***,WCC,CEC Recharges,WC,CEC Recharges,A,Central Services
GUILDFORD BOROUGH COUNCIL,Millmead House,626300,Oakleaf Enterprise,06/10/2022,30083555,354.27,0,Grounds Maintenance,Charities And Voluntary Organisations,Invoice,BACS,No,03/10/2022 00:00,2022,7,17548,G7511,Millmead House,B6001,Grounds Maintenance,DBX70,Other Management Costs,DBX,Support Service and Management Costs,DB,Children's Social Care,E,Childrens and Education Services
GUILDFORD BOROUGH COUNCIL,Sheltered Housing,626300,Oakleaf Enterprise,06/10/2022,30083555,6731.15,0,Grounds Maintenance,Charities And Voluntary Organisations,Invoice,BACS,No,03/10/2022 00:00,2022,7,17548,M1515,Sheltered Accomodation,B6001,Grounds Maintenance,XXX99,*** UNASSIGNED ***,WCC,CEC Recharges,WC,CEC Recharges,A,Central Services
GUILDFORD BOROUGH COUNCIL,Building Maintenance,713710,D G Property Refurbishment Ltd,06/10/2022,30083684,2438.18,0,Services,Restoration Specialists,Invoice,BACS,No,03/09/2022 00:00,2022,7,156,K1515,Building Maintenance,D6004,Services,DBX45,Property Services,DBX,Support Service and Management Costs,DB,Children's Social Care,E,Childrens and Education Services
GUILDFORD BOROUGH COUNCIL,Building Maintenance,713710,D G Property Refurbishment Ltd,06/10/2022,30083684,2000,0,Materials,Restoration Specialists,Invoice,BACS,No,03/09/2022 00:00,2022,7,156,K1515,Building Maintenance,D2003,Materials,DBX45,Property Services,DBX,Support Service and Management Costs,DB,Children's Social Care,E,Childrens and Education Services
GUILDFORD BOROUGH COUNCIL,Crematorium,759110,Harpers Door Specialists,06/10/2022,30083396,322.5,0,GF Assets - Maintenance,"Security Shutter, Door And Gate Contractors",Invoice,BACS,No,28/09/2022 00:00,2022,7,SI-4008,A1500,Crematorium,B1004,GF Assets - Maintenance,CEA10,Crematoria,CEA,"Cemetery, Cremation and Mortuary Services",CE,Environmental & Regulatory Services,C,"Cultural, Environmental & Planning Services"
GUILDFORD BOROUGH COUNCIL,Building Maintenance,846250,Revive Services (CIS),06/10/2022,30083664,3250,0,Services,Other Cleaning And Janitorial Service Providers,Invoice,BACS,No,03/10/2022 00:00,2022,7,178,K1515,Building Maintenance,D6004,Services,DBX45,Property Services,DBX,Support Service and Management Costs,DB,Children's Social Care,E,Childrens and Education Services
GUILDFORD BOROUGH COUNCIL,Homelessness Support,898090,Top Mill Limited,06/10/2022,30081511,310.8,0,Emergency Accomodation,Hotels,Invoice,BACS,No,05/09/2022 00:00,2022,7,4397,C3311,Homelessness,D8009,Emergency Accomodation,KGU00,Supporting People - Strategy,KGU,Supporting People,KG,Housing General Fund,K,Housing Services
GUILDFORD BOROUGH COUNCIL,Building Maintenance,921860,Cinnamon Construction Limited (CIS),06/10/2022,30083693,4339.5,0,Services,General Builders,Invoice,BACS,No,03/10/2022 00:00,2022,7,127,K1515,Building Maintenance,D6004,Services,DBX45,Property Services,DBX,Support Service and Management Costs,DB,Children's Social Care,E,Childrens and Education Services
GUILDFORD BOROUGH COUNCIL,Building Maintenance,921860,Cinnamon Construction Limited (CIS),06/10/2022,30083574,724.75,0,Services,General Builders,Invoice,BACS,No,30/09/2022 00:00,2022,7,126,K1515,Building Maintenance,D6004,Services,DBX45,Property Services,DBX,Support Service and Management Costs,DB,Children's Social Care,E,Childrens and Education Services
GUILDFORD BOROUGH COUNCIL,Crematorium,941290,Speedy Asset Services Limited,06/10/2022,30083596,368,0,Services,Third Party Supplier,Invoice,BACS,No,31/08/2022 00:00,2022,7,7301765897,A1500,Crematorium,D6004,Services,CEA10,Crematoria,CEA,"Cemetery, Cremation and Mortuary Services",CE,Environmental & Regulatory Services,C,"Cultural, Environmental & Planning Services"
GUILDFORD BOROUGH COUNCIL,Corporate Financial,943290,BGC European Holdings Lp,06/10/2022,30083536,424.66,0,Brokers Commission,,Invoice,BACS,No,31/08/2022 00:00,2022,7,BGC-AUG-2022-00002507,F1135,Treasury Management Admin,D6003,Brokers Commission,DBX35,Finance (including Internal Audit),DBX,Support Service and Management Costs,DB,Children's Social Care,E,Childrens and Education Services
GUILDFORD BOROUGH COUNCIL,Renovations,960100,T J Hunt Contracting Ltd,06/10/2022,30083600,5884,0,Contractor Payments,Civil Engineers,Invoice,BACS,No,09/07/2020 00:00,2022,7,29269,N40282,Disabled adaptations 2020-21,1233,Contractor Payments,,,,,,,,
GUILDFORD BOROUGH COUNCIL,Woking Road Depot,988920,Water Plus Limited,06/10/2022,30083701,1372.31,0,Utilities,,Invoice,BACS,No,13/09/2022 00:00,2022,7,INV06802832,B4452,Woking Road Depot,B2001,Utilities,W3A48,Current Service Costs - Fleet Management,W3A,Current Service Costs adjustment,W3,Current Service Costs,W,Other Operating Income and Expenditure
GUILDFORD BOROUGH COUNCIL,IT Renewals,1000035,Gravitas Recruitment Group,11/10/2022,30083542,3025,0,Agency Staff,,Invoice,BACS,No,03/10/2022 00:00,2022,7,INV186080,P81002,IT Renewals Reserve Funded General,1222,Agency Staff,XXX99,*** UNASSIGNED ***,WCC,CEC Recharges,WC,CEC Recharges,A,Central Services
GUILDFORD BOROUGH COUNCIL,Executive - Miscellaneous,1000431,Milestone Infrastructure Ltd,11/10/2022,30083681,4386.78,0,Consultants Fees,,Invoice,BACS,No,13/09/2022 00:00,2022,7,34112105038,P79027,Walnut Tree Bridge Replacement,1221,Consultants Fees,XXX99,*** UNASSIGNED ***,WCC,CEC Recharges,WC,CEC Recharges,A,Central Services
GUILDFORD BOROUGH COUNCIL,Industrial Estates,1000613,Francis Construction Ltd,11/10/2022,30084006,303894.27,0,Contractor Payments,,Invoice,BACS,No,04/10/2022 00:00,2022,7,15244,P72037,Midleton Ind Est Redevelop,1233,Contractor Payments,XXX99,*** UNASSIGNED ***,WCC,CEC Recharges,WC,CEC Recharges,A,Central Services
GUILDFORD BOROUGH COUNCIL,Industrial Estates,1000613,Francis Construction Ltd,11/10/2022,30083995,501964.87,0,Contractor Payments,,Invoice,BACS,No,30/08/2022 00:00,2022,7,15222,P72037,Midleton Ind Est Redevelop,1233,Contractor Payments,XXX99,*** UNASSIGNED ***,WCC,CEC Recharges,WC,CEC Recharges,A,Central Services
GUILDFORD BOROUGH COUNCIL,Development Control,1000620,Luken Beck MDP Limited,11/10/2022,30083274,37310,0,Consultancy,,Invoice,BACS,No,15/09/2022 00:00,2022,7,22036,D5100,Development Control - Fee Earn,D6001,Consultancy,CPC00,Development Control Advice,CPC,Development Control,CP,Planning and Development Services,C,"Cultural, Environmental & Planning Services"
GUILDFORD BOROUGH COUNCIL,Inventories,1000725,PPG Architectural Coatings UK Limited T/A Johnston,11/10/2022,30084021,524.92,0,Purchases,,Invoice,BACS,No,02/08/2022 00:00,2022,7,4482518900,I01001,Stocks,2591,Purchases,,,,,,,,
GUILDFORD BOROUGH COUNCIL,Inventories,1000725,PPG Architectural Coatings UK Limited T/A Johnston,11/10/2022,30084023,477.08,0,Purchases,,Invoice,BACS,No,18/08/2022 00:00,2022,7,4482605756,I01001,Stocks,2591,Purchases,,,,,,,,
GUILDFORD BOROUGH COUNCIL,Roads and Footpaths,1000765,Henderson & Taylor Public Works Limited,11/10/2022,30084005,1566.4,0,Asset Maintenance,,Invoice,BACS,No,26/09/2022 00:00,2022,7,108928,B5112,Roads & Footpaths Maintenance,B1001,Asset Maintenance,HTH30,Structural Maintenance - Other Roads,HTH,Structural Maintenance,HT,"Highways, Roads and Transport Services",H,"Highways, Roads and Transport Services"
GUILDFORD BOROUGH COUNCIL,Telephony Holding Account (Service),105900,British Telecom (Durham),11/10/2022,30084004,8606.86,0,Telephones & Broadband,Fixed Telecoms Service Providers,Invoice,BACS,No,23/09/2022 00:00,2022,7,VP557041702691,G1151,Telephony Holding Account,D7004,Telephones & Broadband,,,,,,,,
GUILDFORD BOROUGH COUNCIL,Woking Road Depot,111790,GHL Liftrucks Ltd,11/10/2022,30083987,346.66,0,Services,Fork Lift Truck Suppliers,Invoice,BACS,No,15/09/2022 00:00,2022,7,4112030,B4452,Woking Road Depot,D6004,Services,W3A48,Current Service Costs - Fleet Management,W3A,Current Service Costs adjustment,W3,Current Service Costs,W,Other Operating Income and Expenditure
GUILDFORD BOROUGH COUNCIL,Property,129090,Breyer Group Plc,11/10/2022,30083550,33466.87,0,Contractor Payments,General Builders,Invoice,BACS,No,29/09/2022 00:00,2022,7,55255,P74064,The Billings Roof,1233,Contractor Payments,,,,,,,,
GUILDFORD BOROUGH COUNCIL,Property,129090,Breyer Group Plc,11/10/2022,30083552,33466.88,0,Contractor Payments,General Builders,Invoice,BACS,No,29/09/2022 00:00,2022,7,55266,P74064,The Billings Roof,1233,Contractor Payments,,,,,,,,
GUILDFORD BOROUGH COUNCIL,Equity Share Administration,150290,Clarke Gammon,11/10/2022,30084001,285,0,Valuers Fees,Property Letting And Estate Agents,Invoice,BACS,No,06/10/2022 00:00,2022,7,15303,M1181,Sale Of Council Houses (BHS),D6002,Valuers Fees,XXX99,*** UNASSIGNED ***,WCC,CEC Recharges,WC,CEC Recharges,A,Central Services
GUILDFORD BOROUGH COUNCIL,Vehicle Maintenance,168100,Dennis Eagle Limited,11/10/2022,30079547,1347.63,0,Repair And Maintenance Of Vehicles,Refuse Vehicle Suppliers,Invoice,BACS,No,16/08/2022 00:00,2022,7,DE11517989,K5551,Fleet Workshops,C1002,Repair And Maintenance Of Vehicles,W3A48,Current Service Costs - Fleet Management,W3A,Current Service Costs adjustment,W3,Current Service Costs,W,Other Operating Income and Expenditure
GUILDFORD BOROUGH COUNCIL,Building Maintenance,180000,anonymous,11/10/2022,30084007,1054,0,Services,,Invoice,BACS,No,05/10/2022 00:00,2022,7,3,K1515,Building Maintenance,D6004,Services,DBX45,Property Services,DBX,Support Service and Management Costs,DB,Children's Social Care,E,Childrens and Education Services
GUILDFORD BOROUGH COUNCIL,Inventories,183200,Edmundson Electrical Limited,11/10/2022,30084054,26133.81,0,Purchases,Electrical Wiring And Parts Suppliers,Invoice,BACS,No,30/08/2022 00:00,2022,7,201-198044,I01001,Stocks,2591,Purchases,,,,,,,,
GUILDFORD BOROUGH COUNCIL,Lead Specialist - HR,324350,Comensura Ltd,11/10/2022,30083969,33151.14,0,Agency,Other Recruitment Agencies And Service Providers,Invoice,BACS,No,02/10/2022 00:00,2022,7,1092356,G1161,Commensura Holding Account,A5191,Agency,,,,,,,,
GUILDFORD BOROUGH COUNCIL,Off Street Parking,667120,Stripe Consulting Limited,11/10/2022,30083541,1181.25,0,Asset Maintenance,Other Construction Consultants,Invoice,BACS,No,31/05/2022 00:00,2022,7,INV-4654,B2219,Bedford Road Mscp,B1001,Asset Maintenance,HTP10,Off-Street Parking,HTP,Parking Services,HT,"Highways, Roads and Transport Services",H,"Highways, Roads and Transport Services"
GUILDFORD BOROUGH COUNCIL,Off Street Parking,667120,Stripe Consulting Limited,11/10/2022,30083988,1125,0,Asset Maintenance,Other Construction Consultants,Invoice,BACS,No,13/10/2020 00:00,2022,7,INV-3735,B2219,Bedford Road Mscp,B1001,Asset Maintenance,HTP10,Off-Street Parking,HTP,Parking Services,HT,"Highways, Roads and Transport Services",H,"Highways, Roads and Transport Services"
GUILDFORD BOROUGH COUNCIL,Off Street Parking,667120,Stripe Consulting Limited,11/10/2022,30083988,5625,0,Asset Maintenance,Other Construction Consultants,Invoice,BACS,No,13/10/2020 00:00,2022,7,INV-3735,B2219,Bedford Road Mscp,B1001,Asset Maintenance,HTP10,Off-Street Parking,HTP,Parking Services,HT,"Highways, Roads and Transport Services",H,"Highways, Roads and Transport Services"
GUILDFORD BOROUGH COUNCIL,Building Maintenance,686720,Surrey County Windows Ltd,11/10/2022,30084035,2693.32,0,Services,Window And Door Installers,Invoice,BACS,No,07/10/2022 00:00,2022,7,94,K1515,Building Maintenance,D6004,Services,DBX45,Property Services,DBX,Support Service and Management Costs,DB,Children's Social Care,E,Childrens and Education Services
GUILDFORD BOROUGH COUNCIL,Building Maintenance,686720,Surrey County Windows Ltd,11/10/2022,30084035,4611.77,0,Materials,Window And Door Installers,Invoice,BACS,No,07/10/2022 00:00,2022,7,94,K1515,Building Maintenance,D2003,Materials,DBX45,Property Services,DBX,Support Service and Management Costs,DB,Children's Social Care,E,Childrens and Education Services
GUILDFORD BOROUGH COUNCIL,Leisure Management Contract,702140,Wealden Leisure Limited,11/10/2022,30084056,1198.96,0,Asset Maintenance,Sports And Leisure Centres,Invoice,BACS,No,29/07/2022 00:00,2022,7,223222,A7540,Spectrum,B1001,Asset Maintenance,CCD30,Indoor Sports & Recreation Facilities,CCD,Recreation & Sport,CC,Cultural & Related Services,C,"Cultural, Environmental & Planning Services"
GUILDFORD BOROUGH COUNCIL,Parish Liasion,715000,Ripley Parish Council,11/10/2022,30083704,5759,0,Grants And Subscriptions,Local Government [Uk Only],Invoice,BACS,No,06/10/2022 00:00,2022,7,Ripley PC Festoons,F1115,Parish Liaison,D9001,Grants And Subscriptions,AAD00,Democratic Representation & Management,AAD,Democratic Representation & Management,AA,Corporate & Democratic Core,A,Central Services
GUILDFORD BOROUGH COUNCIL,Other Property,759110,Harpers Door Specialists,11/10/2022,30084052,500,0,GF Assets - Maintenance,"Security Shutter, Door And Gate Contractors",Invoice,BACS,No,07/10/2022 00:00,2022,7,SI-4012,B6100,Other Property Admin,B1004,GF Assets - Maintenance,DBX45,Property Services,DBX,Support Service and Management Costs,DB,Children's Social Care,E,Childrens and Education Services
GUILDFORD BOROUGH COUNCIL,Other Property,759110,Harpers Door Specialists,11/10/2022,30084052,7166,0,GF Assets - Maintenance,"Security Shutter, Door And Gate Contractors",Invoice,BACS,No,07/10/2022 00:00,2022,7,SI-4012,B6100,Other Property Admin,B1004,GF Assets - Maintenance,DBX45,Property Services,DBX,Support Service and Management Costs,DB,Children's Social Care,E,Childrens and Education Services
GUILDFORD BOROUGH COUNCIL,Crematorium,759110,Harpers Door Specialists,11/10/2022,30084015,310,0,GF Assets - Maintenance,"Security Shutter, Door And Gate Contractors",Invoice,BACS,No,06/10/2022 00:00,2022,7,SI-4011,A1500,Crematorium,B1004,GF Assets - Maintenance,CEA10,Crematoria,CEA,"Cemetery, Cremation and Mortuary Services",CE,Environmental & Regulatory Services,C,"Cultural, Environmental & Planning Services"
GUILDFORD BOROUGH COUNCIL,Inventories,759300,Certas Energy UK Limited,11/10/2022,30083972,2676.54,0,Purchases,Oil Fuel Suppliers,Invoice,BACS,No,03/10/2022 00:00,2022,7,7730972,I01001,Stocks,2591,Purchases,,,,,,,,
GUILDFORD BOROUGH COUNCIL,Millmead House,766060,AGB Contractors Limited,11/10/2022,30084030,440,0,GF Assets - Maintenance,General Builders,Invoice,BACS,No,07/10/2022 00:00,2022,7,221007A,G7512,33 Woking Road,B1004,GF Assets - Maintenance,DBX45,Property Services,DBX,Support Service and Management Costs,DB,Children's Social Care,E,Childrens and Education Services
GUILDFORD BOROUGH COUNCIL,Building Maintenance,807270,Simon Property Solution Ltd,11/10/2022,30083992,2715.46,0,Services,House Builders,Invoice,BACS,No,04/10/2022 00:00,2022,7,210GBC,K1515,Building Maintenance,D6004,Services,DBX45,Property Services,DBX,Support Service and Management Costs,DB,Children's Social Care,E,Childrens and Education Services
GUILDFORD BOROUGH COUNCIL,Building Maintenance,921860,Cinnamon Construction Limited (CIS),11/10/2022,30084045,6115.5,0,Services,General Builders,Invoice,BACS,No,05/10/2022 00:00,2022,7,128,K1515,Building Maintenance,D6004,Services,DBX45,Property Services,DBX,Support Service and Management Costs,DB,Children's Social Care,E,Childrens and Education Services
GUILDFORD BOROUGH COUNCIL,Building Maintenance,921860,Cinnamon Construction Limited (CIS),11/10/2022,30084046,2635,0,Services,General Builders,Invoice,BACS,No,05/10/2022 00:00,2022,7,64/2022,K1515,Building Maintenance,D6004,Services,DBX45,Property Services,DBX,Support Service and Management Costs,DB,Children's Social Care,E,Childrens and Education Services
GUILDFORD BOROUGH COUNCIL,Leisure Grants to Voluntary Organisations,964600,Yvonne Arnaud Theatre Management Ltd,11/10/2022,30082414,136500,0,Grants And Subscriptions,Theatres,Invoice,BACS,No,08/09/2022 00:00,2022,7,YA23/092,A4111,Grants Administration,D9001,Grants And Subscriptions,AAM00,Corporate Management,AAM,Corporate Management,AA,Corporate & Democratic Core,A,Central Services
GUILDFORD BOROUGH COUNCIL,Countryside and Parks Services,974800,Contract Cleaning & Facilities Ltd,11/10/2022,30083996,1641.5,0,Maintenance Contracts,Commercial Cleaners,Invoice,BACS,No,12/09/2022 00:00,2022,7,66085,A1250,Stoke Park,D1002,Maintenance Contracts,CCE00,Community Parks & Open Spaces,CCE,Open Spaces,CC,Cultural & Related Services,C,"Cultural, Environmental & Planning Services"
GUILDFORD BOROUGH COUNCIL,Vehicle Maintenance,979900,Jayar Components Limited,11/10/2022,30082646,343.53,0,Repair And Maintenance Of Vehicles,Third Party Supplier,Invoice,BACS,No,07/09/2022 00:00,2022,7,VK339501,K5551,Fleet Workshops,C1002,Repair And Maintenance Of Vehicles,W3A48,Current Service Costs - Fleet Management,W3A,Current Service Costs adjustment,W3,Current Service Costs,W,Other Operating Income and Expenditure
GUILDFORD BOROUGH COUNCIL,Renovations,981800,CLA Ltd,11/10/2022,30083924,800,0,Contractor Payments,,Invoice,BACS,No,07/05/2022 00:00,2022,7,CLA 341160,N40295,Disabled adaptations,1233,Contractor Payments,,,,,,,,
GUILDFORD BOROUGH COUNCIL,Renovations,981800,CLA Ltd,11/10/2022,30083921,925,0,Contractor Payments,,Invoice,BACS,No,10/07/2022 00:00,2022,7,CLA 341184,N40295,Disabled adaptations,1233,Contractor Payments,,,,,,,,
GUILDFORD BOROUGH COUNCIL,Renovations,981800,CLA Ltd,11/10/2022,30083922,1050,0,Contractor Payments,,Invoice,BACS,No,05/07/2022 00:00,2022,7,CLA 341179,N40295,Disabled adaptations,1233,Contractor Payments,,,,,,,,
GUILDFORD BOROUGH COUNCIL,Executive - Miscellaneous,984360,Chess Engage,11/10/2022,30082491,1050,0,Consultants Fees,,Invoice,BACS,No,31/12/2021 00:00,2022,7,INV-0018,P79100,Wuv - Allotment Relocation,1221,Consultants Fees,,,,,,,,
GUILDFORD BOROUGH COUNCIL,Executive - Miscellaneous,984360,Chess Engage,11/10/2022,30082800,1250,0,Consultants Fees,,Invoice,BACS,No,31/03/2022 00:00,2022,7,INV-0106,P79100,Wuv - Allotment Relocation,1221,Consultants Fees,,,,,,,,
GUILDFORD BOROUGH COUNCIL,Executive - Miscellaneous,984360,Chess Engage,11/10/2022,30082535,500,0,Consultants Fees,,Invoice,BACS,No,31/05/2022 00:00,2022,7,INV-0176,P79100,Wuv - Allotment Relocation,1221,Consultants Fees,,,,,,,,
GUILDFORD BOROUGH COUNCIL,Renovations,1000338,3MS Gold Services Ltd,13/10/2022,30084327,4175.79,0,Contractor Payments,,Invoice,BACS,No,30/09/2022 00:00,2022,7,2894,N40295,Disabled adaptations,1233,Contractor Payments,,,,,,,,
GUILDFORD BOROUGH COUNCIL,Renovations,1000338,3MS Gold Services Ltd,13/10/2022,30084327,2783.86,0,Contractor Payments,,Invoice,BACS,No,30/09/2022 00:00,2022,7,2894,N40295,Disabled adaptations,1233,Contractor Payments,,,,,,,,
GUILDFORD BOROUGH COUNCIL,Modern Homes,1000554,Seville Developments,13/10/2022,30084314,382.72,0,Contractor Payments,,Invoice,BACS,No,10/10/2022 00:00,2022,7,6014,N42068,"Kitchen, bathroom and electrical upgrades",1233,Contractor Payments,,,,,,,,
GUILDFORD BOROUGH COUNCIL,Modern Homes,1000554,Seville Developments,13/10/2022,30084314,1273.8,0,Contractor Payments,,Invoice,BACS,No,10/10/2022 00:00,2022,7,6014,N42068,"Kitchen, bathroom and electrical upgrades",1233,Contractor Payments,,,,,,,,
GUILDFORD BOROUGH COUNCIL,Modern Homes,1000554,Seville Developments,13/10/2022,30084314,3110.4,0,Contractor Payments,,Invoice,BACS,No,10/10/2022 00:00,2022,7,6014,N42068,"Kitchen, bathroom and electrical upgrades",1233,Contractor Payments,,,,,,,,
GUILDFORD BOROUGH COUNCIL,Modern Homes,1000554,Seville Developments,13/10/2022,30084314,456.96,0,Contractor Payments,,Invoice,BACS,No,10/10/2022 00:00,2022,7,6014,N42068,"Kitchen, bathroom and electrical upgrades",1233,Contractor Payments,,,,,,,,
GUILDFORD BOROUGH COUNCIL,Modern Homes,1000554,Seville Developments,13/10/2022,30084314,719.36,0,Contractor Payments,,Invoice,BACS,No,10/10/2022 00:00,2022,7,6014,N42068,"Kitchen, bathroom and electrical upgrades",1233,Contractor Payments,,,,,,,,
GUILDFORD BOROUGH COUNCIL,Modern Homes,1000554,Seville Developments,13/10/2022,30084314,704,0,Contractor Payments,,Invoice,BACS,No,10/10/2022 00:00,2022,7,6014,N42068,"Kitchen, bathroom and electrical upgrades",1233,Contractor Payments,,,,,,,,
GUILDFORD BOROUGH COUNCIL,Modern Homes,1000554,Seville Developments,13/10/2022,30084314,1075.2,0,Contractor Payments,,Invoice,BACS,No,10/10/2022 00:00,2022,7,6014,N42068,"Kitchen, bathroom and electrical upgrades",1233,Contractor Payments,,,,,,,,
GUILDFORD BOROUGH COUNCIL,Modern Homes,1000554,Seville Developments,13/10/2022,30084314,11500,0,Contractor Payments,,Invoice,BACS,No,10/10/2022 00:00,2022,7,6014,N42068,"Kitchen, bathroom and electrical upgrades",1233,Contractor Payments,,,,,,,,
GUILDFORD BOROUGH COUNCIL,Modern Homes,1000554,Seville Developments,13/10/2022,30084314,11500,0,Contractor Payments,,Invoice,BACS,No,10/10/2022 00:00,2022,7,6014,N42068,"Kitchen, bathroom and electrical upgrades",1233,Contractor Payments,,,,,,,,
GUILDFORD BOROUGH COUNCIL,Modern Homes,1000554,Seville Developments,13/10/2022,30084314,11500,0,Contractor Payments,,Invoice,BACS,No,10/10/2022 00:00,2022,7,6014,N42068,"Kitchen, bathroom and electrical upgrades",1233,Contractor Payments,,,,,,,,
GUILDFORD BOROUGH COUNCIL,Modern Homes,1000554,Seville Developments,13/10/2022,30084314,11500,0,Contractor Payments,,Invoice,BACS,No,10/10/2022 00:00,2022,7,6014,N42068,"Kitchen, bathroom and electrical upgrades",1233,Contractor Payments,,,,,,,,
GUILDFORD BOROUGH COUNCIL,Modern Homes,1000554,Seville Developments,13/10/2022,30084314,11500,0,Contractor Payments,,Invoice,BACS,No,10/10/2022 00:00,2022,7,6014,N42068,"Kitchen, bathroom and electrical upgrades",1233,Contractor Payments,,,,,,,,
GUILDFORD BOROUGH COUNCIL,Modern Homes,1000554,Seville Developments,13/10/2022,30084314,11500,0,Contractor Payments,,Invoice,BACS,No,10/10/2022 00:00,2022,7,6014,N42068,"Kitchen, bathroom and electrical upgrades",1233,Contractor Payments,,,,,,,,
GUILDFORD BOROUGH COUNCIL,Modern Homes,1000554,Seville Developments,13/10/2022,30084314,11500,0,Contractor Payments,,Invoice,BACS,No,10/10/2022 00:00,2022,7,6014,N42068,"Kitchen, bathroom and electrical upgrades",1233,Contractor Payments,,,,,,,,
GUILDFORD BOROUGH COUNCIL,Modern Homes,1000554,Seville Developments,13/10/2022,30084314,11500,0,Contractor Payments,,Invoice,BACS,No,10/10/2022 00:00,2022,7,6014,N42068,"Kitchen, bathroom and electrical upgrades",1233,Contractor Payments,,,,,,,,
GUILDFORD BOROUGH COUNCIL,Modern Homes,1000554,Seville Developments,13/10/2022,30084314,11500,0,Contractor Payments,,Invoice,BACS,No,10/10/2022 00:00,2022,7,6014,N42068,"Kitchen, bathroom and electrical upgrades",1233,Contractor Payments,,,,,,,,
GUILDFORD BOROUGH COUNCIL,Modern Homes,1000554,Seville Developments,13/10/2022,30084314,11500,0,Contractor Payments,,Invoice,BACS,No,10/10/2022 00:00,2022,7,6014,N42068,"Kitchen, bathroom and electrical upgrades",1233,Contractor Payments,,,,,,,,
GUILDFORD BOROUGH COUNCIL,Modern Homes,1000554,Seville Developments,13/10/2022,30084314,11500,0,Contractor Payments,,Invoice,BACS,No,10/10/2022 00:00,2022,7,6014,N42068,"Kitchen, bathroom and electrical upgrades",1233,Contractor Payments,,,,,,,,
GUILDFORD BOROUGH COUNCIL,Modern Homes,1000554,Seville Developments,13/10/2022,30084314,11500,0,Contractor Payments,,Invoice,BACS,No,10/10/2022 00:00,2022,7,6014,N42068,"Kitchen, bathroom and electrical upgrades",1233,Contractor Payments,,,,,,,,
GUILDFORD BOROUGH COUNCIL,Modern Homes,1000554,Seville Developments,13/10/2022,30084314,478.13,0,Contractor Payments,,Invoice,BACS,No,10/10/2022 00:00,2022,7,6014,N42068,"Kitchen, bathroom and electrical upgrades",1233,Contractor Payments,,,,,,,,
GUILDFORD BOROUGH COUNCIL,Modern Homes,1000554,Seville Developments,13/10/2022,30084314,11500,0,Contractor Payments,,Invoice,BACS,No,10/10/2022 00:00,2022,7,6014,N42068,"Kitchen, bathroom and electrical upgrades",1233,Contractor Payments,,,,,,,,
GUILDFORD BOROUGH COUNCIL,Modern Homes,1000554,Seville Developments,13/10/2022,30084314,11500,0,Contractor Payments,,Invoice,BACS,No,10/10/2022 00:00,2022,7,6014,N42068,"Kitchen, bathroom and electrical upgrades",1233,Contractor Payments,,,,,,,,
GUILDFORD BOROUGH COUNCIL,Modern Homes,1000554,Seville Developments,13/10/2022,30084314,11500,0,Contractor Payments,,Invoice,BACS,No,10/10/2022 00:00,2022,7,6014,N42068,"Kitchen, bathroom and electrical upgrades",1233,Contractor Payments,,,,,,,,
GUILDFORD BOROUGH COUNCIL,Modern Homes,1000554,Seville Developments,13/10/2022,30084314,11500,0,Contractor Payments,,Invoice,BACS,No,10/10/2022 00:00,2022,7,6014,N42068,"Kitchen, bathroom and electrical upgrades",1233,Contractor Payments,,,,,,,,
GUILDFORD BOROUGH COUNCIL,Modern Homes,1000554,Seville Developments,13/10/2022,30084314,11500,0,Contractor Payments,,Invoice,BACS,No,10/10/2022 00:00,2022,7,6014,N42068,"Kitchen, bathroom and electrical upgrades",1233,Contractor Payments,,,,,,,,
GUILDFORD BOROUGH COUNCIL,Modern Homes,1000554,Seville Developments,13/10/2022,30084314,11500,0,Contractor Payments,,Invoice,BACS,No,10/10/2022 00:00,2022,7,6014,N42068,"Kitchen, bathroom and electrical upgrades",1233,Contractor Payments,,,,,,,,
GUILDFORD BOROUGH COUNCIL,Modern Homes,1000554,Seville Developments,13/10/2022,30084314,11500,0,Contractor Payments,,Invoice,BACS,No,10/10/2022 00:00,2022,7,6014,N42068,"Kitchen, bathroom and electrical upgrades",1233,Contractor Payments,,,,,,,,
GUILDFORD BOROUGH COUNCIL,Modern Homes,1000554,Seville Developments,13/10/2022,30084314,11500,0,Contractor Payments,,Invoice,BACS,No,10/10/2022 00:00,2022,7,6014,N42068,"Kitchen, bathroom and electrical upgrades",1233,Contractor Payments,,,,,,,,
GUILDFORD BOROUGH COUNCIL,Modern Homes,1000554,Seville Developments,13/10/2022,30084314,312.46,0,Contractor Payments,,Invoice,BACS,No,10/10/2022 00:00,2022,7,6014,N42068,"Kitchen, bathroom and electrical upgrades",1233,Contractor Payments,,,,,,,,
GUILDFORD BOROUGH COUNCIL,Modern Homes,1000554,Seville Developments,13/10/2022,30084314,11500,0,Contractor Payments,,Invoice,BACS,No,10/10/2022 00:00,2022,7,6014,N42068,"Kitchen, bathroom and electrical upgrades",1233,Contractor Payments,,,,,,,,
GUILDFORD BOROUGH COUNCIL,Modern Homes,1000554,Seville Developments,13/10/2022,30084314,6758.4,0,Contractor Payments,,Invoice,BACS,No,10/10/2022 00:00,2022,7,6014,N42068,"Kitchen, bathroom and electrical upgrades",1233,Contractor Payments,,,,,,,,
GUILDFORD BOROUGH COUNCIL,Modern Homes,1000554,Seville Developments,13/10/2022,30084314,7526.82,0,Contractor Payments,,Invoice,BACS,No,10/10/2022 00:00,2022,7,6014,N42068,"Kitchen, bathroom and electrical upgrades",1233,Contractor Payments,,,,,,,,
GUILDFORD BOROUGH COUNCIL,Modern Homes,1000554,Seville Developments,13/10/2022,30084314,2507.12,0,Contractor Payments,,Invoice,BACS,No,10/10/2022 00:00,2022,7,6014,N42068,"Kitchen, bathroom and electrical upgrades",1233,Contractor Payments,,,,,,,,
GUILDFORD BOROUGH COUNCIL,Modern Homes,1000554,Seville Developments,13/10/2022,30084314,382.72,0,Contractor Payments,,Invoice,BACS,No,10/10/2022 00:00,2022,7,6014,N42068,"Kitchen, bathroom and electrical upgrades",1233,Contractor Payments,,,,,,,,
GUILDFORD BOROUGH COUNCIL,Modern Homes,1000554,Seville Developments,13/10/2022,30084314,382.72,0,Contractor Payments,,Invoice,BACS,No,10/10/2022 00:00,2022,7,6014,N42068,"Kitchen, bathroom and electrical upgrades",1233,Contractor Payments,,,,,,,,
GUILDFORD BOROUGH COUNCIL,Modern Homes,1000554,Seville Developments,13/10/2022,30084314,382.72,0,Contractor Payments,,Invoice,BACS,No,10/10/2022 00:00,2022,7,6014,N42068,"Kitchen, bathroom and electrical upgrades",1233,Contractor Payments,,,,,,,,
GUILDFORD BOROUGH COUNCIL,Modern Homes,1000554,Seville Developments,13/10/2022,30084314,382.72,0,Contractor Payments,,Invoice,BACS,No,10/10/2022 00:00,2022,7,6014,N42068,"Kitchen, bathroom and electrical upgrades",1233,Contractor Payments,,,,,,,,
GUILDFORD BOROUGH COUNCIL,Modern Homes,1000554,Seville Developments,13/10/2022,30084314,382.72,0,Contractor Payments,,Invoice,BACS,No,10/10/2022 00:00,2022,7,6014,N42068,"Kitchen, bathroom and electrical upgrades",1233,Contractor Payments,,,,,,,,
GUILDFORD BOROUGH COUNCIL,Modern Homes,1000554,Seville Developments,13/10/2022,30084314,382.72,0,Contractor Payments,,Invoice,BACS,No,10/10/2022 00:00,2022,7,6014,N42068,"Kitchen, bathroom and electrical upgrades",1233,Contractor Payments,,,,,,,,
GUILDFORD BOROUGH COUNCIL,Modern Homes,1000554,Seville Developments,13/10/2022,30084314,382.72,0,Contractor Payments,,Invoice,BACS,No,10/10/2022 00:00,2022,7,6014,N42068,"Kitchen, bathroom and electrical upgrades",1233,Contractor Payments,,,,,,,,
GUILDFORD BOROUGH COUNCIL,Modern Homes,1000554,Seville Developments,13/10/2022,30084314,382.72,0,Contractor Payments,,Invoice,BACS,No,10/10/2022 00:00,2022,7,6014,N42068,"Kitchen, bathroom and electrical upgrades",1233,Contractor Payments,,,,,,,,
GUILDFORD BOROUGH COUNCIL,Modern Homes,1000554,Seville Developments,13/10/2022,30084314,382.72,0,Contractor Payments,,Invoice,BACS,No,10/10/2022 00:00,2022,7,6014,N42068,"Kitchen, bathroom and electrical upgrades",1233,Contractor Payments,,,,,,,,
GUILDFORD BOROUGH COUNCIL,Industrial Estates,1000744,Ecotricity Limited,13/10/2022,30084419,303.67,0,Utilities,,Invoice,BACS,No,15/07/2022 00:00,2022,7,2448061,B5341,Midleton Industrial Estate,B2001,Utilities,CPJ00,Market Undertakings,CPJ,Economic Development,CP,Planning and Development Services,C,"Cultural, Environmental & Planning Services"
GUILDFORD BOROUGH COUNCIL,Countryside and Parks Services,1000769,Outdoor Carpets Ltd,13/10/2022,30083563,5913,0,Materials,,Invoice,BACS,No,15/09/2022 00:00,2022,7,2012865,A1232,Sutherland Memorial Park,D2003,Materials,CCE00,Community Parks & Open Spaces,CCE,Open Spaces,CC,Cultural & Related Services,C,"Cultural, Environmental & Planning Services"
GUILDFORD BOROUGH COUNCIL,Development Control,1000798,Derek Horne & Associates Ltd,13/10/2022,30084398,2800,0,Consultancy,,Invoice,BACS,No,01/09/2022 00:00,2022,7,DHA/2642/22,D5100,Development Control - Fee Earn,D6001,Consultancy,CPC00,Development Control Advice,CPC,Development Control,CP,Planning and Development Services,C,"Cultural, Environmental & Planning Services"
GUILDFORD BOROUGH COUNCIL,Responsive & Planned Maintenance,118990,B T U (Installation & Maintenance) Ltd,13/10/2022,30084257,526.45,0,Asset Maintenance,Mechanical Engineers,Invoice,BACS,No,12/09/2022 00:00,2022,7,OP/I281969,M5106,Repairs-Shelt-Responsive (BHS),B1001,Asset Maintenance,XXX99,*** UNASSIGNED ***,WCC,CEC Recharges,WC,CEC Recharges,A,Central Services
GUILDFORD BOROUGH COUNCIL,Crematorium,118990,B T U (Installation & Maintenance) Ltd,13/10/2022,30084257,270.25,0,Asset Maintenance,Mechanical Engineers,Invoice,BACS,No,12/09/2022 00:00,2022,7,OP/I281969,A1500,Crematorium,B1001,Asset Maintenance,CEA10,Crematoria,CEA,"Cemetery, Cremation and Mortuary Services",CE,Environmental & Regulatory Services,C,"Cultural, Environmental & Planning Services"
GUILDFORD BOROUGH COUNCIL,Responsive & Planned Maintenance,118990,B T U (Installation & Maintenance) Ltd,13/10/2022,30084257,480.66,0,Asset Maintenance,Mechanical Engineers,Invoice,BACS,No,12/09/2022 00:00,2022,7,OP/I281969,M5113,Repairs-Responsive (BHS),B1001,Asset Maintenance,XXX99,*** UNASSIGNED ***,WCC,CEC Recharges,WC,CEC Recharges,A,Central Services
GUILDFORD BOROUGH COUNCIL,Responsive & Planned Maintenance,118990,B T U (Installation & Maintenance) Ltd,13/10/2022,30084257,371.15,0,Asset Maintenance,Mechanical Engineers,Invoice,BACS,No,12/09/2022 00:00,2022,7,OP/I281969,M5106,Repairs-Shelt-Responsive (BHS),B1001,Asset Maintenance,XXX99,*** UNASSIGNED ***,WCC,CEC Recharges,WC,CEC Recharges,A,Central Services
GUILDFORD BOROUGH COUNCIL,Responsive & Planned Maintenance,118990,B T U (Installation & Maintenance) Ltd,13/10/2022,30084257,735.17,0,Asset Maintenance,Mechanical Engineers,Invoice,BACS,No,12/09/2022 00:00,2022,7,OP/I281969,M5106,Repairs-Shelt-Responsive (BHS),B1001,Asset Maintenance,XXX99,*** UNASSIGNED ***,WCC,CEC Recharges,WC,CEC Recharges,A,Central Services
GUILDFORD BOROUGH COUNCIL,Flats Communal Services,118990,B T U (Installation & Maintenance) Ltd,13/10/2022,30084257,399.85,0,Asset Maintenance,Mechanical Engineers,Invoice,BACS,No,12/09/2022 00:00,2022,7,OP/I281969,M2736,Friary House 1-61 (61),B1001,Asset Maintenance,XXX99,*** UNASSIGNED ***,WCC,CEC Recharges,WC,CEC Recharges,A,Central Services
GUILDFORD BOROUGH COUNCIL,Responsive & Planned Maintenance,118990,B T U (Installation & Maintenance) Ltd,13/10/2022,30084257,261.65,0,Asset Maintenance,Mechanical Engineers,Invoice,BACS,No,12/09/2022 00:00,2022,7,OP/I281969,M5113,Repairs-Responsive (BHS),B1001,Asset Maintenance,XXX99,*** UNASSIGNED ***,WCC,CEC Recharges,WC,CEC Recharges,A,Central Services
GUILDFORD BOROUGH COUNCIL,Millmead House,118990,B T U (Installation & Maintenance) Ltd,13/10/2022,30084257,606.7,0,Asset Maintenance,Mechanical Engineers,Invoice,BACS,No,12/09/2022 00:00,2022,7,OP/I281969,G7515,Old Millmead House,B1001,Asset Maintenance,DBX45,Property Services,DBX,Support Service and Management Costs,DB,Children's Social Care,E,Childrens and Education Services
GUILDFORD BOROUGH COUNCIL,Crematorium,118990,B T U (Installation & Maintenance) Ltd,13/10/2022,30084257,710.47,0,Equipment,Mechanical Engineers,Invoice,BACS,No,12/09/2022 00:00,2022,7,OP/I281969,A1500,Crematorium,D2001,Equipment,CEA10,Crematoria,CEA,"Cemetery, Cremation and Mortuary Services",CE,Environmental & Regulatory Services,C,"Cultural, Environmental & Planning Services"
GUILDFORD BOROUGH COUNCIL,Modern Homes,129090,Breyer Group Plc,13/10/2022,30084262,28907.17,0,Contractor Payments,General Builders,Invoice,BACS,No,29/09/2022 00:00,2022,7,55246,N42069,Void Properties - refurbishment,1233,Contractor Payments,,,,,,,,
GUILDFORD BOROUGH COUNCIL,Modern Homes,129090,Breyer Group Plc,13/10/2022,30084263,21834.62,0,Contractor Payments,General Builders,Invoice,BACS,No,29/09/2022 00:00,2022,7,55247,N42068,"Kitchen, bathroom and electrical upgrades",1233,Contractor Payments,,,,,,,,
GUILDFORD BOROUGH COUNCIL,Modern Homes,129090,Breyer Group Plc,13/10/2022,30084264,700,0,Contractor Payments,General Builders,Invoice,BACS,No,29/09/2022 00:00,2022,7,55248,N48057,Structural works - various properties,1233,Contractor Payments,,,,,,,,
GUILDFORD BOROUGH COUNCIL,Modern Homes,129090,Breyer Group Plc,13/10/2022,30084265,9432.48,0,Contractor Payments,General Builders,Invoice,BACS,No,29/09/2022 00:00,2022,7,55249,N42069,Void Properties - refurbishment,1233,Contractor Payments,,,,,,,,
GUILDFORD BOROUGH COUNCIL,Modern Homes,129090,Breyer Group Plc,13/10/2022,30084266,1321.35,0,Contractor Payments,General Builders,Invoice,BACS,No,29/09/2022 00:00,2022,7,55250,N48057,Structural works - various properties,1233,Contractor Payments,,,,,,,,
GUILDFORD BOROUGH COUNCIL,Modern Homes,129090,Breyer Group Plc,13/10/2022,30084267,25844.45,0,Contractor Payments,General Builders,Invoice,BACS,No,29/09/2022 00:00,2022,7,55251,N42069,Void Properties - refurbishment,1233,Contractor Payments,,,,,,,,
GUILDFORD BOROUGH COUNCIL,Modern Homes,129090,Breyer Group Plc,13/10/2022,30084268,3200,0,Contractor Payments,General Builders,Invoice,BACS,No,30/09/2022 00:00,2022,7,55254,N42069,Void Properties - refurbishment,1233,Contractor Payments,,,,,,,,
GUILDFORD BOROUGH COUNCIL,Modern Homes,129090,Breyer Group Plc,13/10/2022,30084269,40845.5,0,Contractor Payments,General Builders,Invoice,BACS,No,03/10/2022 00:00,2022,7,55273,N42069,Void Properties - refurbishment,1233,Contractor Payments,,,,,,,,
GUILDFORD BOROUGH COUNCIL,Building Control,156250,Hays Specialist Recruitment Limited,13/10/2022,30084249,2237.86,0,Agency,Other Recruitment Agencies And Service Providers,Invoice,BACS,No,25/08/2022 00:00,2022,7,1012420169,D5700,Building Control - Fee,A5191,Agency,CPB00,Building Regulations,CPB,Building Control,CP,Planning and Development Services,C,"Cultural, Environmental & Planning Services"
GUILDFORD BOROUGH COUNCIL,Homelessness Support,191780,Spicerhaart Residential Lettings,13/10/2022,30084251,950,0,Partnerships,Property Letting And Estate Agents,Invoice,BACS,No,11/10/2022 00:00,2022,7,Rent in advance,C3311,Homelessness,D6013,Partnerships,KGU00,Supporting People - Strategy,KGU,Supporting People,KG,Housing General Fund,K,Housing Services
GUILDFORD BOROUGH COUNCIL,Environmental Works,210930,Environment Agency,13/10/2022,30084243,513,0,Asset Maintenance,Central Government,Invoice,BACS,No,01/04/2022 00:00,2022,7,511601T,M4615,Env Wks To Estate (BHS),B1001,Asset Maintenance,XXX99,*** UNASSIGNED ***,WCC,CEC Recharges,WC,CEC Recharges,A,Central Services
GUILDFORD BOROUGH COUNCIL,Environmental Works,210930,Environment Agency,13/10/2022,30084416,890,0,Asset Maintenance,Central Government,Invoice,BACS,No,01/04/2022 00:00,2022,7,064381TT,M4615,Env Wks To Estate (BHS),B1001,Asset Maintenance,XXX99,*** UNASSIGNED ***,WCC,CEC Recharges,WC,CEC Recharges,A,Central Services
GUILDFORD BOROUGH COUNCIL,Parks & Countryside,217520,Kings College,13/10/2022,30084347,127628.07,0,Grants - General,Universities,Invoice,BACS,No,12/10/2022 00:00,2022,7,KCGS 1610,P18239,Kings College Sports Facilities,1323,Grants - General,,,,,,,,
GUILDFORD BOROUGH COUNCIL,Parks Countryside Management,271200,Saint-Gobain Building Distribution Limited (Jewson),13/10/2022,30083580,372.5,0,Grounds Maintenance,Builders Merchants,Invoice,BACS,No,02/09/2022 00:00,2022,7,0652/00129788,A1300,Trees And Countryside,B6001,Grounds Maintenance,CCE00,Community Parks & Open Spaces,CCE,Open Spaces,CC,Cultural & Related Services,C,"Cultural, Environmental & Planning Services"
GUILDFORD BOROUGH COUNCIL,Renovations,345400,Powerguards Inc Ramping Systems Ltd (CIS),13/10/2022,30084261,595,0,Contractor Payments,Fixed Disability Equipment Suppliers,Invoice,BACS,No,28/09/2022 00:00,2022,7,17945,N40295,Disabled adaptations,1233,Contractor Payments,,,,,,,,
GUILDFORD BOROUGH COUNCIL,Parish Liasion,626500,Ockham Parish Council,13/10/2022,30084346,754,0,Grants And Subscriptions,Local Government [Uk Only],Invoice,BACS,No,12/10/2022 00:00,2022,7,Ockham PC - Historic sign,F1115,Parish Liaison,D9001,Grants And Subscriptions,AAD00,Democratic Representation & Management,AAD,Democratic Representation & Management,AA,Corporate & Democratic Core,A,Central Services
GUILDFORD BOROUGH COUNCIL,Industrial Estates,656190,EDF Energy,13/10/2022,30081302,1183.35,0,Utilities,Mains Electricity Suppliers,Invoice,BACS,No,21/08/2022 00:00,2022,7,E70866341005,B5351,Slyfield Industrial Estate,B2001,Utilities,CPJ00,Market Undertakings,CPJ,Economic Development,CP,Planning and Development Services,C,"Cultural, Environmental & Planning Services"
GUILDFORD BOROUGH COUNCIL,Heating,692680,TSG Building Services Plc,13/10/2022,30084277,2032.72,0,Contractor Payments,General Builders,Invoice,BACS,No,31/08/2022 00:00,2022,7,0523-0400,N44075,Central heating boiler upgrades,1233,Contractor Payments,,,,,,,,
GUILDFORD BOROUGH COUNCIL,Heating,692680,TSG Building Services Plc,13/10/2022,30084278,1946.67,0,Contractor Payments,General Builders,Invoice,BACS,No,31/08/2022 00:00,2022,7,0523-0401,N44075,Central heating boiler upgrades,1233,Contractor Payments,,,,,,,,
GUILDFORD BOROUGH COUNCIL,Heating,692680,TSG Building Services Plc,13/10/2022,30084279,2218.09,0,Contractor Payments,General Builders,Invoice,BACS,No,31/08/2022 00:00,2022,7,0523-0403,N44075,Central heating boiler upgrades,1233,Contractor Payments,,,,,,,,
GUILDFORD BOROUGH COUNCIL,Heating,692680,TSG Building Services Plc,13/10/2022,30084280,3303.58,0,Contractor Payments,General Builders,Invoice,BACS,No,31/08/2022 00:00,2022,7,0523-0404,N44075,Central heating boiler upgrades,1233,Contractor Payments,,,,,,,,
GUILDFORD BOROUGH COUNCIL,Heating,692680,TSG Building Services Plc,13/10/2022,30084281,3956.58,0,Contractor Payments,General Builders,Invoice,BACS,No,31/08/2022 00:00,2022,7,0523-0405,N44075,Central heating boiler upgrades,1233,Contractor Payments,,,,,,,,
GUILDFORD BOROUGH COUNCIL,Heating,692680,TSG Building Services Plc,13/10/2022,30084282,3018.67,0,Contractor Payments,General Builders,Invoice,BACS,No,31/08/2022 00:00,2022,7,0523-0406,N44075,Central heating boiler upgrades,1233,Contractor Payments,,,,,,,,
GUILDFORD BOROUGH COUNCIL,Responsive & Planned Maintenance,713700,A P Benson Roofing & Building Limited,13/10/2022,30084322,790,0,Asset Maintenance,Roofers,Invoice,BACS,No,21/09/2022 00:00,2022,7,4970,M5114,Repairs-Cyclical (BHS),B1001,Asset Maintenance,XXX99,*** UNASSIGNED ***,WCC,CEC Recharges,WC,CEC Recharges,A,Central Services
GUILDFORD BOROUGH COUNCIL,Responsive & Planned Maintenance,713700,A P Benson Roofing & Building Limited,13/10/2022,30084323,790,0,Asset Maintenance,Roofers,Invoice,BACS,No,21/09/2022 00:00,2022,7,4971,M5114,Repairs-Cyclical (BHS),B1001,Asset Maintenance,XXX99,*** UNASSIGNED ***,WCC,CEC Recharges,WC,CEC Recharges,A,Central Services
GUILDFORD BOROUGH COUNCIL,Transfer To Balance Sheet,722880,Concrete Repairs Ltd,13/10/2022,30084284,9811.85,0,Contractor Payments,"Concrete Cutting, Drilling And Maintenance Contractors",Invoice,BACS,No,16/09/2022 00:00,2022,7,SI000333,P00000,GFCAP Bought Forward,1233,Contractor Payments,,,,,,,,
GUILDFORD BOROUGH COUNCIL,Transfer To Balance Sheet,722880,Concrete Repairs Ltd,13/10/2022,30084285,9811.85,0,Contractor Payments,"Concrete Cutting, Drilling And Maintenance Contractors",Invoice,BACS,No,16/09/2022 00:00,2022,7,SI000334,P00000,GFCAP Bought Forward,1233,Contractor Payments,,,,,,,,
GUILDFORD BOROUGH COUNCIL,Guildford House,759200,Southern Control Services Limited,13/10/2022,30084324,1255,0,Asset Maintenance,Electrical Engineers,Invoice,BACS,No,08/07/2022 00:00,2022,7,5189,A4511,Guildford House Administration,B1001,Asset Maintenance,CCA30,Museums & Galleries,CCA,Culture & Heritage,CC,Cultural & Related Services,C,"Cultural, Environmental & Planning Services"
GUILDFORD BOROUGH COUNCIL,Heating,900320,BSW Building Services Ltd,13/10/2022,30084291,11142.32,0,Contractor Payments,"Plumbing, Heating And Ac (Hvac) Contractors",Invoice,BACS,No,20/06/2022 00:00,2022,7,77597,N44076,Domestic Air Source Heat Pump heating��systems,1233,Contractor Payments,,,,,,,,
GUILDFORD BOROUGH COUNCIL,Renovations,904300,Kone Plc,13/10/2022,30084316,11469.69,0,Contractor Payments,Lift Contractors,Invoice,BACS,No,27/09/2022 00:00,2022,7,29645993,N40283,Lift refurbishment Bedford House 2021/22,1233,Contractor Payments,,,,,,,,
GUILDFORD BOROUGH COUNCIL,Responsive & Planned Maintenance,930000,K&T Heating Services Ltd (CIS),13/10/2022,30084293,3795,0,Asset Maintenance,"Plumbing, Heating And Ac (Hvac) Contractors",Invoice,BACS,No,30/09/2022 00:00,2022,7,SI63313,M5115,Repairs-Other Reponsive (BHS),B1001,Asset Maintenance,XXX99,*** UNASSIGNED ***,WCC,CEC Recharges,WC,CEC Recharges,A,Central Services
GUILDFORD BOROUGH COUNCIL,Responsive & Planned Maintenance,930000,K&T Heating Services Ltd (CIS),13/10/2022,30084294,337.35,0,Asset Maintenance,"Plumbing, Heating And Ac (Hvac) Contractors",Invoice,BACS,No,30/09/2022 00:00,2022,7,SI63314,M5113,Repairs-Responsive (BHS),B1001,Asset Maintenance,XXX99,*** UNASSIGNED ***,WCC,CEC Recharges,WC,CEC Recharges,A,Central Services
GUILDFORD BOROUGH COUNCIL,Responsive & Planned Maintenance,930000,K&T Heating Services Ltd (CIS),13/10/2022,30084295,9903.29,0,Asset Maintenance,"Plumbing, Heating And Ac (Hvac) Contractors",Invoice,BACS,No,01/10/2022 00:00,2022,7,SI63371,M5114,Repairs-Cyclical (BHS),B1001,Asset Maintenance,XXX99,*** UNASSIGNED ***,WCC,CEC Recharges,WC,CEC Recharges,A,Central Services
GUILDFORD BOROUGH COUNCIL,Countryside and Parks Services,952250,Waterlogic Gb Limited,13/10/2022,30084387,398.4,0,Equipment,Water Cooler And Bottled Water Suppliers,Invoice,BACS,No,22/04/2022 00:00,2022,7,CD-223021389,A1000,Parks Contracts,D2001,Equipment,CCE00,Community Parks & Open Spaces,CCE,Open Spaces,CC,Cultural & Related Services,C,"Cultural, Environmental & Planning Services"
GUILDFORD BOROUGH COUNCIL,Homelessness Support,969930,Upton Park Hotel,13/10/2022,30083380,6300,0,Emergency Accomodation,,Invoice,BACS,No,10/09/2022 00:00,2022,7,11788,C3311,Homelessness,D8009,Emergency Accomodation,KGU00,Supporting People - Strategy,KGU,Supporting People,KG,Housing General Fund,K,Housing Services
GUILDFORD BOROUGH COUNCIL,Homelessness Support,969930,Upton Park Hotel,13/10/2022,30083384,6300,0,Emergency Accomodation,,Invoice,BACS,No,10/09/2022 00:00,2022,7,11787,C3311,Homelessness,D8009,Emergency Accomodation,KGU00,Supporting People - Strategy,KGU,Supporting People,KG,Housing General Fund,K,Housing Services
GUILDFORD BOROUGH COUNCIL,Environmental Health,1000240,Portsmouth City Council,13/10/2022,30084352,764.16,0,Consultancy,,Invoice,CHAPS,No,10/10/2022 00:00,2022,7,20396026,C1114,Compliance,D6001,Consultancy,CEE25,Environmental Protection,CEE,Environmental Health (Regulatory Services),CE,Environmental & Regulatory Services,C,"Cultural, Environmental & Planning Services"
GUILDFORD BOROUGH COUNCIL,IT Renewals,1000035,Gravitas Recruitment Group,18/10/2022,30084048,3025,0,Agency Staff,,Invoice,BACS,No,10/10/2022 00:00,2022,7,INV186374,P81002,IT Renewals Reserve Funded General,1222,Agency Staff,XXX99,*** UNASSIGNED ***,WCC,CEC Recharges,WC,CEC Recharges,A,Central Services
GUILDFORD BOROUGH COUNCIL,Countryside and Parks Services,1000084,Traditional Stone Restoration Ltd,18/10/2022,30084660,42208.48,0,GF Assets - Maintenance,,Invoice,BACS,No,30/09/2022 00:00,2022,7,INV-2181,A1250,Stoke Park,B1004,GF Assets - Maintenance,CCE00,Community Parks & Open Spaces,CCE,Open Spaces,CC,Cultural & Related Services,C,"Cultural, Environmental & Planning Services"
GUILDFORD BOROUGH COUNCIL,Development Control,1000229,BJC Planning,18/10/2022,30084701,8190.45,0,Consultancy,,Invoice,BACS,No,30/08/2022 00:00,2022,7,20/00825300822,D5100,Development Control - Fee Earn,D6001,Consultancy,CPC00,Development Control Advice,CPC,Development Control,CP,Planning and Development Services,C,"Cultural, Environmental & Planning Services"
GUILDFORD BOROUGH COUNCIL,Property,1000269,DAVITT JONES BOULD LIMITED,18/10/2022,30081836,1250.6,0,Consultants Fees,,Invoice,BACS,No,31/08/2022 00:00,2022,7,203359,P74040,Slyfield Area Regeneration Project,1221,Consultants Fees,XXX99,*** UNASSIGNED ***,WCC,CEC Recharges,WC,CEC Recharges,A,Central Services
GUILDFORD BOROUGH COUNCIL,Property,1000269,DAVITT JONES BOULD LIMITED,18/10/2022,30084361,692.9,0,Consultants Fees,,Invoice,BACS,No,31/08/2022 00:00,2022,7,203361,P74040,Slyfield Area Regeneration Project,1221,Consultants Fees,XXX99,*** UNASSIGNED ***,WCC,CEC Recharges,WC,CEC Recharges,A,Central Services
GUILDFORD BOROUGH COUNCIL,Off Street Parking,1000355,Liftec Lifts Limited,18/10/2022,30083432,899.3,0,Asset Maintenance,,Invoice,BACS,No,23/09/2022 00:00,2022,7,NV219592,B2219,Bedford Road Mscp,B1001,Asset Maintenance,HTP10,Off-Street Parking,HTP,Parking Services,HT,"Highways, Roads and Transport Services",H,"Highways, Roads and Transport Services"
GUILDFORD BOROUGH COUNCIL,Vehicle Maintenance,1000363,Ernest Doe & Sons Ltd,18/10/2022,30083973,729.95,0,Repair And Maintenance Of Vehicles,,Invoice,BACS,No,23/09/2022 00:00,2022,7,E26249,K5551,Fleet Workshops,C1002,Repair And Maintenance Of Vehicles,W3A48,Current Service Costs - Fleet Management,W3A,Current Service Costs adjustment,W3,Current Service Costs,W,Other Operating Income and Expenditure
GUILDFORD BOROUGH COUNCIL,Private Sector Housing Maintenance,1000389,Waltonhall Construction Services Ltd,18/10/2022,30082717,1174.57,0,Contractors,,Invoice,BACS,No,17/06/2022 00:00,2022,7,GCR011,C5132,Care And Repair (Detr),D6012,Contractors,KGU00,Supporting People - Strategy,KGU,Supporting People,KG,Housing General Fund,K,Housing Services
GUILDFORD BOROUGH COUNCIL,Private Sector Housing Maintenance,1000389,Waltonhall Construction Services Ltd,18/10/2022,30081738,616.43,0,Contractors,,Invoice,BACS,No,07/09/2022 00:00,2022,7,GCR016,C5132,Care And Repair (Detr),D6012,Contractors,KGU00,Supporting People - Strategy,KGU,Supporting People,KG,Housing General Fund,K,Housing Services
GUILDFORD BOROUGH COUNCIL,Private Sector Housing Maintenance,1000389,Waltonhall Construction Services Ltd,18/10/2022,30075318,1050.37,0,Contractors,,Invoice,BACS,No,07/07/2022 00:00,2022,7,GCR012,C5132,Care And Repair (Detr),D6012,Contractors,KGU00,Supporting People - Strategy,KGU,Supporting People,KG,Housing General Fund,K,Housing Services
GUILDFORD BOROUGH COUNCIL,Private Sector Housing Maintenance,1000389,Waltonhall Construction Services Ltd,18/10/2022,30076574,379.2,0,Contractors,,Invoice,BACS,No,21/07/2022 00:00,2022,7,GCR006,C5132,Care And Repair (Detr),D6012,Contractors,KGU00,Supporting People - Strategy,KGU,Supporting People,KG,Housing General Fund,K,Housing Services
GUILDFORD BOROUGH COUNCIL,Private Sector Housing Maintenance,1000389,Waltonhall Construction Services Ltd,18/10/2022,30079366,344.68,0,Contractors,,Invoice,BACS,No,15/08/2022 00:00,2022,7,GCR013,C5132,Care And Repair (Detr),D6012,Contractors,KGU00,Supporting People - Strategy,KGU,Supporting People,KG,Housing General Fund,K,Housing Services
GUILDFORD BOROUGH COUNCIL,Building Maintenance,1000451,AMG Electrical Ltd,18/10/2022,30083998,896.75,0,Services,,Invoice,BACS,No,04/10/2022 00:00,2022,7,2210-01,K1515,Building Maintenance,D6004,Services,DBX45,Property Services,DBX,Support Service and Management Costs,DB,Children's Social Care,E,Childrens and Education Services
GUILDFORD BOROUGH COUNCIL,Building Maintenance,1000451,AMG Electrical Ltd,18/10/2022,30084656,2476.57,0,Services,,Invoice,BACS,No,10/10/2022 00:00,2022,7,2210-03,K1515,Building Maintenance,D6004,Services,DBX45,Property Services,DBX,Support Service and Management Costs,DB,Children's Social Care,E,Childrens and Education Services
GUILDFORD BOROUGH COUNCIL,Building Maintenance,1000451,AMG Electrical Ltd,18/10/2022,30084656,1040.36,0,Materials,,Invoice,BACS,No,10/10/2022 00:00,2022,7,2210-03,K1515,Building Maintenance,D2003,Materials,DBX45,Property Services,DBX,Support Service and Management Costs,DB,Children's Social Care,E,Childrens and Education Services
GUILDFORD BOROUGH COUNCIL,Building Maintenance,1000451,AMG Electrical Ltd,18/10/2022,30084723,2249.27,0,Services,,Invoice,BACS,No,12/10/2022 00:00,2022,7,2210-04,K1515,Building Maintenance,D6004,Services,DBX45,Property Services,DBX,Support Service and Management Costs,DB,Children's Social Care,E,Childrens and Education Services
GUILDFORD BOROUGH COUNCIL,Building Maintenance,1000451,AMG Electrical Ltd,18/10/2022,30084723,1282.16,0,Materials,,Invoice,BACS,No,12/10/2022 00:00,2022,7,2210-04,K1515,Building Maintenance,D2003,Materials,DBX45,Property Services,DBX,Support Service and Management Costs,DB,Children's Social Care,E,Childrens and Education Services
GUILDFORD BOROUGH COUNCIL,Renovations,1000518,Liquid Recruit Solutions Limited,18/10/2022,30081982,636.13,0,Contractor Payments,,Invoice,BACS,No,14/09/2022 00:00,2022,7,12192,N40292,Fire protection works,1233,Contractor Payments,,,,,,,,
GUILDFORD BOROUGH COUNCIL,Renovations,1000518,Liquid Recruit Solutions Limited,18/10/2022,30081982,636.13,0,Contractor Payments,,Invoice,BACS,No,14/09/2022 00:00,2022,7,12192,N40287,Electrical testing and smoke detectors,1233,Contractor Payments,,,,,,,,
GUILDFORD BOROUGH COUNCIL,Property,1000750,Collard Group Ltd,18/10/2022,30083346,30518.75,0,Consultants Fees,,Invoice,BACS,No,22/09/2022 00:00,2022,7,1159,P74040,Slyfield Area Regeneration Project,1221,Consultants Fees,XXX99,*** UNASSIGNED ***,WCC,CEC Recharges,WC,CEC Recharges,A,Central Services
GUILDFORD BOROUGH COUNCIL,Community Safety,1000800,ASB Help,18/10/2022,30083665,650,0,Specialist Services,,Invoice,BACS,No,21/09/2022 00:00,2022,7,COMMUNITYTRIGGERTRAINING110722,F5711,Community Safety Team,D6009,Specialist Services,CEH00,Community Safety (Safety Services),CEH,Community Safety (Safety Services),CE,Environmental & Regulatory Services,C,"Cultural, Environmental & Planning Services"
GUILDFORD BOROUGH COUNCIL,Inventories,100300,British Polythene Industries Ltd T/A RPC BPI Refuse,18/10/2022,30084028,14369.89,0,Purchases,Recycling Service Providers,Invoice,BACS,No,22/09/2022 00:00,2022,7,INR642515,I01001,Stocks,2591,Purchases,,,,,,,,
GUILDFORD BOROUGH COUNCIL,Property,127400,Chambers Runfold Plc,18/10/2022,30084031,300,0,Consultants Fees,Quarry And Aggregates Suppliers,Invoice,BACS,No,22/07/2022 00:00,2022,7,199395,P74040,Slyfield Area Regeneration Project,1221,Consultants Fees,XXX99,*** UNASSIGNED ***,WCC,CEC Recharges,WC,CEC Recharges,A,Central Services
GUILDFORD BOROUGH COUNCIL,Property,127400,Chambers Runfold Plc,18/10/2022,30084681,729.96,0,Consultants Fees,Quarry And Aggregates Suppliers,Invoice,BACS,No,18/07/2022 00:00,2022,7,199168,P74040,Slyfield Area Regeneration Project,1221,Consultants Fees,XXX99,*** UNASSIGNED ***,WCC,CEC Recharges,WC,CEC Recharges,A,Central Services
GUILDFORD BOROUGH COUNCIL,Tenant Services,150290,Clarke Gammon,18/10/2022,30084421,350,0,Valuers Fees,Property Letting And Estate Agents,Invoice,BACS,No,11/10/2022 00:00,2022,7,15310,M1151,Tenants Services (BHS),D6002,Valuers Fees,XXX99,*** UNASSIGNED ***,WCC,CEC Recharges,WC,CEC Recharges,A,Central Services
GUILDFORD BOROUGH COUNCIL,Parks Countryside Management,199700,HAGS -SMP Limited,18/10/2022,30084758,636,0,Materials,Playground Equipment Suppliers,Invoice,BACS,No,22/09/2022 00:00,2022,7,84889,A1300,Trees And Countryside,D2003,Materials,CCE00,Community Parks & Open Spaces,CCE,Open Spaces,CC,Cultural & Related Services,C,"Cultural, Environmental & Planning Services"
GUILDFORD BOROUGH COUNCIL,Executive - Miscellaneous,224940,Tetra Tech Environment Planning Transport Limited,18/10/2022,30083540,1630,0,Consultants Fees,Other Construction Consultants,Invoice,BACS,No,23/09/2022 00:00,2022,7,30041717,P79032,SMC (West) Phase 1,1221,Consultants Fees,XXX99,*** UNASSIGNED ***,WCC,CEC Recharges,WC,CEC Recharges,A,Central Services
GUILDFORD BOROUGH COUNCIL,Land Charges,230230,Surrey County Council,18/10/2022,30084675,6962.5,0,Services,Local Government [Uk Only],Invoice,BACS,No,12/10/2022 00:00,2022,7,9500308898,F4111,Local Land Charges,D6004,Services,CPD10,Local Development Framework inc Supplementary Planning Guidance,CPD,Planning Policy,CP,Planning and Development Services,C,"Cultural, Environmental & Planning Services"
GUILDFORD BOROUGH COUNCIL,Vehicle Maintenance,299800,Lister Wilder Ltd,18/10/2022,30082833,346.77,0,Repair And Maintenance Of Vehicles,Emergency And Other Specialist Vehicle Dealers,Invoice,BACS,No,21/09/2022 00:00,2022,7,520109,K5551,Fleet Workshops,C1002,Repair And Maintenance Of Vehicles,W3A48,Current Service Costs - Fleet Management,W3A,Current Service Costs adjustment,W3,Current Service Costs,W,Other Operating Income and Expenditure
GUILDFORD BOROUGH COUNCIL,Lead Specialist - HR,324350,Comensura Ltd,18/10/2022,30084688,41963.28,0,Agency,Other Recruitment Agencies And Service Providers,Invoice,BACS,No,09/10/2022 00:00,2022,7,1092579,G1161,Commensura Holding Account,A5191,Agency,,,,,,,,
GUILDFORD BOROUGH COUNCIL,Homelessness Support,411500,Citizens Advice Guildford,18/10/2022,30083394,63000,0,Grants And Subscriptions,Counselling Service Providers,Invoice,BACS,No,29/09/2022 00:00,2022,7,CAGA/90016122,C3311,Homelessness,D9001,Grants And Subscriptions,KGU00,Supporting People - Strategy,KGU,Supporting People,KG,Housing General Fund,K,Housing Services
GUILDFORD BOROUGH COUNCIL,Property,453690,Savills (L&P) Limited,18/10/2022,30084708,1645,0,Consultants Fees,Property Letting And Estate Agents,Invoice,BACS,No,30/08/2022 00:00,2022,7,INSU00254512,P74040,Slyfield Area Regeneration Project,1221,Consultants Fees,XXX99,*** UNASSIGNED ***,WCC,CEC Recharges,WC,CEC Recharges,A,Central Services
GUILDFORD BOROUGH COUNCIL,Executive - Miscellaneous,453690,Savills (L&P) Limited,18/10/2022,30084659,607.5,0,Consultants Fees,Property Letting And Estate Agents,Invoice,BACS,No,30/06/2022 00:00,2022,7,INSU00240171,P79100,Wuv - Allotment Relocation,1221,Consultants Fees,,,,,,,,
GUILDFORD BOROUGH COUNCIL,Executive - Miscellaneous,453690,Savills (L&P) Limited,18/10/2022,30084672,540,0,Consultants Fees,Property Letting And Estate Agents,Invoice,BACS,No,31/05/2022 00:00,2022,7,INSU00230570,P79100,Wuv - Allotment Relocation,1221,Consultants Fees,,,,,,,,
GUILDFORD BOROUGH COUNCIL,Day Services,604000,Apetito Ltd,18/10/2022,30084668,567.85,0,Catering,Frozen Food Suppliers,Invoice,BACS,No,31/08/2022 00:00,2022,7,9004030999,C8100,Community Hubs,D3001,Catering,KGU00,Supporting People - Strategy,KGU,Supporting People,KG,Housing General Fund,K,Housing Services
GUILDFORD BOROUGH COUNCIL,Community Meals and Transport,604000,Apetito Ltd,18/10/2022,30084657,10796.22,0,Catering,Frozen Food Suppliers,Invoice,BACS,No,31/08/2022 00:00,2022,7,9004013201,C8142,Community Meals Service,D3001,Catering,KGU00,Supporting People - Strategy,KGU,Supporting People,KG,Housing General Fund,K,Housing Services
GUILDFORD BOROUGH COUNCIL,Day Services,604000,Apetito Ltd,18/10/2022,30084658,750.39,0,Catering,Frozen Food Suppliers,Invoice,BACS,No,31/05/2022 00:00,2022,7,9003943448,C8100,Community Hubs,D3001,Catering,KGU00,Supporting People - Strategy,KGU,Supporting People,KG,Housing General Fund,K,Housing Services
GUILDFORD BOROUGH COUNCIL,Day Services,604000,Apetito Ltd,18/10/2022,30084694,297.52,0,Catering,Frozen Food Suppliers,Invoice,BACS,No,30/06/2022 00:00,2022,7,9003988865,C8100,Community Hubs,D3001,Catering,KGU00,Supporting People - Strategy,KGU,Supporting People,KG,Housing General Fund,K,Housing Services
GUILDFORD BOROUGH COUNCIL,Inventories,634040,Prax Petroleum Ltd,18/10/2022,30082857,23710.7,0,Purchases,"Petrol, Diesel And Lubricant Suppliers",Invoice,BACS,No,21/09/2022 00:00,2022,7,200080634,I01001,Stocks,2591,Purchases,,,,,,,,
GUILDFORD BOROUGH COUNCIL,Vehicle Maintenance,639100,P G Bateman,18/10/2022,30084698,1100,0,Repair And Maintenance Of Vehicles,,Invoice,BACS,No,13/09/2022 00:00,2022,7,3969,K5551,Fleet Workshops,C1002,Repair And Maintenance Of Vehicles,W3A48,Current Service Costs - Fleet Management,W3A,Current Service Costs adjustment,W3,Current Service Costs,W,Other Operating Income and Expenditure
GUILDFORD BOROUGH COUNCIL,Vehicle Maintenance,639100,P G Bateman,18/10/2022,30084639,400,0,Repair And Maintenance Of Vehicles,,Invoice,BACS,No,05/09/2022 00:00,2022,7,3968,K5551,Fleet Workshops,C1002,Repair And Maintenance Of Vehicles,W3A48,Current Service Costs - Fleet Management,W3A,Current Service Costs adjustment,W3,Current Service Costs,W,Other Operating Income and Expenditure
GUILDFORD BOROUGH COUNCIL,Building Maintenance,686720,Surrey County Windows Ltd,18/10/2022,30084739,1065.34,0,Services,Window And Door Installers,Invoice,BACS,No,14/10/2022 00:00,2022,7,95,K1515,Building Maintenance,D6004,Services,DBX45,Property Services,DBX,Support Service and Management Costs,DB,Children's Social Care,E,Childrens and Education Services
GUILDFORD BOROUGH COUNCIL,Building Maintenance,686720,Surrey County Windows Ltd,18/10/2022,30084739,860.3,0,Materials,Window And Door Installers,Invoice,BACS,No,14/10/2022 00:00,2022,7,95,K1515,Building Maintenance,D2003,Materials,DBX45,Property Services,DBX,Support Service and Management Costs,DB,Children's Social Care,E,Childrens and Education Services
GUILDFORD BOROUGH COUNCIL,Building Maintenance,713710,D G Property Refurbishment Ltd,18/10/2022,30084702,1600,0,Services,Restoration Specialists,Invoice,BACS,No,10/10/2022 00:00,2022,7,157,K1515,Building Maintenance,D6004,Services,DBX45,Property Services,DBX,Support Service and Management Costs,DB,Children's Social Care,E,Childrens and Education Services
GUILDFORD BOROUGH COUNCIL,Building Maintenance,713710,D G Property Refurbishment Ltd,18/10/2022,30084702,1815.21,0,Materials,Restoration Specialists,Invoice,BACS,No,10/10/2022 00:00,2022,7,157,K1515,Building Maintenance,D2003,Materials,DBX45,Property Services,DBX,Support Service and Management Costs,DB,Children's Social Care,E,Childrens and Education Services
GUILDFORD BOROUGH COUNCIL,Vehicle Maintenance,720900,Rossetts (UK) Ltd,18/10/2022,30082787,700,0,Repair And Maintenance Of Vehicles,Truck And Bus Dealers,Invoice,BACS,No,23/09/2022 00:00,2022,7,52575138,K5551,Fleet Workshops,C1002,Repair And Maintenance Of Vehicles,W3A48,Current Service Costs - Fleet Management,W3A,Current Service Costs adjustment,W3,Current Service Costs,W,Other Operating Income and Expenditure
GUILDFORD BOROUGH COUNCIL,Taxi Licensing,722890,Licence Check Ltd,18/10/2022,30084747,1500,0,Furniture,Other Information Service Providers,Invoice,BACS,No,15/09/2022 00:00,2022,7,21863,H1108,Hackney Carriage & Private Hire Vehicles,D2002,Furniture,CEE70,Taxi Licensing,CEE,Environmental Health (Regulatory Services),CE,Environmental & Regulatory Services,C,"Cultural, Environmental & Planning Services"
GUILDFORD BOROUGH COUNCIL,Responsive & Planned Maintenance,729420,Morgan Hunt UK Limited,18/10/2022,30083250,1846.6,0,Agency,Other Recruitment Agencies And Service Providers,Invoice,BACS,No,25/09/2022 00:00,2022,7,1287600,M5111,Repairs-Admin (BHS),A5191,Agency,XXX99,*** UNASSIGNED ***,WCC,CEC Recharges,WC,CEC Recharges,A,Central Services
GUILDFORD BOROUGH COUNCIL,Bid Revenue Account,755160,Elevate Guildford Ltd,18/10/2022,30084357,170000,0,Payments To Elevate Guildford,Other Travel And Tourism Service Providers,Invoice,BACS,No,23/09/2022 00:00,2022,7,99,R5501,Bid Revenue Account,P1415,Payments To Elevate Guildford,,,,,,,,
GUILDFORD BOROUGH COUNCIL,Countryside and Parks Services,766060,AGB Contractors Limited,18/10/2022,30084734,2200,0,GF Assets - Maintenance,General Builders,Invoice,BACS,No,13/10/2022 00:00,2022,7,221013A,A1250,Stoke Park,B1004,GF Assets - Maintenance,CCE00,Community Parks & Open Spaces,CCE,Open Spaces,CC,Cultural & Related Services,C,"Cultural, Environmental & Planning Services"
GUILDFORD BOROUGH COUNCIL,Building Maintenance,769600,RGB Decorating Limited (CIS),18/10/2022,30084642,9287,0,Services,Painters And Decorators,Invoice,BACS,No,10/10/2022 00:00,2022,7,1722-23,K1515,Building Maintenance,D6004,Services,DBX45,Property Services,DBX,Support Service and Management Costs,DB,Children's Social Care,E,Childrens and Education Services
GUILDFORD BOROUGH COUNCIL,Tourism & Development,774200,Surrey Chambers Of Commerce Ltd,18/10/2022,30083940,1220,0,Grants And Subscriptions,Professional Associations,Invoice,BACS,No,21/09/2022 00:00,2022,7,183989,F5525,Economic Development,D9001,Grants And Subscriptions,CCF00,"Tourism Policy, Marketing & Development",CCF,Tourism,CC,Cultural & Related Services,C,"Cultural, Environmental & Planning Services"
GUILDFORD BOROUGH COUNCIL,Building Maintenance,846250,Revive Services (CIS),18/10/2022,30084691,2500,0,Services,Other Cleaning And Janitorial Service Providers,Invoice,BACS,No,10/10/2022 00:00,2022,7,179,K1515,Building Maintenance,D6004,Services,DBX45,Property Services,DBX,Support Service and Management Costs,DB,Children's Social Care,E,Childrens and Education Services
GUILDFORD BOROUGH COUNCIL,Private Sector Housing Maintenance,870700,Architectural Survey Services Ltd,18/10/2022,30078771,661.95,0,Contractors,Architects And Design Consultants,Invoice,BACS,No,09/08/2022 00:00,2022,7,885,C5132,Care And Repair (Detr),D6012,Contractors,KGU00,Supporting People - Strategy,KGU,Supporting People,KG,Housing General Fund,K,Housing Services
GUILDFORD BOROUGH COUNCIL,Vehicle Maintenance,882220,Fuller Tyres Limited,18/10/2022,30084686,258,0,Repair And Maintenance Of Vehicles,Other Vehicle Equipment Providers,Invoice,BACS,No,15/09/2022 00:00,2022,7,FTI-39567,K5551,Fleet Workshops,C1002,Repair And Maintenance Of Vehicles,W3A48,Current Service Costs - Fleet Management,W3A,Current Service Costs adjustment,W3,Current Service Costs,W,Other Operating Income and Expenditure
GUILDFORD BOROUGH COUNCIL,Homelessness Support,898090,Top Mill Limited,18/10/2022,30082586,481,0,Emergency Accomodation,Hotels,Invoice,BACS,No,22/09/2022 00:00,2022,7,4417,C3311,Homelessness,D8009,Emergency Accomodation,KGU00,Supporting People - Strategy,KGU,Supporting People,KG,Housing General Fund,K,Housing Services
GUILDFORD BOROUGH COUNCIL,Homelessness Support,898090,Top Mill Limited,18/10/2022,30082586,369,0,Emergency Accomodation,Hotels,Invoice,BACS,No,22/09/2022 00:00,2022,7,4417,C3311,Homelessness,D8009,Emergency Accomodation,KGU00,Supporting People - Strategy,KGU,Supporting People,KG,Housing General Fund,K,Housing Services
GUILDFORD BOROUGH COUNCIL,Homelessness Support,898090,Top Mill Limited,18/10/2022,30082612,333,0,Emergency Accomodation,Hotels,Invoice,BACS,No,20/09/2022 00:00,2022,7,4412,C3311,Homelessness,D8009,Emergency Accomodation,KGU00,Supporting People - Strategy,KGU,Supporting People,KG,Housing General Fund,K,Housing Services
GUILDFORD BOROUGH COUNCIL,Building Maintenance,921860,Cinnamon Construction Limited (CIS),18/10/2022,30084648,3447,0,Services,General Builders,Invoice,BACS,No,11/10/2022 00:00,2022,7,129,K1515,Building Maintenance,D6004,Services,DBX45,Property Services,DBX,Support Service and Management Costs,DB,Children's Social Care,E,Childrens and Education Services
GUILDFORD BOROUGH COUNCIL,Building Maintenance,921860,Cinnamon Construction Limited (CIS),18/10/2022,30084697,3010,0,Services,General Builders,Invoice,BACS,No,11/10/2022 00:00,2022,7,652022,K1515,Building Maintenance,D6004,Services,DBX45,Property Services,DBX,Support Service and Management Costs,DB,Children's Social Care,E,Childrens and Education Services
GUILDFORD BOROUGH COUNCIL,Private Sector Housing Maintenance,938540,BJC Design (Southeast) Ltd,18/10/2022,30082369,756.44,0,Contractors,Surveyors And Inspectors,Invoice,BACS,No,21/09/2022 00:00,2022,7,898,C5132,Care And Repair (Detr),D6012,Contractors,KGU00,Supporting People - Strategy,KGU,Supporting People,KG,Housing General Fund,K,Housing Services
GUILDFORD BOROUGH COUNCIL,Private Sector Housing Maintenance,938540,BJC Design (Southeast) Ltd,18/10/2022,30081981,1100.11,0,Contractors,Surveyors And Inspectors,Invoice,BACS,No,13/09/2022 00:00,2022,7,895,C5132,Care And Repair (Detr),D6012,Contractors,KGU00,Supporting People - Strategy,KGU,Supporting People,KG,Housing General Fund,K,Housing Services
GUILDFORD BOROUGH COUNCIL,Private Sector Housing Maintenance,938540,BJC Design (Southeast) Ltd,18/10/2022,30079103,440,0,Contractors,Surveyors And Inspectors,Invoice,BACS,No,11/08/2022 00:00,2022,7,885,C5132,Care And Repair (Detr),D6012,Contractors,KGU00,Supporting People - Strategy,KGU,Supporting People,KG,Housing General Fund,K,Housing Services
GUILDFORD BOROUGH COUNCIL,Private Sector Housing Maintenance,938540,BJC Design (Southeast) Ltd,18/10/2022,30080871,3107.5,0,Services,Surveyors And Inspectors,Invoice,BACS,No,20/04/2022 00:00,2022,7,INV000830,C5132,Care And Repair (Detr),D6004,Services,KGU00,Supporting People - Strategy,KGU,Supporting People,KG,Housing General Fund,K,Housing Services
GUILDFORD BOROUGH COUNCIL,Private Sector Housing Maintenance,938540,BJC Design (Southeast) Ltd,18/10/2022,30084767,773,0,Contractors,Surveyors And Inspectors,Invoice,BACS,No,09/03/2022 00:00,2022,7,806,C5132,Care And Repair (Detr),D6012,Contractors,KGU00,Supporting People - Strategy,KGU,Supporting People,KG,Housing General Fund,K,Housing Services
GUILDFORD BOROUGH COUNCIL,Private Sector Housing Maintenance,938540,BJC Design (Southeast) Ltd,18/10/2022,30084768,611.23,0,Contractors,Surveyors And Inspectors,Invoice,BACS,No,17/03/2022 00:00,2022,7,BJC Design Invoice 809 Cane,C5132,Care And Repair (Detr),D6012,Contractors,KGU00,Supporting People - Strategy,KGU,Supporting People,KG,Housing General Fund,K,Housing Services
GUILDFORD BOROUGH COUNCIL,Woking Road Depot,941010,A1 Wokingham Wet Waste Limited Ltd,18/10/2022,30083569,1778.8,0,Services,Car And Van Parts Suppliers,Invoice,BACS,No,21/09/2022 00:00,2022,7,1240,B4452,Woking Road Depot,D6004,Services,W3A48,Current Service Costs - Fleet Management,W3A,Current Service Costs adjustment,W3,Current Service Costs,W,Other Operating Income and Expenditure
GUILDFORD BOROUGH COUNCIL,Building Maintenance,946970,Davis Property Services GU Limited (CIS),18/10/2022,30084762,12568.68,0,Services,Roofers,Invoice,BACS,No,11/10/2022 00:00,2022,7,2248,K1515,Building Maintenance,D6004,Services,DBX45,Property Services,DBX,Support Service and Management Costs,DB,Children's Social Care,E,Childrens and Education Services
GUILDFORD BOROUGH COUNCIL,Building Maintenance,946970,Davis Property Services GU Limited (CIS),18/10/2022,30084746,1472.3,0,Services,Roofers,Invoice,BACS,No,12/10/2022 00:00,2022,7,2250,K1515,Building Maintenance,D6004,Services,DBX45,Property Services,DBX,Support Service and Management Costs,DB,Children's Social Care,E,Childrens and Education Services
GUILDFORD BOROUGH COUNCIL,Building Maintenance,946970,Davis Property Services GU Limited (CIS),18/10/2022,30084724,15635.8,0,Services,Roofers,Invoice,BACS,No,11/10/2022 00:00,2022,7,2249,K1515,Building Maintenance,D6004,Services,DBX45,Property Services,DBX,Support Service and Management Costs,DB,Children's Social Care,E,Childrens and Education Services
GUILDFORD BOROUGH COUNCIL,Countryside and Parks Services,958530,Pierra Ltd (CIS),18/10/2022,30084646,10960.63,0,GF Assets - Maintenance,Other Construction Contractors,Invoice,BACS,No,29/09/2022 00:00,2022,7,3059,A1200,Sports Grounds,B1004,GF Assets - Maintenance,CCE00,Community Parks & Open Spaces,CCE,Open Spaces,CC,Cultural & Related Services,C,"Cultural, Environmental & Planning Services"
GUILDFORD BOROUGH COUNCIL,Building Maintenance,969700,A Star Maintenance Contractors Ltd (CIS),18/10/2022,30084676,3000,0,Services,Property Maintenance Contractors,Invoice,BACS,No,06/10/2022 00:00,2022,7,14429,K1515,Building Maintenance,D6004,Services,DBX45,Property Services,DBX,Support Service and Management Costs,DB,Children's Social Care,E,Childrens and Education Services
GUILDFORD BOROUGH COUNCIL,Building Maintenance,969700,A Star Maintenance Contractors Ltd (CIS),18/10/2022,30084676,6345.57,0,Materials,Property Maintenance Contractors,Invoice,BACS,No,06/10/2022 00:00,2022,7,14429,K1515,Building Maintenance,D2003,Materials,DBX45,Property Services,DBX,Support Service and Management Costs,DB,Children's Social Care,E,Childrens and Education Services
GUILDFORD BOROUGH COUNCIL,Building Maintenance,969700,A Star Maintenance Contractors Ltd (CIS),18/10/2022,30084690,1000,0,Services,Property Maintenance Contractors,Invoice,BACS,No,06/10/2022 00:00,2022,7,14428,K1515,Building Maintenance,D6004,Services,DBX45,Property Services,DBX,Support Service and Management Costs,DB,Children's Social Care,E,Childrens and Education Services
GUILDFORD BOROUGH COUNCIL,Building Maintenance,969700,A Star Maintenance Contractors Ltd (CIS),18/10/2022,30084690,525.8,0,Materials,Property Maintenance Contractors,Invoice,BACS,No,06/10/2022 00:00,2022,7,14428,K1515,Building Maintenance,D2003,Materials,DBX45,Property Services,DBX,Support Service and Management Costs,DB,Children's Social Care,E,Childrens and Education Services
GUILDFORD BOROUGH COUNCIL,Vehicle Maintenance,984320,Partsplusuk,18/10/2022,30082584,840.1,0,Repair And Maintenance Of Vehicles,Third Party Supplier,Invoice,BACS,No,21/09/2022 00:00,2022,7,20783571,K5551,Fleet Workshops,C1002,Repair And Maintenance Of Vehicles,W3A48,Current Service Costs - Fleet Management,W3A,Current Service Costs adjustment,W3,Current Service Costs,W,Other Operating Income and Expenditure
GUILDFORD BOROUGH COUNCIL,Grants,1000020,Lifespan Solutions Ltd.,20/10/2022,30084944,6170.32,0,Grants To Private Owners,,Invoice,BACS,No,12/09/2022 00:00,2022,7,Lifespan Solutions Guild/09,N51008,Mandatory DFG,1311,Grants To Private Owners,XXX99,*** UNASSIGNED ***,WCC,CEC Recharges,WC,CEC Recharges,A,Central Services
GUILDFORD BOROUGH COUNCIL,Vehicle Maintenance,1000043,NCH Lubricants,20/10/2022,30082869,678.3,0,Equipment,,Invoice,BACS,No,27/09/2022 00:00,2022,7,1200042089,K5551,Fleet Workshops,D2001,Equipment,W3A48,Current Service Costs - Fleet Management,W3A,Current Service Costs adjustment,W3,Current Service Costs,W,Other Operating Income and Expenditure
GUILDFORD BOROUGH COUNCIL,Millmead House,1000215,Dolphin Solutions Ltd,20/10/2022,30085094,598.6,0,Furniture,,Invoice,BACS,No,17/10/2022 00:00,2022,7,201038,G7511,Millmead House,D2002,Furniture,DBX70,Other Management Costs,DBX,Support Service and Management Costs,DB,Children's Social Care,E,Childrens and Education Services
GUILDFORD BOROUGH COUNCIL,Homelessness Support,1000479,Legacy Lodgings Ltd,20/10/2022,30083478,309.19,0,Emergency Accomodation,,Invoice,BACS,No,26/09/2022 00:00,2022,7,INV-0616,C3311,Homelessness,D8009,Emergency Accomodation,KGU00,Supporting People - Strategy,KGU,Supporting People,KG,Housing General Fund,K,Housing Services
GUILDFORD BOROUGH COUNCIL,Homelessness Support,1000479,Legacy Lodgings Ltd,20/10/2022,30083492,280,0,Emergency Accomodation,,Invoice,BACS,No,26/09/2022 00:00,2022,7,INV-0602,C3311,Homelessness,D8009,Emergency Accomodation,KGU00,Supporting People - Strategy,KGU,Supporting People,KG,Housing General Fund,K,Housing Services
GUILDFORD BOROUGH COUNCIL,Grants,1000531,Vistar Construction Ltd (Grant payments only),20/10/2022,30084940,6008,0,Grants To Private Owners,,Invoice,BACS,No,27/09/2022 00:00,2022,7,Vistar 4687,N51008,Mandatory DFG,1311,Grants To Private Owners,XXX99,*** UNASSIGNED ***,WCC,CEC Recharges,WC,CEC Recharges,A,Central Services
GUILDFORD BOROUGH COUNCIL,Events,1000541,Geared Up Cycles Limited,20/10/2022,30083378,325,0,Expenses,,Invoice,BACS,No,27/09/2022 00:00,2022,7,2022027,A1850,Parks Events And Bookings,D8004,Expenses,CCD00,Community Centres and Public Halls,CCD,Recreation & Sport,CC,Cultural & Related Services,C,"Cultural, Environmental & Planning Services"
GUILDFORD BOROUGH COUNCIL,Renovations,1000554,Seville Developments,20/10/2022,30084966,1303.68,0,Contractor Payments,,Invoice,BACS,No,14/10/2022 00:00,2022,7,6046,N40287,Electrical testing and smoke detectors,1233,Contractor Payments,,,,,,,,
GUILDFORD BOROUGH COUNCIL,Renovations,1000554,Seville Developments,20/10/2022,30084966,745.83,0,Contractor Payments,,Invoice,BACS,No,14/10/2022 00:00,2022,7,6046,N40287,Electrical testing and smoke detectors,1233,Contractor Payments,,,,,,,,
GUILDFORD BOROUGH COUNCIL,Renovations,1000554,Seville Developments,20/10/2022,30084966,795.99,0,Contractor Payments,,Invoice,BACS,No,14/10/2022 00:00,2022,7,6046,N40287,Electrical testing and smoke detectors,1233,Contractor Payments,,,,,,,,
GUILDFORD BOROUGH COUNCIL,Renovations,1000554,Seville Developments,20/10/2022,30084966,1072.8,0,Contractor Payments,,Invoice,BACS,No,14/10/2022 00:00,2022,7,6046,N40287,Electrical testing and smoke detectors,1233,Contractor Payments,,,,,,,,
GUILDFORD BOROUGH COUNCIL,Renovations,1000554,Seville Developments,20/10/2022,30084966,1651.35,0,Contractor Payments,,Invoice,BACS,No,14/10/2022 00:00,2022,7,6046,N40287,Electrical testing and smoke detectors,1233,Contractor Payments,,,,,,,,
GUILDFORD BOROUGH COUNCIL,Renovations,1000554,Seville Developments,20/10/2022,30084966,1128.8,0,Contractor Payments,,Invoice,BACS,No,14/10/2022 00:00,2022,7,6046,N40287,Electrical testing and smoke detectors,1233,Contractor Payments,,,,,,,,
GUILDFORD BOROUGH COUNCIL,Renovations,1000554,Seville Developments,20/10/2022,30084966,889.07,0,Contractor Payments,,Invoice,BACS,No,14/10/2022 00:00,2022,7,6046,N40287,Electrical testing and smoke detectors,1233,Contractor Payments,,,,,,,,
GUILDFORD BOROUGH COUNCIL,Renovations,1000554,Seville Developments,20/10/2022,30084966,1522.1,0,Contractor Payments,,Invoice,BACS,No,14/10/2022 00:00,2022,7,6046,N40287,Electrical testing and smoke detectors,1233,Contractor Payments,,,,,,,,
GUILDFORD BOROUGH COUNCIL,Renovations,1000554,Seville Developments,20/10/2022,30084966,1005.82,0,Contractor Payments,,Invoice,BACS,No,14/10/2022 00:00,2022,7,6046,N40287,Electrical testing and smoke detectors,1233,Contractor Payments,,,,,,,,
GUILDFORD BOROUGH COUNCIL,Renovations,1000554,Seville Developments,20/10/2022,30084966,1480.69,0,Contractor Payments,,Invoice,BACS,No,14/10/2022 00:00,2022,7,6046,N40287,Electrical testing and smoke detectors,1233,Contractor Payments,,,,,,,,
GUILDFORD BOROUGH COUNCIL,Renovations,1000554,Seville Developments,20/10/2022,30084966,711.08,0,Contractor Payments,,Invoice,BACS,No,14/10/2022 00:00,2022,7,6046,N40287,Electrical testing and smoke detectors,1233,Contractor Payments,,,,,,,,
GUILDFORD BOROUGH COUNCIL,Renovations,1000554,Seville Developments,20/10/2022,30084966,1053.32,0,Contractor Payments,,Invoice,BACS,No,14/10/2022 00:00,2022,7,6046,N40287,Electrical testing and smoke detectors,1233,Contractor Payments,,,,,,,,
GUILDFORD BOROUGH COUNCIL,Renovations,1000554,Seville Developments,20/10/2022,30084966,1969.75,0,Contractor Payments,,Invoice,BACS,No,14/10/2022 00:00,2022,7,6046,N40287,Electrical testing and smoke detectors,1233,Contractor Payments,,,,,,,,
GUILDFORD BOROUGH COUNCIL,Renovations,1000554,Seville Developments,20/10/2022,30084966,989.25,0,Contractor Payments,,Invoice,BACS,No,14/10/2022 00:00,2022,7,6046,N40287,Electrical testing and smoke detectors,1233,Contractor Payments,,,,,,,,
GUILDFORD BOROUGH COUNCIL,Renovations,1000554,Seville Developments,20/10/2022,30084966,1435.38,0,Contractor Payments,,Invoice,BACS,No,14/10/2022 00:00,2022,7,6046,N40287,Electrical testing and smoke detectors,1233,Contractor Payments,,,,,,,,
GUILDFORD BOROUGH COUNCIL,Renovations,1000554,Seville Developments,20/10/2022,30084966,1601.25,0,Contractor Payments,,Invoice,BACS,No,14/10/2022 00:00,2022,7,6046,N40287,Electrical testing and smoke detectors,1233,Contractor Payments,,,,,,,,
GUILDFORD BOROUGH COUNCIL,Renovations,1000554,Seville Developments,20/10/2022,30084966,1226.94,0,Contractor Payments,,Invoice,BACS,No,14/10/2022 00:00,2022,7,6046,N40287,Electrical testing and smoke detectors,1233,Contractor Payments,,,,,,,,
GUILDFORD BOROUGH COUNCIL,Renovations,1000554,Seville Developments,20/10/2022,30084966,1096.38,0,Contractor Payments,,Invoice,BACS,No,14/10/2022 00:00,2022,7,6046,N40287,Electrical testing and smoke detectors,1233,Contractor Payments,,,,,,,,
GUILDFORD BOROUGH COUNCIL,Renovations,1000554,Seville Developments,20/10/2022,30084966,1019.13,0,Contractor Payments,,Invoice,BACS,No,14/10/2022 00:00,2022,7,6046,N40287,Electrical testing and smoke detectors,1233,Contractor Payments,,,,,,,,
GUILDFORD BOROUGH COUNCIL,Renovations,1000554,Seville Developments,20/10/2022,30084966,352.72,0,Contractor Payments,,Invoice,BACS,No,14/10/2022 00:00,2022,7,6046,N40287,Electrical testing and smoke detectors,1233,Contractor Payments,,,,,,,,
GUILDFORD BOROUGH COUNCIL,Renovations,1000554,Seville Developments,20/10/2022,30084966,594.8,0,Contractor Payments,,Invoice,BACS,No,14/10/2022 00:00,2022,7,6046,N40287,Electrical testing and smoke detectors,1233,Contractor Payments,,,,,,,,
GUILDFORD BOROUGH COUNCIL,Renovations,1000554,Seville Developments,20/10/2022,30084966,1219.33,0,Contractor Payments,,Invoice,BACS,No,14/10/2022 00:00,2022,7,6046,N40287,Electrical testing and smoke detectors,1233,Contractor Payments,,,,,,,,
GUILDFORD BOROUGH COUNCIL,Renovations,1000554,Seville Developments,20/10/2022,30084966,1784.39,0,Contractor Payments,,Invoice,BACS,No,14/10/2022 00:00,2022,7,6046,N40287,Electrical testing and smoke detectors,1233,Contractor Payments,,,,,,,,
GUILDFORD BOROUGH COUNCIL,Renovations,1000554,Seville Developments,20/10/2022,30084966,1854.75,0,Contractor Payments,,Invoice,BACS,No,14/10/2022 00:00,2022,7,6046,N40287,Electrical testing and smoke detectors,1233,Contractor Payments,,,,,,,,
GUILDFORD BOROUGH COUNCIL,Renovations,1000554,Seville Developments,20/10/2022,30084966,927.72,0,Contractor Payments,,Invoice,BACS,No,14/10/2022 00:00,2022,7,6046,N40287,Electrical testing and smoke detectors,1233,Contractor Payments,,,,,,,,
GUILDFORD BOROUGH COUNCIL,Renovations,1000554,Seville Developments,20/10/2022,30084966,871.42,0,Contractor Payments,,Invoice,BACS,No,14/10/2022 00:00,2022,7,6046,N40287,Electrical testing and smoke detectors,1233,Contractor Payments,,,,,,,,
GUILDFORD BOROUGH COUNCIL,Renovations,1000554,Seville Developments,20/10/2022,30084966,348.25,0,Contractor Payments,,Invoice,BACS,No,14/10/2022 00:00,2022,7,6046,N40287,Electrical testing and smoke detectors,1233,Contractor Payments,,,,,,,,
GUILDFORD BOROUGH COUNCIL,Renovations,1000554,Seville Developments,20/10/2022,30084966,1234.17,0,Contractor Payments,,Invoice,BACS,No,14/10/2022 00:00,2022,7,6046,N40287,Electrical testing and smoke detectors,1233,Contractor Payments,,,,,,,,
GUILDFORD BOROUGH COUNCIL,Renovations,1000554,Seville Developments,20/10/2022,30084966,1133.84,0,Contractor Payments,,Invoice,BACS,No,14/10/2022 00:00,2022,7,6046,N40287,Electrical testing and smoke detectors,1233,Contractor Payments,,,,,,,,
GUILDFORD BOROUGH COUNCIL,Renovations,1000554,Seville Developments,20/10/2022,30084966,1188.24,0,Contractor Payments,,Invoice,BACS,No,14/10/2022 00:00,2022,7,6046,N40287,Electrical testing and smoke detectors,1233,Contractor Payments,,,,,,,,
GUILDFORD BOROUGH COUNCIL,Renovations,1000554,Seville Developments,20/10/2022,30084966,786.3,0,Contractor Payments,,Invoice,BACS,No,14/10/2022 00:00,2022,7,6046,N40287,Electrical testing and smoke detectors,1233,Contractor Payments,,,,,,,,
GUILDFORD BOROUGH COUNCIL,Renovations,1000554,Seville Developments,20/10/2022,30084966,546.12,0,Contractor Payments,,Invoice,BACS,No,14/10/2022 00:00,2022,7,6046,N40287,Electrical testing and smoke detectors,1233,Contractor Payments,,,,,,,,
GUILDFORD BOROUGH COUNCIL,Renovations,1000554,Seville Developments,20/10/2022,30084966,1225.85,0,Contractor Payments,,Invoice,BACS,No,14/10/2022 00:00,2022,7,6046,N40287,Electrical testing and smoke detectors,1233,Contractor Payments,,,,,,,,
GUILDFORD BOROUGH COUNCIL,Renovations,1000554,Seville Developments,20/10/2022,30084966,2171.62,0,Contractor Payments,,Invoice,BACS,No,14/10/2022 00:00,2022,7,6046,N40287,Electrical testing and smoke detectors,1233,Contractor Payments,,,,,,,,
GUILDFORD BOROUGH COUNCIL,Renovations,1000554,Seville Developments,20/10/2022,30084966,632.53,0,Contractor Payments,,Invoice,BACS,No,14/10/2022 00:00,2022,7,6046,N40287,Electrical testing and smoke detectors,1233,Contractor Payments,,,,,,,,
GUILDFORD BOROUGH COUNCIL,Renovations,1000554,Seville Developments,20/10/2022,30084967,48516.22,0,Contractor Payments,,Invoice,BACS,No,17/10/2022 00:00,2022,7,6048,N40292,Fire protection works,1233,Contractor Payments,,,,,,,,
GUILDFORD BOROUGH COUNCIL,Development Control,1000637,Chris Blandford Associates Limited,20/10/2022,30084009,10840,0,Consultancy,,Invoice,BACS,No,26/09/2022 00:00,2022,7,6672/111401,D5100,Development Control - Fee Earn,D6001,Consultancy,CPC00,Development Control Advice,CPC,Development Control,CP,Planning and Development Services,C,"Cultural, Environmental & Planning Services"
GUILDFORD BOROUGH COUNCIL,Development Control,1000637,Chris Blandford Associates Limited,20/10/2022,30084009,2391.44,0,Consultancy,,Invoice,BACS,No,26/09/2022 00:00,2022,7,6672/111401,D5100,Development Control - Fee Earn,D6001,Consultancy,CPC00,Development Control Advice,CPC,Development Control,CP,Planning and Development Services,C,"Cultural, Environmental & Planning Services"
GUILDFORD BOROUGH COUNCIL,Property,1000710,Tanglewood Development Consultancy Ltd,20/10/2022,30084917,14000,0,Consultants Fees,,Invoice,BACS,No,01/10/2022 00:00,2022,7,GBC/06/17102022,P74040,Slyfield Area Regeneration Project,1221,Consultants Fees,XXX99,*** UNASSIGNED ***,WCC,CEC Recharges,WC,CEC Recharges,A,Central Services
GUILDFORD BOROUGH COUNCIL,Woking Road Depot,111790,GHL Liftrucks Ltd,20/10/2022,30084018,390,0,Services,Fork Lift Truck Suppliers,Invoice,BACS,No,26/09/2022 00:00,2022,7,4112227,B4452,Woking Road Depot,D6004,Services,W3A48,Current Service Costs - Fleet Management,W3A,Current Service Costs adjustment,W3,Current Service Costs,W,Other Operating Income and Expenditure
GUILDFORD BOROUGH COUNCIL,Building Maintenance,113100,C A Moore (CIS),20/10/2022,30085052,3600,0,Services,Joiners And Carpenters,Invoice,BACS,No,17/10/2022 00:00,2022,7,612,K1515,Building Maintenance,D6004,Services,DBX45,Property Services,DBX,Support Service and Management Costs,DB,Children's Social Care,E,Childrens and Education Services
GUILDFORD BOROUGH COUNCIL,Building Maintenance,113100,C A Moore (CIS),20/10/2022,30085052,4000,0,Materials,Joiners And Carpenters,Invoice,BACS,No,17/10/2022 00:00,2022,7,612,K1515,Building Maintenance,D2003,Materials,DBX45,Property Services,DBX,Support Service and Management Costs,DB,Children's Social Care,E,Childrens and Education Services
GUILDFORD BOROUGH COUNCIL,Off Street Parking,120400,Capita Business Services Ltd,20/10/2022,30083965,285,0,"Printing, Photocopying And Reprographics External",Managed And Outsourced Business Services Providers,Invoice,BACS,No,27/09/2022 00:00,2022,7,6004124536,B2111,Car Parks - Administration,D5005,"Printing, Photocopying And Reprographics External",HTP10,Off-Street Parking,HTP,Parking Services,HT,"Highways, Roads and Transport Services",H,"Highways, Roads and Transport Services"
GUILDFORD BOROUGH COUNCIL,On Street Parking,120400,Capita Business Services Ltd,20/10/2022,30083966,714,0,"Printing, Photocopying And Reprographics External",Managed And Outsourced Business Services Providers,Invoice,BACS,No,27/09/2022 00:00,2022,7,6004124517,B2217,Guildford On-Street,D5005,"Printing, Photocopying And Reprographics External",HTP00,On-Street Parking,HTP,Parking Services,HT,"Highways, Roads and Transport Services",H,"Highways, Roads and Transport Services"
GUILDFORD BOROUGH COUNCIL,Modern Homes,129090,Breyer Group Plc,20/10/2022,30084951,30051.64,0,Contractor Payments,General Builders,Invoice,BACS,No,10/10/2022 00:00,2022,7,55327,N42068,"Kitchen, bathroom and electrical upgrades",1233,Contractor Payments,,,,,,,,
GUILDFORD BOROUGH COUNCIL,Development Control,156250,Hays Specialist Recruitment Limited,20/10/2022,30083256,1126.51,0,Consultancy,Other Recruitment Agencies And Service Providers,Invoice,BACS,No,27/09/2022 00:00,2022,7,1012484974,D5100,Development Control - Fee Earn,D6001,Consultancy,CPC00,Development Control Advice,CPC,Development Control,CP,Planning and Development Services,C,"Cultural, Environmental & Planning Services"
GUILDFORD BOROUGH COUNCIL,Inventories,178400,Akw Medi-Care Limited,20/10/2022,30083667,879.06,0,Purchases,Mobility Disability Equipment Suppliers,Invoice,BACS,No,27/09/2022 00:00,2022,7,2089101,I01001,Stocks,2591,Purchases,,,,,,,,
GUILDFORD BOROUGH COUNCIL,Inventories,178400,Akw Medi-Care Limited,20/10/2022,30083677,309.19,0,Purchases,Mobility Disability Equipment Suppliers,Invoice,BACS,No,27/09/2022 00:00,2022,7,2089114,I01001,Stocks,2591,Purchases,,,,,,,,
GUILDFORD BOROUGH COUNCIL,Inventories,178400,Akw Medi-Care Limited,20/10/2022,30083687,298.64,0,Purchases,Mobility Disability Equipment Suppliers,Invoice,BACS,No,27/09/2022 00:00,2022,7,2089097,I01001,Stocks,2591,Purchases,,,,,,,,
GUILDFORD BOROUGH COUNCIL,Development Control,218050,Bevan Brittan LLP,20/10/2022,30084017,444,0,Consultancy,Solicitors [Uk Only],Invoice,BACS,No,26/09/2022 00:00,2022,7,10199305,D5100,Development Control - Fee Earn,D6001,Consultancy,CPC00,Development Control Advice,CPC,Development Control,CP,Planning and Development Services,C,"Cultural, Environmental & Planning Services"
GUILDFORD BOROUGH COUNCIL,Local Authority Short Term Creditors,230230,Surrey County Council,20/10/2022,30084362,165262.48,0,Current Years Expenditure -  Project,Local Government [Uk Only],Invoice,BACS,No,11/10/2022 00:00,2022,7,9500308541,L15000,Section 106,2238,Current Years Expenditure -  Project,,,,,,,,
GUILDFORD BOROUGH COUNCIL,Local Authority Short Term Creditors,230230,Surrey County Council,20/10/2022,30084362,6775.76,0,Current Years Expenditure -  Project,Local Government [Uk Only],Invoice,BACS,No,11/10/2022 00:00,2022,7,9500308541,L15000,Section 106,2238,Current Years Expenditure -  Project,,,,,,,,
GUILDFORD BOROUGH COUNCIL,Inventories,271200,Saint-Gobain Building Distribution Limited (Jewson),20/10/2022,30084384,466.84,0,Purchases,Builders Merchants,Invoice,BACS,No,26/09/2022 00:00,2022,7,0652/00799546,I01001,Stocks,2591,Purchases,,,,,,,,
GUILDFORD BOROUGH COUNCIL,Off Street Parking,446550,Eurosafe Solutions Ltd,20/10/2022,30084906,350,0,GF Assets - Maintenance,Personal Protective Equipment (Ppe) Suppliers,Invoice,BACS,No,07/10/2022 00:00,2022,7,51803,B2257,Leapale Road Mscp,B1004,GF Assets - Maintenance,HTP10,Off-Street Parking,HTP,Parking Services,HT,"Highways, Roads and Transport Services",H,"Highways, Roads and Transport Services"
GUILDFORD BOROUGH COUNCIL,Sheltered Housing,565040,Monitor Pest Control Ltd,20/10/2022,30085096,432,0,Cleaning Contractors,Pest And Vermin Control Service Providers,Invoice,BACS,No,27/09/2022 00:00,2022,7,INV-52985,M1515,Sheltered Accomodation,D6006,Cleaning Contractors,XXX99,*** UNASSIGNED ***,WCC,CEC Recharges,WC,CEC Recharges,A,Central Services
GUILDFORD BOROUGH COUNCIL,Business Support,667000,A.S.L. Ltd (CIS),20/10/2022,30085124,320,0,GF Assets - Maintenance,Sewerage And Drainage Service Providers,Invoice,BACS,No,18/10/2022 00:00,2022,7,72588,A8141,Park Barn Youth and Community Centre,B1004,GF Assets - Maintenance,CCD00,Community Centres and Public Halls,CCD,Recreation & Sport,CC,Cultural & Related Services,C,"Cultural, Environmental & Planning Services"
GUILDFORD BOROUGH COUNCIL,Off Street Parking,667000,A.S.L. Ltd (CIS),20/10/2022,30085089,2760,0,GF Assets - Maintenance,Sewerage And Drainage Service Providers,Invoice,BACS,No,19/10/2022 00:00,2022,7,72597,B2253,Millmead House Car Park,B1004,GF Assets - Maintenance,HTP10,Off-Street Parking,HTP,Parking Services,HT,"Highways, Roads and Transport Services",H,"Highways, Roads and Transport Services"
GUILDFORD BOROUGH COUNCIL,Responsive & Planned Maintenance,692680,TSG Building Services Plc,20/10/2022,30084955,4750,0,Asset Maintenance,General Builders,Invoice,BACS,No,30/09/2022 00:00,2022,7,0623-0424,M5115,Repairs-Other Reponsive (BHS),B1001,Asset Maintenance,XXX99,*** UNASSIGNED ***,WCC,CEC Recharges,WC,CEC Recharges,A,Central Services
GUILDFORD BOROUGH COUNCIL,Responsive & Planned Maintenance,692680,TSG Building Services Plc,20/10/2022,30084956,8631.7,0,Asset Maintenance,General Builders,Invoice,BACS,No,30/09/2022 00:00,2022,7,0623-0458,M5114,Repairs-Cyclical (BHS),B1001,Asset Maintenance,XXX99,*** UNASSIGNED ***,WCC,CEC Recharges,WC,CEC Recharges,A,Central Services
GUILDFORD BOROUGH COUNCIL,Heating,692680,TSG Building Services Plc,20/10/2022,30084957,897,0,Contractor Payments,General Builders,Invoice,BACS,No,30/09/2022 00:00,2022,7,0623-0459,N44075,Central heating boiler upgrades,1233,Contractor Payments,,,,,,,,
GUILDFORD BOROUGH COUNCIL,Building Maintenance,713710,D G Property Refurbishment Ltd,20/10/2022,30085102,1700.15,0,Services,Restoration Specialists,Invoice,BACS,No,17/10/2022 00:00,2022,7,158,K1515,Building Maintenance,D6004,Services,DBX45,Property Services,DBX,Support Service and Management Costs,DB,Children's Social Care,E,Childrens and Education Services
GUILDFORD BOROUGH COUNCIL,Building Maintenance,713710,D G Property Refurbishment Ltd,20/10/2022,30085102,1087,0,Materials,Restoration Specialists,Invoice,BACS,No,17/10/2022 00:00,2022,7,158,K1515,Building Maintenance,D2003,Materials,DBX45,Property Services,DBX,Support Service and Management Costs,DB,Children's Social Care,E,Childrens and Education Services
GUILDFORD BOROUGH COUNCIL,Void Property Management,753330,S J Phelps T/A Ladymead Carpets And Flooring,20/10/2022,30081762,385.32,0,Expenses,Floor Covering Suppliers,Invoice,BACS,No,10/09/2022 00:00,2022,7,32054,M1141,Void Property Mgmt (SHS),D8004,Expenses,XXX99,*** UNASSIGNED ***,WCC,CEC Recharges,WC,CEC Recharges,A,Central Services
GUILDFORD BOROUGH COUNCIL,Woking Road Depot,759110,Harpers Door Specialists,20/10/2022,30084925,1000,0,Services,"Security Shutter, Door And Gate Contractors",Invoice,BACS,No,17/10/2022 00:00,2022,7,SI-4016,B4452,Woking Road Depot,D6004,Services,W3A48,Current Service Costs - Fleet Management,W3A,Current Service Costs adjustment,W3,Current Service Costs,W,Other Operating Income and Expenditure
GUILDFORD BOROUGH COUNCIL,Woking Road Depot,759110,Harpers Door Specialists,20/10/2022,30084925,420,0,Services,"Security Shutter, Door And Gate Contractors",Invoice,BACS,No,17/10/2022 00:00,2022,7,SI-4016,B4452,Woking Road Depot,D6004,Services,W3A48,Current Service Costs - Fleet Management,W3A,Current Service Costs adjustment,W3,Current Service Costs,W,Other Operating Income and Expenditure
GUILDFORD BOROUGH COUNCIL,Responsive & Planned Maintenance,788901,Guildford Fencing Co (CIS),20/10/2022,30084954,500,0,Asset Maintenance,,Invoice,BACS,No,12/10/2022 00:00,2022,7,15187,M5113,Repairs-Responsive (BHS),B1001,Asset Maintenance,XXX99,*** UNASSIGNED ***,WCC,CEC Recharges,WC,CEC Recharges,A,Central Services
GUILDFORD BOROUGH COUNCIL,Responsive & Planned Maintenance,788901,Guildford Fencing Co (CIS),20/10/2022,30084954,988,0,Asset Maintenance,,Invoice,BACS,No,12/10/2022 00:00,2022,7,15187,M5113,Repairs-Responsive (BHS),B1001,Asset Maintenance,XXX99,*** UNASSIGNED ***,WCC,CEC Recharges,WC,CEC Recharges,A,Central Services
GUILDFORD BOROUGH COUNCIL,Countryside and Parks Services,792570,SMI Group Ltd,20/10/2022,30082780,519.44,0,Clothing & Uniform,Personal Protective Equipment (Ppe) Suppliers,Invoice,BACS,No,26/09/2022 00:00,2022,7,INV1113204,A1100,Horticulture,D4001,Clothing & Uniform,CCE00,Community Parks & Open Spaces,CCE,Open Spaces,CC,Cultural & Related Services,C,"Cultural, Environmental & Planning Services"
GUILDFORD BOROUGH COUNCIL,Building Maintenance,807270,Simon Property Solution Ltd,20/10/2022,30085077,1614.15,0,Services,House Builders,Invoice,BACS,No,14/10/2022 00:00,2022,7,211GBC,K1515,Building Maintenance,D6004,Services,DBX45,Property Services,DBX,Support Service and Management Costs,DB,Children's Social Care,E,Childrens and Education Services
GUILDFORD BOROUGH COUNCIL,Building Maintenance,846250,Revive Services (CIS),20/10/2022,30084980,1970,0,Services,Other Cleaning And Janitorial Service Providers,Invoice,BACS,No,17/10/2022 00:00,2022,7,180,K1515,Building Maintenance,D6004,Services,DBX45,Property Services,DBX,Support Service and Management Costs,DB,Children's Social Care,E,Childrens and Education Services
GUILDFORD BOROUGH COUNCIL,Electoral Registration,878030,Royal Mail Group Ltd (Chesterfield),20/10/2022,30083941,755.04,0,Postage,,Invoice,BACS,No,26/09/2022 00:00,2022,7,9066813683,F2511,Electoral Registration,D5003,Postage,ACE00,Registration of Electors,ACE,Elections,AC,Central Services to the Public,A,Central Services
GUILDFORD BOROUGH COUNCIL,On Street Parking,878030,Royal Mail Group Ltd (Chesterfield),20/10/2022,30084011,707.95,0,Postage,,Invoice,BACS,No,26/09/2022 00:00,2022,7,9065804610,B2217,Guildford On-Street,D5003,Postage,HTP00,On-Street Parking,HTP,Parking Services,HT,"Highways, Roads and Transport Services",H,"Highways, Roads and Transport Services"
GUILDFORD BOROUGH COUNCIL,Miscellaneous Expenses,878030,Royal Mail Group Ltd (Chesterfield),20/10/2022,30084011,1439.04,0,Postage,,Invoice,BACS,No,26/09/2022 00:00,2022,7,9065804610,F7537,Council Tax Energy Rebate,D5003,Postage,,,,,,,,
GUILDFORD BOROUGH COUNCIL,Vehicle Maintenance,882220,Fuller Tyres Limited,20/10/2022,30083934,516,0,Repair And Maintenance Of Vehicles,Other Vehicle Equipment Providers,Invoice,BACS,No,15/08/2022 00:00,2022,7,FTI-39574,K5551,Fleet Workshops,C1002,Repair And Maintenance Of Vehicles,W3A48,Current Service Costs - Fleet Management,W3A,Current Service Costs adjustment,W3,Current Service Costs,W,Other Operating Income and Expenditure
GUILDFORD BOROUGH COUNCIL,Private Sector Housing Maintenance,938540,BJC Design (Southeast) Ltd,20/10/2022,30083265,682.5,0,Contractors,Surveyors And Inspectors,Invoice,BACS,No,27/09/2022 00:00,2022,7,902,C5132,Care And Repair (Detr),D6012,Contractors,KGU00,Supporting People - Strategy,KGU,Supporting People,KG,Housing General Fund,K,Housing Services
GUILDFORD BOROUGH COUNCIL,Building Maintenance,946970,Davis Property Services GU Limited (CIS),20/10/2022,30085042,20992.3,0,Services,Roofers,Invoice,BACS,No,15/10/2022 00:00,2022,7,2251,K1515,Building Maintenance,D6004,Services,DBX45,Property Services,DBX,Support Service and Management Costs,DB,Children's Social Care,E,Childrens and Education Services
GUILDFORD BOROUGH COUNCIL,Modern Homes,949710,T Gilmartin Limited,20/10/2022,30084953,6558.06,0,Contractor Payments,Asbestos Removal Service Providers,Invoice,BACS,No,17/10/2022 00:00,2022,7,INV-124955-S1Y8Q1,N42068,"Kitchen, bathroom and electrical upgrades",1233,Contractor Payments,,,,,,,,
GUILDFORD BOROUGH COUNCIL,Modern Homes,949710,T Gilmartin Limited,20/10/2022,30084953,6558.06,0,Contractor Payments,Asbestos Removal Service Providers,Invoice,BACS,No,17/10/2022 00:00,2022,7,INV-124955-S1Y8Q1,N42068,"Kitchen, bathroom and electrical upgrades",1233,Contractor Payments,,,,,,,,
GUILDFORD BOROUGH COUNCIL,Modern Homes,949710,T Gilmartin Limited,20/10/2022,30084953,6373.81,0,Contractor Payments,Asbestos Removal Service Providers,Invoice,BACS,No,17/10/2022 00:00,2022,7,INV-124955-S1Y8Q1,N42068,"Kitchen, bathroom and electrical upgrades",1233,Contractor Payments,,,,,,,,
GUILDFORD BOROUGH COUNCIL,Building Maintenance,969700,A Star Maintenance Contractors Ltd (CIS),20/10/2022,30084983,288.1,0,Materials,Property Maintenance Contractors,Invoice,BACS,No,28/09/2022 00:00,2022,7,14408,K1515,Building Maintenance,D2003,Materials,DBX45,Property Services,DBX,Support Service and Management Costs,DB,Children's Social Care,E,Childrens and Education Services
GUILDFORD BOROUGH COUNCIL,Building Maintenance,969700,A Star Maintenance Contractors Ltd (CIS),20/10/2022,30085009,2000,0,Services,Property Maintenance Contractors,Invoice,BACS,No,13/10/2022 00:00,2022,7,14437,K1515,Building Maintenance,D6004,Services,DBX45,Property Services,DBX,Support Service and Management Costs,DB,Children's Social Care,E,Childrens and Education Services
GUILDFORD BOROUGH COUNCIL,Building Maintenance,969700,A Star Maintenance Contractors Ltd (CIS),20/10/2022,30085009,4930.81,0,Materials,Property Maintenance Contractors,Invoice,BACS,No,13/10/2022 00:00,2022,7,14437,K1515,Building Maintenance,D2003,Materials,DBX45,Property Services,DBX,Support Service and Management Costs,DB,Children's Social Care,E,Childrens and Education Services
GUILDFORD BOROUGH COUNCIL,Building Maintenance,969700,A Star Maintenance Contractors Ltd (CIS),20/10/2022,30085041,260.4,0,Materials,Property Maintenance Contractors,Invoice,BACS,No,13/10/2022 00:00,2022,7,14438,K1515,Building Maintenance,D2003,Materials,DBX45,Property Services,DBX,Support Service and Management Costs,DB,Children's Social Care,E,Childrens and Education Services
GUILDFORD BOROUGH COUNCIL,Vehicle Maintenance,984320,Partsplusuk,20/10/2022,30082810,265.42,0,Repair And Maintenance Of Vehicles,Third Party Supplier,Invoice,BACS,No,26/09/2022 00:00,2022,7,20820936,K5551,Fleet Workshops,C1002,Repair And Maintenance Of Vehicles,W3A48,Current Service Costs - Fleet Management,W3A,Current Service Costs adjustment,W3,Current Service Costs,W,Other Operating Income and Expenditure
GUILDFORD BOROUGH COUNCIL,Homelessness Support,996150,Croydon Court Ltd,20/10/2022,30083461,1650,0,Emergency Accomodation,,Invoice,BACS,No,25/07/2022 00:00,2022,7,C8399,C3311,Homelessness,D8009,Emergency Accomodation,KGU00,Supporting People - Strategy,KGU,Supporting People,KG,Housing General Fund,K,Housing Services
GUILDFORD BOROUGH COUNCIL,IT Renewals,1000035,Gravitas Recruitment Group,25/10/2022,30084914,3025,0,Agency Staff,,Invoice,BACS,No,17/10/2022 00:00,2022,7,INV186684,P81002,IT Renewals Reserve Funded General,1222,Agency Staff,XXX99,*** UNASSIGNED ***,WCC,CEC Recharges,WC,CEC Recharges,A,Central Services
GUILDFORD BOROUGH COUNCIL,Parks Countryside Management,1000078,Shorts Group Limited,25/10/2022,30084039,1000,0,Hire,,Invoice,BACS,No,30/09/2022 00:00,2022,7,S260071,A1300,Trees And Countryside,D1001,Hire,CCE00,Community Parks & Open Spaces,CCE,Open Spaces,CC,Cultural & Related Services,C,"Cultural, Environmental & Planning Services"
GUILDFORD BOROUGH COUNCIL,Parks Countryside Management,1000078,Shorts Group Limited,25/10/2022,30084047,255,0,External Vehicle Hire,,Invoice,BACS,No,30/09/2022 00:00,2022,7,S260072,A1300,Trees And Countryside,C3001,External Vehicle Hire,CCE00,Community Parks & Open Spaces,CCE,Open Spaces,CC,Cultural & Related Services,C,"Cultural, Environmental & Planning Services"
GUILDFORD BOROUGH COUNCIL,Lead Specialist - Legal,1000138,Solicitors Regulation Authority Limited,25/10/2022,30084765,3892,0,Staff Costs,,Invoice,BACS,No,17/10/2022 00:00,2022,7,INV200707152,G4525,Legal Services,A7100,Staff Costs,DBX40,Legal,DBX,Support Service and Management Costs,DB,Children's Social Care,E,Childrens and Education Services
GUILDFORD BOROUGH COUNCIL,Major Projects,1000225,Jones Lang LaSalle Limited,25/10/2022,30083460,40751,0,Consultancy,,Invoice,BACS,No,30/09/2022 00:00,2022,7,EN002-0443841,F5530,Major Projects,D6001,Consultancy,DBX70,Other Management Costs,DBX,Support Service and Management Costs,DB,Children's Social Care,E,Childrens and Education Services
GUILDFORD BOROUGH COUNCIL,Property,1000269,DAVITT JONES BOULD LIMITED,25/10/2022,30083493,2687.1,0,Consultants Fees,,Invoice,BACS,No,29/09/2022 00:00,2022,7,203774,P74040,Slyfield Area Regeneration Project,1221,Consultants Fees,XXX99,*** UNASSIGNED ***,WCC,CEC Recharges,WC,CEC Recharges,A,Central Services
GUILDFORD BOROUGH COUNCIL,Family and Refugee Support Programme,1000434,First Advantage Europe Ltd,25/10/2022,30084891,1360,0,Services,,Invoice,BACS,No,30/09/2022 00:00,2022,7,EC111532208,C3321,Refugee Support,D6004,Services,SSU00,Social Support  - Asylum Seeker Support,SSU,Social Support - Asylum Seeker Support,SS,Adult Social Care,S,Adult Social Care
GUILDFORD BOROUGH COUNCIL,Family and Refugee Support Programme,1000434,First Advantage Europe Ltd,25/10/2022,30084891,362.05,0,Services,,Invoice,BACS,No,30/09/2022 00:00,2022,7,EC111532208,C3321,Refugee Support,D6004,Services,SSU00,Social Support  - Asylum Seeker Support,SSU,Social Support - Asylum Seeker Support,SS,Adult Social Care,S,Adult Social Care
GUILDFORD BOROUGH COUNCIL,Building Maintenance,1000451,AMG Electrical Ltd,25/10/2022,30085322,1248.1,0,Services,,Invoice,BACS,No,15/10/2022 00:00,2022,7,2210-05,K1515,Building Maintenance,D6004,Services,DBX45,Property Services,DBX,Support Service and Management Costs,DB,Children's Social Care,E,Childrens and Education Services
GUILDFORD BOROUGH COUNCIL,Revenue Balances,1000456,Birketts LLP,25/10/2022,30084799,662,0,OOE - G/L On Disp - Rev Inc,,Invoice,BACS,No,30/09/2022 00:00,2022,7,821441,V02005,Hra Net Revenue Account,2300,OOE - G/L On Disp - Rev Inc,,,,,,,,
GUILDFORD BOROUGH COUNCIL,Development Control,1000475,G2 Recruitment Solutions,25/10/2022,30083236,6846,0,Agency,,Invoice,BACS,No,28/09/2022 00:00,2022,7,109312,D5100,Development Control - Fee Earn,A5191,Agency,CPC00,Development Control Advice,CPC,Development Control,CP,Planning and Development Services,C,"Cultural, Environmental & Planning Services"
GUILDFORD BOROUGH COUNCIL,Renovations,1000518,Liquid Recruit Solutions Limited,25/10/2022,30082489,2119.65,0,Contractor Payments,,Invoice,BACS,No,21/09/2022 00:00,2022,7,12200,N40292,Fire protection works,1233,Contractor Payments,,,,,,,,
GUILDFORD BOROUGH COUNCIL,Miscellaneous Expenses,1000623,Container Team Ltd,25/10/2022,30083579,576.33,0,Services,,Invoice,BACS,No,01/10/2022 00:00,2022,7,33281,F7539,COVID-19,D6004,Services,,,,,,,,
GUILDFORD BOROUGH COUNCIL,Business Improvement,1000643,The Web Usability Partnership Ltd,25/10/2022,30083692,1600,0,ICT Software,,Invoice,BACS,No,30/09/2022 00:00,2022,7,1988,G3531,Future Guildford,D7002,ICT Software,AAM00,Corporate Management,AAM,Corporate Management,AA,Corporate & Democratic Core,A,Central Services
GUILDFORD BOROUGH COUNCIL,Lead Specialist - Legal,1000703,Weightmans LLP,25/10/2022,30084719,775.5,0,Services,,Invoice,BACS,No,30/09/2022 00:00,2022,7,2116317,G4525,Legal Services,D6004,Services,DBX40,Legal,DBX,Support Service and Management Costs,DB,Children's Social Care,E,Childrens and Education Services
GUILDFORD BOROUGH COUNCIL,Executive - Miscellaneous,1000709,Quoin Datum Consultants Ltd,25/10/2022,30085370,12400,0,Consultants Fees,,Invoice,BACS,No,01/10/2022 00:00,2022,7,QDC_GBC007,P79037,Ash Road Bridge,1221,Consultants Fees,XXX99,*** UNASSIGNED ***,WCC,CEC Recharges,WC,CEC Recharges,A,Central Services
GUILDFORD BOROUGH COUNCIL,Development Control,1000721,Professional Planning Ltd,25/10/2022,30083363,3100,0,Consultancy,,Invoice,BACS,No,29/09/2022 00:00,2022,7,22/P/01205290922,D5100,Development Control - Fee Earn,D6001,Consultancy,CPC00,Development Control Advice,CPC,Development Control,CP,Planning and Development Services,C,"Cultural, Environmental & Planning Services"
GUILDFORD BOROUGH COUNCIL,Grants,1000741,Gainsborough Healthcare Group,25/10/2022,30085300,3890,0,Grants To Private Owners,,Invoice,BACS,No,20/07/2022 00:00,2022,7,SI0023753,N51008,Mandatory DFG,1311,Grants To Private Owners,XXX99,*** UNASSIGNED ***,WCC,CEC Recharges,WC,CEC Recharges,A,Central Services
GUILDFORD BOROUGH COUNCIL,Off Street Parking,1000761,Jade Security Services Ltd,25/10/2022,30083994,9535.4,0,Bank Charges,,Invoice,BACS,No,30/09/2022 00:00,2022,7,4294,B2111,Car Parks - Administration,D8002,Bank Charges,HTP10,Off-Street Parking,HTP,Parking Services,HT,"Highways, Roads and Transport Services",H,"Highways, Roads and Transport Services"
GUILDFORD BOROUGH COUNCIL,Off Street Parking,1000761,Jade Security Services Ltd,25/10/2022,30083994,2078.05,0,Bank Charges,,Invoice,BACS,No,30/09/2022 00:00,2022,7,4294,B2111,Car Parks - Administration,D8002,Bank Charges,HTP10,Off-Street Parking,HTP,Parking Services,HT,"Highways, Roads and Transport Services",H,"Highways, Roads and Transport Services"
GUILDFORD BOROUGH COUNCIL,On Street Parking,1000761,Jade Security Services Ltd,25/10/2022,30083994,2884.25,0,Bank Charges,,Invoice,BACS,No,30/09/2022 00:00,2022,7,4294,B2217,Guildford On-Street,D8002,Bank Charges,HTP00,On-Street Parking,HTP,Parking Services,HT,"Highways, Roads and Transport Services",H,"Highways, Roads and Transport Services"
GUILDFORD BOROUGH COUNCIL,On Street Parking,1000761,Jade Security Services Ltd,25/10/2022,30083994,375.3,0,Bank Charges,,Invoice,BACS,No,30/09/2022 00:00,2022,7,4294,B2215,Waverley On-Street,D8002,Bank Charges,HTP00,On-Street Parking,HTP,Parking Services,HT,"Highways, Roads and Transport Services",H,"Highways, Roads and Transport Services"
GUILDFORD BOROUGH COUNCIL,Modern Homes,1000765,Henderson & Taylor Public Works Limited,25/10/2022,30083991,4019.18,0,Contractor Payments,,Invoice,BACS,No,26/09/2022 00:00,2022,7,108929,N49102,Garage forecourt resurfacing programme,1233,Contractor Payments,,,,,,,,
GUILDFORD BOROUGH COUNCIL,Lead Specialist - ICT,1000779,Aylen Consulting Ltd,25/10/2022,30083581,31500,0,Consultancy,,Invoice,BACS,No,01/10/2022 00:00,2022,7,38,G3547,ICT Development,D6001,Consultancy,DBX70,Other Management Costs,DBX,Support Service and Management Costs,DB,Children's Social Care,E,Childrens and Education Services
GUILDFORD BOROUGH COUNCIL,Development Control,1000795,Planit Consulting Limited,25/10/2022,30083275,6951.27,0,Consultancy,,Invoice,BACS,No,28/09/2022 00:00,2022,7,I000690,D5100,Development Control - Fee Earn,D6001,Consultancy,CPC00,Development Control Advice,CPC,Development Control,CP,Planning and Development Services,C,"Cultural, Environmental & Planning Services"
GUILDFORD BOROUGH COUNCIL,Lead Specialist - ICT,1000799,Secon Cyber Security Limited,25/10/2022,30084053,2406.98,0,ICT Support & Maintenance,,Invoice,BACS,No,29/09/2022 00:00,2022,7,INV-3942,G3548,ICT Technical & Infrastructure,D7003,ICT Support & Maintenance,DBX70,Other Management Costs,DBX,Support Service and Management Costs,DB,Children's Social Care,E,Childrens and Education Services
GUILDFORD BOROUGH COUNCIL,Lead Specialist - ICT,1000799,Secon Cyber Security Limited,25/10/2022,30084053,1199.14,0,ICT Support & Maintenance,,Invoice,BACS,No,29/09/2022 00:00,2022,7,INV-3942,G3548,ICT Technical & Infrastructure,D7003,ICT Support & Maintenance,DBX70,Other Management Costs,DBX,Support Service and Management Costs,DB,Children's Social Care,E,Childrens and Education Services
GUILDFORD BOROUGH COUNCIL,Lead Specialist - ICT,1000799,Secon Cyber Security Limited,25/10/2022,30084053,2337.22,0,ICT Support & Maintenance,,Invoice,BACS,No,29/09/2022 00:00,2022,7,INV-3942,G3548,ICT Technical & Infrastructure,D7003,ICT Support & Maintenance,DBX70,Other Management Costs,DBX,Support Service and Management Costs,DB,Children's Social Care,E,Childrens and Education Services
GUILDFORD BOROUGH COUNCIL,Community Meals and Transport,1000809,Community Transport Association,25/10/2022,30085307,400,0,Vehicle Operating Costs,,Invoice,BACS,No,17/05/2022 00:00,2022,7,12287,C3115,Community Transport,C1001,Vehicle Operating Costs,CEE25,Environmental Protection,CEE,Environmental Health (Regulatory Services),CE,Environmental & Regulatory Services,C,"Cultural, Environmental & Planning Services"
GUILDFORD BOROUGH COUNCIL,Building Maintenance,127500,Chambers Waste Management Plc,25/10/2022,30084003,1167.03,0,Materials,Other Waste Disposal Suppliers,Invoice,BACS,No,30/09/2022 00:00,2022,7,P581601,K1515,Building Maintenance,D2003,Materials,DBX45,Property Services,DBX,Support Service and Management Costs,DB,Children's Social Care,E,Childrens and Education Services
GUILDFORD BOROUGH COUNCIL,Building Maintenance,127500,Chambers Waste Management Plc,25/10/2022,30084027,520.15,0,Materials,Other Waste Disposal Suppliers,Invoice,BACS,No,30/09/2022 00:00,2022,7,P585586,K1515,Building Maintenance,D2003,Materials,DBX45,Property Services,DBX,Support Service and Management Costs,DB,Children's Social Care,E,Childrens and Education Services
GUILDFORD BOROUGH COUNCIL,Day Services,129100,Cheesman Brothers Limited,25/10/2022,30083568,452.82,0,Catering,Fruit And Vegetable Suppliers,Invoice,BACS,No,30/09/2022 00:00,2022,7,949194,C8100,Community Hubs,D3001,Catering,KGU00,Supporting People - Strategy,KGU,Supporting People,KG,Housing General Fund,K,Housing Services
GUILDFORD BOROUGH COUNCIL,Day Services,129100,Cheesman Brothers Limited,25/10/2022,30083570,1268.63,0,Catering,Fruit And Vegetable Suppliers,Invoice,BACS,No,30/09/2022 00:00,2022,7,949195,C8100,Community Hubs,D3001,Catering,KGU00,Supporting People - Strategy,KGU,Supporting People,KG,Housing General Fund,K,Housing Services
GUILDFORD BOROUGH COUNCIL,Modern Homes,144020,Perega Limited,25/10/2022,30083420,266.5,0,Contractor Payments,Other Construction Consultants,Invoice,BACS,No,28/09/2022 00:00,2022,7,13386,N48057,Structural works - various properties,1233,Contractor Payments,,,,,,,,
GUILDFORD BOROUGH COUNCIL,Modern Homes,144020,Perega Limited,25/10/2022,30083421,266.5,0,Contractor Payments,Other Construction Consultants,Invoice,BACS,No,28/09/2022 00:00,2022,7,13387,N48057,Structural works - various properties,1233,Contractor Payments,,,,,,,,
GUILDFORD BOROUGH COUNCIL,Modern Homes,144020,Perega Limited,25/10/2022,30083422,16765,0,Contractor Payments,Other Construction Consultants,Invoice,BACS,No,29/09/2022 00:00,2022,7,13395,N48057,Structural works - various properties,1233,Contractor Payments,,,,,,,,
GUILDFORD BOROUGH COUNCIL,Modern Homes,144020,Perega Limited,25/10/2022,30083424,653.75,0,Contractor Payments,Other Construction Consultants,Invoice,BACS,No,29/09/2022 00:00,2022,7,13399,N48057,Structural works - various properties,1233,Contractor Payments,,,,,,,,
GUILDFORD BOROUGH COUNCIL,Modern Homes,144020,Perega Limited,25/10/2022,30083425,653.75,0,Contractor Payments,Other Construction Consultants,Invoice,BACS,No,29/09/2022 00:00,2022,7,13400,N48057,Structural works - various properties,1233,Contractor Payments,,,,,,,,
GUILDFORD BOROUGH COUNCIL,Modern Homes,144020,Perega Limited,25/10/2022,30083426,396.25,0,Contractor Payments,Other Construction Consultants,Invoice,BACS,No,29/09/2022 00:00,2022,7,13401,N48057,Structural works - various properties,1233,Contractor Payments,,,,,,,,
GUILDFORD BOROUGH COUNCIL,Modern Homes,144020,Perega Limited,25/10/2022,30083427,575,0,Contractor Payments,Other Construction Consultants,Invoice,BACS,No,29/09/2022 00:00,2022,7,13402,N48057,Structural works - various properties,1233,Contractor Payments,,,,,,,,
GUILDFORD BOROUGH COUNCIL,Building Control,156250,Hays Specialist Recruitment Limited,25/10/2022,30083482,1874.69,0,Agency,Other Recruitment Agencies And Service Providers,Invoice,BACS,No,30/09/2022 00:00,2022,7,1012487143,D5700,Building Control - Fee,A5191,Agency,CPB00,Building Regulations,CPB,Building Control,CP,Planning and Development Services,C,"Cultural, Environmental & Planning Services"
GUILDFORD BOROUGH COUNCIL,Inventories,178400,Akw Medi-Care Limited,25/10/2022,30083689,411.02,0,Purchases,Mobility Disability Equipment Suppliers,Invoice,BACS,No,29/09/2022 00:00,2022,7,2089968,I01001,Stocks,2591,Purchases,,,,,,,,
GUILDFORD BOROUGH COUNCIL,Tourism & Development,183030,Association Of Town Centre Management,25/10/2022,30084010,725,0,"Advertising, Publicity & Promotion",Trade Associations And Regulatory Bodies,Invoice,BACS,No,30/09/2022 00:00,2022,7,82475,F5547,Business,D5002,"Advertising, Publicity & Promotion",CCF00,"Tourism Policy, Marketing & Development",CCF,Tourism,CC,Cultural & Related Services,C,"Cultural, Environmental & Planning Services"
GUILDFORD BOROUGH COUNCIL,Inventories,183200,Edmundson Electrical Limited,25/10/2022,30084060,9363.9,0,Purchases,Electrical Wiring And Parts Suppliers,Invoice,BACS,No,30/09/2022 00:00,2022,7,201-198446,I01001,Stocks,2591,Purchases,,,,,,,,
GUILDFORD BOROUGH COUNCIL,Other Property,200000,Fidelis Security Limited,25/10/2022,30083485,942.86,0,Services,Security Guards,Invoice,BACS,No,30/09/2022 00:00,2022,7,11707,B6100,Other Property Admin,D6004,Services,DBX45,Property Services,DBX,Support Service and Management Costs,DB,Children's Social Care,E,Childrens and Education Services
GUILDFORD BOROUGH COUNCIL,Property,200000,Fidelis Security Limited,25/10/2022,30083470,1200,0,Consultants Fees,Security Guards,Invoice,BACS,No,30/09/2022 00:00,2022,7,11706,P74040,Slyfield Area Regeneration Project,1221,Consultants Fees,XXX99,*** UNASSIGNED ***,WCC,CEC Recharges,WC,CEC Recharges,A,Central Services
GUILDFORD BOROUGH COUNCIL,Other Property,200000,Fidelis Security Limited,25/10/2022,30083459,321.4,0,Services,Security Guards,Invoice,BACS,No,30/09/2022 00:00,2022,7,11724,B6550,"Multiplex Cinema, Bedford Road",D6004,Services,DBX45,Property Services,DBX,Support Service and Management Costs,DB,Children's Social Care,E,Childrens and Education Services
GUILDFORD BOROUGH COUNCIL,Cemeteries,200000,Fidelis Security Limited,25/10/2022,30083480,841,0,Contractors,Security Guards,Invoice,BACS,No,30/09/2022 00:00,2022,7,11722,A1410,Cemeteries - Admin,D6012,Contractors,CEA00,Cemeteries,CEA,"Cemetery, Cremation and Mortuary Services",CE,Environmental & Regulatory Services,C,"Cultural, Environmental & Planning Services"
GUILDFORD BOROUGH COUNCIL,Inventories,220400,UK Plumbing Supplies T/AS Graham the Plumbers Merchant,25/10/2022,30084366,305.45,0,Purchases,"Plumbing, Heating And Ac (Hvac) Equipment Suppliers",Invoice,BACS,No,01/10/2022 00:00,2022,7,SI04376650,I01001,Stocks,2591,Purchases,,,,,,,,
GUILDFORD BOROUGH COUNCIL,Executive - Miscellaneous,230230,Surrey County Council,25/10/2022,30084989,3988.74,0,Consultants Fees,Local Government [Uk Only],Invoice,BACS,No,18/10/2022 00:00,2022,7,9500309379,P79037,Ash Road Bridge,1221,Consultants Fees,XXX99,*** UNASSIGNED ***,WCC,CEC Recharges,WC,CEC Recharges,A,Central Services
GUILDFORD BOROUGH COUNCIL,Resources Caseworker,239430,CCS Media Ltd,25/10/2022,30083463,885,0,ICT Hardware And Consumables,It Consumables Suppliers,Invoice,BACS,No,30/09/2022 00:00,2022,7,4665877,G3550,Resources Caseworker,D7001,ICT Hardware And Consumables,DBX35,Finance (including Internal Audit),DBX,Support Service and Management Costs,DB,Children's Social Care,E,Childrens and Education Services
GUILDFORD BOROUGH COUNCIL,Other Property,291600,Lambert Smith Hampton Group Limited,25/10/2022,30084359,1950,0,Valuers Fees,Outsourced Building Management Service Providers,Invoice,BACS,No,30/09/2022 00:00,2022,7,ARINV/00530423,B6100,Other Property Admin,D6002,Valuers Fees,DBX45,Property Services,DBX,Support Service and Management Costs,DB,Children's Social Care,E,Childrens and Education Services
GUILDFORD BOROUGH COUNCIL,Parks Countryside Management,299800,Lister Wilder Ltd,25/10/2022,30083348,268.05,0,Repair And Maintenance Of Vehicles,Emergency And Other Specialist Vehicle Dealers,Invoice,BACS,No,30/09/2022 00:00,2022,7,520323,A1300,Trees And Countryside,C1002,Repair And Maintenance Of Vehicles,CCE00,Community Parks & Open Spaces,CCE,Open Spaces,CC,Cultural & Related Services,C,"Cultural, Environmental & Planning Services"
GUILDFORD BOROUGH COUNCIL,Lead Specialist - HR,324350,Comensura Ltd,25/10/2022,30085288,37718.29,0,Agency,Other Recruitment Agencies And Service Providers,Invoice,BACS,No,16/10/2022 00:00,2022,7,1092827,G1161,Commensura Holding Account,A5191,Agency,,,,,,,,
GUILDFORD BOROUGH COUNCIL,Tenant Selection,372840,HML Independent Medical Advice Ltd,25/10/2022,30084019,332.37,0,Services,Other Medical Professionals,Invoice,BACS,No,30/09/2022 00:00,2022,7,GU/4293/22,M1131,"Advice,Regs,Tenant Select(SHS)",D6004,Services,XXX99,*** UNASSIGNED ***,WCC,CEC Recharges,WC,CEC Recharges,A,Central Services
GUILDFORD BOROUGH COUNCIL,Development Control,415180,Sharpe Pritchard LLP,25/10/2022,30084391,2831,0,Consultancy,Solicitors [Uk Only],Invoice,BACS,No,30/09/2022 00:00,2022,7,132777,D5100,Development Control - Fee Earn,D6001,Consultancy,CPC00,Development Control Advice,CPC,Development Control,CP,Planning and Development Services,C,"Cultural, Environmental & Planning Services"
GUILDFORD BOROUGH COUNCIL,Development Control,415180,Sharpe Pritchard LLP,25/10/2022,30084395,404.3,0,Consultancy,Solicitors [Uk Only],Invoice,BACS,No,30/09/2022 00:00,2022,7,132768,D5100,Development Control - Fee Earn,D6001,Consultancy,CPC00,Development Control Advice,CPC,Development Control,CP,Planning and Development Services,C,"Cultural, Environmental & Planning Services"
GUILDFORD BOROUGH COUNCIL,Development Control,415180,Sharpe Pritchard LLP,25/10/2022,30084760,11281.5,0,Consultancy,Solicitors [Uk Only],Invoice,BACS,No,30/09/2022 00:00,2022,7,133011,D5100,Development Control - Fee Earn,D6001,Consultancy,CPC00,Development Control Advice,CPC,Development Control,CP,Planning and Development Services,C,"Cultural, Environmental & Planning Services"
GUILDFORD BOROUGH COUNCIL,Property,453690,Savills (L&P) Limited,25/10/2022,30084685,14500,0,Consultants Fees,Property Letting And Estate Agents,Invoice,BACS,No,30/09/2022 00:00,2022,7,INSU00266551,P74040,Slyfield Area Regeneration Project,1221,Consultants Fees,XXX99,*** UNASSIGNED ***,WCC,CEC Recharges,WC,CEC Recharges,A,Central Services
GUILDFORD BOROUGH COUNCIL,Property,453690,Savills (L&P) Limited,25/10/2022,30083385,4000,0,Consultants Fees,Property Letting And Estate Agents,Invoice,BACS,No,29/09/2022 00:00,2022,7,INSU00264045,P74040,Slyfield Area Regeneration Project,1221,Consultants Fees,XXX99,*** UNASSIGNED ***,WCC,CEC Recharges,WC,CEC Recharges,A,Central Services
GUILDFORD BOROUGH COUNCIL,Property,453690,Savills (L&P) Limited,25/10/2022,30083351,750,0,Consultants Fees,Property Letting And Estate Agents,Invoice,BACS,No,29/09/2022 00:00,2022,7,INSU00263973,P74040,Slyfield Area Regeneration Project,1221,Consultants Fees,XXX99,*** UNASSIGNED ***,WCC,CEC Recharges,WC,CEC Recharges,A,Central Services
GUILDFORD BOROUGH COUNCIL,Development Control,454730,Alexander Advertising (International) Ltd,25/10/2022,30083672,343.03,0,"Advertising, Publicity & Promotion",Full Service Marketing Agencies,Invoice,BACS,No,30/09/2022 00:00,2022,7,1198C23,D5100,Development Control - Fee Earn,D5002,"Advertising, Publicity & Promotion",CPC00,Development Control Advice,CPC,Development Control,CP,Planning and Development Services,C,"Cultural, Environmental & Planning Services"
GUILDFORD BOROUGH COUNCIL,Homelessness Support,461000,Adecco UK Ltd,25/10/2022,30084400,1252.13,0,Agency,Other Recruitment Agencies And Service Providers,Invoice,BACS,No,29/09/2022 00:00,2022,7,TN9052,C3311,Homelessness,A5191,Agency,KGU00,Supporting People - Strategy,KGU,Supporting People,KG,Housing General Fund,K,Housing Services
GUILDFORD BOROUGH COUNCIL,Corporate Services,600320,Arlingclose Ltd,25/10/2022,30085339,1995,0,Consultancy,Other Financial Service Providers,Invoice,BACS,No,27/09/2022 00:00,2022,7,ACF3047,F1111,Corporate Services,D6001,Consultancy,DBX70,Other Management Costs,DBX,Support Service and Management Costs,DB,Children's Social Care,E,Childrens and Education Services
GUILDFORD BOROUGH COUNCIL,Community Meals and Transport,604000,Apetito Ltd,25/10/2022,30084670,6909.44,0,Catering,Frozen Food Suppliers,Invoice,BACS,No,30/09/2022 00:00,2022,7,9004077241,C8142,Community Meals Service,D3001,Catering,KGU00,Supporting People - Strategy,KGU,Supporting People,KG,Housing General Fund,K,Housing Services
GUILDFORD BOROUGH COUNCIL,Day Services,604000,Apetito Ltd,25/10/2022,30084689,592.42,0,Catering,Frozen Food Suppliers,Invoice,BACS,No,30/09/2022 00:00,2022,7,9004054879,C8100,Community Hubs,D3001,Catering,KGU00,Supporting People - Strategy,KGU,Supporting People,KG,Housing General Fund,K,Housing Services
GUILDFORD BOROUGH COUNCIL,Community Meals and Transport,604000,Apetito Ltd,25/10/2022,30083572,1749.36,0,External Vehicle Hire,Frozen Food Suppliers,Invoice,BACS,No,01/10/2022 00:00,2022,7,9004069113,C8142,Community Meals Service,C3001,External Vehicle Hire,KGU00,Supporting People - Strategy,KGU,Supporting People,KG,Housing General Fund,K,Housing Services
GUILDFORD BOROUGH COUNCIL,Responsive & Planned Maintenance,629000,Orchard Information Systems Ltd,25/10/2022,30083592,2238.61,0,ICT Software,Computer Systems Integrators,Invoice,BACS,No,30/09/2022 00:00,2022,7,SLMR/00016112,M5113,Repairs-Responsive (BHS),D7002,ICT Software,XXX99,*** UNASSIGNED ***,WCC,CEC Recharges,WC,CEC Recharges,A,Central Services
GUILDFORD BOROUGH COUNCIL,Leisure Management Contract,667000,A.S.L. Ltd (CIS),25/10/2022,30085297,6790,0,Asset Maintenance,Sewerage And Drainage Service Providers,Invoice,BACS,No,19/10/2022 00:00,2022,7,72600,A7540,Spectrum,B1001,Asset Maintenance,CCD30,Indoor Sports & Recreation Facilities,CCD,Recreation & Sport,CC,Cultural & Related Services,C,"Cultural, Environmental & Planning Services"
GUILDFORD BOROUGH COUNCIL,Off Street Parking,667120,Stripe Consulting Limited,25/10/2022,30083377,1181.25,0,Asset Maintenance,Other Construction Consultants,Invoice,BACS,No,30/09/2022 00:00,2022,7,INV-4925,B2219,Bedford Road Mscp,B1001,Asset Maintenance,HTP10,Off-Street Parking,HTP,Parking Services,HT,"Highways, Roads and Transport Services",H,"Highways, Roads and Transport Services"
GUILDFORD BOROUGH COUNCIL,Electoral Registration,673000,Print For Business Ltd,25/10/2022,30083971,13553.28,0,Postage,Printing Service Providers,Invoice,BACS,No,30/09/2022 00:00,2022,7,1026,F2511,Electoral Registration,D5003,Postage,ACE00,Registration of Electors,ACE,Elections,AC,Central Services to the Public,A,Central Services
GUILDFORD BOROUGH COUNCIL,Electoral Registration,673000,Print For Business Ltd,25/10/2022,30083971,1110.29,0,"Printing, Photocopying And Reprographics External",Printing Service Providers,Invoice,BACS,No,30/09/2022 00:00,2022,7,1026,F2511,Electoral Registration,D5005,"Printing, Photocopying And Reprographics External",ACE00,Registration of Electors,ACE,Elections,AC,Central Services to the Public,A,Central Services
GUILDFORD BOROUGH COUNCIL,Elections,673650,anonymous,25/10/2022,30083557,314,0,Publications,,Invoice,BACS,No,01/10/2022 00:00,2022,7,847168128,F2151,Elections,D5001,Publications,ACE10,Conducting Elections,ACE,Elections,AC,Central Services to the Public,A,Central Services
GUILDFORD BOROUGH COUNCIL,Building Maintenance,686720,Surrey County Windows Ltd,25/10/2022,30085315,3234.64,0,Services,Window And Door Installers,Invoice,BACS,No,21/10/2022 00:00,2022,7,96,K1515,Building Maintenance,D6004,Services,DBX45,Property Services,DBX,Support Service and Management Costs,DB,Children's Social Care,E,Childrens and Education Services
GUILDFORD BOROUGH COUNCIL,Building Maintenance,686720,Surrey County Windows Ltd,25/10/2022,30085315,6109.48,0,Materials,Window And Door Installers,Invoice,BACS,No,21/10/2022 00:00,2022,7,96,K1515,Building Maintenance,D2003,Materials,DBX45,Property Services,DBX,Support Service and Management Costs,DB,Children's Social Care,E,Childrens and Education Services
GUILDFORD BOROUGH COUNCIL,Supported Housing Management,690490,Town and Country Cleaners Ltd,25/10/2022,30083928,593.62,0,Cleaning Contractors,Commercial Cleaners,Invoice,BACS,No,28/09/2022 00:00,2022,7,82049,M3690,Supported Hsg-General (SHS),D6006,Cleaning Contractors,XXX99,*** UNASSIGNED ***,WCC,CEC Recharges,WC,CEC Recharges,A,Central Services
GUILDFORD BOROUGH COUNCIL,Sheltered Housing,690490,Town and Country Cleaners Ltd,25/10/2022,30083928,8499.42,0,Cleaning Contractors,Commercial Cleaners,Invoice,BACS,No,28/09/2022 00:00,2022,7,82049,M1515,Sheltered Accomodation,D6006,Cleaning Contractors,XXX99,*** UNASSIGNED ***,WCC,CEC Recharges,WC,CEC Recharges,A,Central Services
GUILDFORD BOROUGH COUNCIL,Industrial Estates,698460,Ermc Limited,25/10/2022,30083561,900,0,Consultants Fees,Construction Project Management Consultants,Invoice,BACS,No,30/09/2022 00:00,2022,7,10304,P72037,Midleton Ind Est Redevelop,1221,Consultants Fees,XXX99,*** UNASSIGNED ***,WCC,CEC Recharges,WC,CEC Recharges,A,Central Services
GUILDFORD BOROUGH COUNCIL,Executive - Miscellaneous,702080,Balfour Beatty Civil Engineering Ltd,25/10/2022,30085296,67820.51,0,Consultants Fees,Civil Engineers,Invoice,BACS,No,19/10/2022 00:00,2022,7,CSUKOU/INV/131979,P79037,Ash Road Bridge,1221,Consultants Fees,XXX99,*** UNASSIGNED ***,WCC,CEC Recharges,WC,CEC Recharges,A,Central Services
GUILDFORD BOROUGH COUNCIL,SPA Sites,705240,Countryside Contracts Ltd (CIS),25/10/2022,30085344,380,0,Grounds Maintenance,Tree Work Contractors,Invoice,BACS,No,07/10/2022 00:00,2022,7,2198,A1010,SPA Sites,B6001,Grounds Maintenance,CCE00,Community Parks & Open Spaces,CCE,Open Spaces,CC,Cultural & Related Services,C,"Cultural, Environmental & Planning Services"
GUILDFORD BOROUGH COUNCIL,Vehicle Maintenance,720900,Rossetts (UK) Ltd,25/10/2022,30083353,1789.56,0,Repair And Maintenance Of Vehicles,Truck And Bus Dealers,Invoice,BACS,No,29/09/2022 00:00,2022,7,52575708,K5551,Fleet Workshops,C1002,Repair And Maintenance Of Vehicles,W3A48,Current Service Costs - Fleet Management,W3A,Current Service Costs adjustment,W3,Current Service Costs,W,Other Operating Income and Expenditure
GUILDFORD BOROUGH COUNCIL,Responsive & Planned Maintenance,729420,Morgan Hunt UK Limited,25/10/2022,30083939,1437.82,0,Agency,Other Recruitment Agencies And Service Providers,Invoice,BACS,No,02/10/2022 00:00,2022,7,1288478,M5111,Repairs-Admin (BHS),A5191,Agency,XXX99,*** UNASSIGNED ***,WCC,CEC Recharges,WC,CEC Recharges,A,Central Services
GUILDFORD BOROUGH COUNCIL,Responsive & Planned Maintenance,729420,Morgan Hunt UK Limited,25/10/2022,30083947,1328.6,0,Agency,Other Recruitment Agencies And Service Providers,Invoice,BACS,No,02/10/2022 00:00,2022,7,1288477,M5111,Repairs-Admin (BHS),A5191,Agency,XXX99,*** UNASSIGNED ***,WCC,CEC Recharges,WC,CEC Recharges,A,Central Services
GUILDFORD BOROUGH COUNCIL,Responsive & Planned Maintenance,729420,Morgan Hunt UK Limited,25/10/2022,30083955,1328.6,0,Agency,Other Recruitment Agencies And Service Providers,Invoice,BACS,No,02/10/2022 00:00,2022,7,1288476,M5111,Repairs-Admin (BHS),A5191,Agency,XXX99,*** UNASSIGNED ***,WCC,CEC Recharges,WC,CEC Recharges,A,Central Services
GUILDFORD BOROUGH COUNCIL,Responsive & Planned Maintenance,729420,Morgan Hunt UK Limited,25/10/2022,30083984,2154.4,0,Services,Other Recruitment Agencies And Service Providers,Invoice,BACS,No,02/10/2022 00:00,2022,7,1288479,M5114,Repairs-Cyclical (BHS),D6004,Services,XXX99,*** UNASSIGNED ***,WCC,CEC Recharges,WC,CEC Recharges,A,Central Services
GUILDFORD BOROUGH COUNCIL,Renovations,729420,Morgan Hunt UK Limited,25/10/2022,30083964,323.16,0,Agency Staff,Other Recruitment Agencies And Service Providers,Invoice,BACS,No,02/10/2022 00:00,2022,7,1288475,N40292,Fire protection works,1222,Agency Staff,,,,,,,,
GUILDFORD BOROUGH COUNCIL,Modern Homes,729420,Morgan Hunt UK Limited,25/10/2022,30083964,430.88,0,Agency Staff,Other Recruitment Agencies And Service Providers,Invoice,BACS,No,02/10/2022 00:00,2022,7,1288475,N42068,"Kitchen, bathroom and electrical upgrades",1222,Agency Staff,,,,,,,,
GUILDFORD BOROUGH COUNCIL,Renovations,729420,Morgan Hunt UK Limited,25/10/2022,30083964,1400.36,0,Agency Staff,Other Recruitment Agencies And Service Providers,Invoice,BACS,No,02/10/2022 00:00,2022,7,1288475,N40287,Electrical testing and smoke detectors,1222,Agency Staff,,,,,,,,
GUILDFORD BOROUGH COUNCIL,Responsive & Planned Maintenance,729420,Morgan Hunt UK Limited,25/10/2022,30084020,1899.05,0,Agency,Other Recruitment Agencies And Service Providers,Invoice,BACS,No,02/10/2022 00:00,2022,7,1288474,M5111,Repairs-Admin (BHS),A5191,Agency,XXX99,*** UNASSIGNED ***,WCC,CEC Recharges,WC,CEC Recharges,A,Central Services
GUILDFORD BOROUGH COUNCIL,Licensing,753000,Mayes & Scrine,25/10/2022,30083676,551.25,0,Services,Veterinary Service Providers,Invoice,BACS,No,30/09/2022 00:00,2022,7,I-40476,H2100,Licensing Services,D6004,Services,CEE15,Alcohol and entertainment licensing,CEE,Environmental Health (Regulatory Services),CE,Environmental & Regulatory Services,C,"Cultural, Environmental & Planning Services"
GUILDFORD BOROUGH COUNCIL,Countryside and Parks Services,761280,Felden Ltd,25/10/2022,30084661,936,0,Services,Grounds Maintenance Providers,Invoice,BACS,No,29/09/2022 00:00,2022,7,TV13021,A1000,Parks Contracts,D6004,Services,CCE00,Community Parks & Open Spaces,CCE,Open Spaces,CC,Cultural & Related Services,C,"Cultural, Environmental & Planning Services"
GUILDFORD BOROUGH COUNCIL,Countryside and Parks Services,761280,Felden Ltd,25/10/2022,30084662,3744,0,Services,Grounds Maintenance Providers,Invoice,BACS,No,29/09/2022 00:00,2022,7,TV13023,A1000,Parks Contracts,D6004,Services,CCE00,Community Parks & Open Spaces,CCE,Open Spaces,CC,Cultural & Related Services,C,"Cultural, Environmental & Planning Services"
GUILDFORD BOROUGH COUNCIL,Countryside and Parks Services,761280,Felden Ltd,25/10/2022,30084408,15997,0,Services,Grounds Maintenance Providers,Invoice,BACS,No,29/09/2022 00:00,2022,7,TV13022,A1000,Parks Contracts,D6004,Services,CCE00,Community Parks & Open Spaces,CCE,Open Spaces,CC,Cultural & Related Services,C,"Cultural, Environmental & Planning Services"
GUILDFORD BOROUGH COUNCIL,Countryside and Parks Services,761280,Felden Ltd,25/10/2022,30084408,560,0,Services,Grounds Maintenance Providers,Invoice,BACS,No,29/09/2022 00:00,2022,7,TV13022,A1000,Parks Contracts,D6004,Services,CCE00,Community Parks & Open Spaces,CCE,Open Spaces,CC,Cultural & Related Services,C,"Cultural, Environmental & Planning Services"
GUILDFORD BOROUGH COUNCIL,Building Maintenance,769600,RGB Decorating Limited (CIS),25/10/2022,30085280,3430,0,Services,Painters And Decorators,Invoice,BACS,No,17/10/2022 00:00,2022,7,1822-23,K1515,Building Maintenance,D6004,Services,DBX45,Property Services,DBX,Support Service and Management Costs,DB,Children's Social Care,E,Childrens and Education Services
GUILDFORD BOROUGH COUNCIL,Street Cleansing,795800,CTG Enterprises Ltd,25/10/2022,30083546,1245.83,0,Services,Other Cleaning And Janitorial Service Providers,Invoice,BACS,No,01/10/2022 00:00,2022,7,GU1977GBC,K4551,Street Cleansing,D6004,Services,CES00,Street Cleansing (not chargeable to highways),CES,Street Cleansing (not chargeable to highways),CE,Environmental & Regulatory Services,C,"Cultural, Environmental & Planning Services"
GUILDFORD BOROUGH COUNCIL,Pest Control,800110,SDK Environmental Ltd,25/10/2022,30083567,2931.84,0,Services,Pest And Vermin Control Service Providers,Invoice,BACS,No,30/09/2022 00:00,2022,7,47440,C1121,Pest Control,D6004,Services,CEE50,Pest Control,CEE,Environmental Health (Regulatory Services),CE,Environmental & Regulatory Services,C,"Cultural, Environmental & Planning Services"
GUILDFORD BOROUGH COUNCIL,Park and Ride Service,803060,John F Hunt Power Ltd,25/10/2022,30083967,435.8,0,Hire,Other Construction Contractors,Invoice,BACS,No,30/09/2022 00:00,2022,7,269478,B5206,Onslow Park And Ride,D1001,Hire,HTT11,Support to Public Transport Operators - Bus Services,HTT,Public Transport,HT,"Highways, Roads and Transport Services",H,"Highways, Roads and Transport Services"
GUILDFORD BOROUGH COUNCIL,Off Street Parking,815680,RF Print Solutions Limited,25/10/2022,30085338,415,0,"Printing, Photocopying And Reprographics External",Printing Service Providers,Invoice,BACS,No,11/09/2022 00:00,2022,7,24,B2111,Car Parks - Administration,D5005,"Printing, Photocopying And Reprographics External",HTP10,Off-Street Parking,HTP,Parking Services,HT,"Highways, Roads and Transport Services",H,"Highways, Roads and Transport Services"
GUILDFORD BOROUGH COUNCIL,Woking Road Depot,817300,Berendsen Workwear Ltd T/A Elis,25/10/2022,30083544,401.65,0,Services,Linen And Blanket Suppliers,Invoice,BACS,No,01/10/2022 00:00,2022,7,IN87045,B4452,Woking Road Depot,D6004,Services,W3A48,Current Service Costs - Fleet Management,W3A,Current Service Costs adjustment,W3,Current Service Costs,W,Other Operating Income and Expenditure
GUILDFORD BOROUGH COUNCIL,Woking Road Depot,817300,Berendsen Workwear Ltd T/A Elis,25/10/2022,30083562,448.28,0,Services,Linen And Blanket Suppliers,Invoice,BACS,No,01/10/2022 00:00,2022,7,IN93848,B4452,Woking Road Depot,D6004,Services,W3A48,Current Service Costs - Fleet Management,W3A,Current Service Costs adjustment,W3,Current Service Costs,W,Other Operating Income and Expenditure
GUILDFORD BOROUGH COUNCIL,Community Safety,822600,Applied Resilience Limited,25/10/2022,30083553,700.42,0,Grants And Subscriptions,Other Business Service Providers,Invoice,BACS,No,01/10/2022 00:00,2022,7,GBC125,F5724,Safer Guildford Partnership,D9001,Grants And Subscriptions,CEH00,Community Safety (Safety Services),CEH,Community Safety (Safety Services),CE,Environmental & Regulatory Services,C,"Cultural, Environmental & Planning Services"
GUILDFORD BOROUGH COUNCIL,Civil Emergencies,822600,Applied Resilience Limited,25/10/2022,30083538,2818.75,0,Consultancy,Other Business Service Providers,Invoice,BACS,No,01/10/2022 00:00,2022,7,GBC124,F1511,Civil Emergencies,D6001,Consultancy,ACG00,Emergency Planning,ACG,Emergency Planning,AC,Central Services to the Public,A,Central Services
GUILDFORD BOROUGH COUNCIL,Civil Emergencies,822600,Applied Resilience Limited,25/10/2022,30083571,2000,0,Consultancy,Other Business Service Providers,Invoice,BACS,No,01/10/2022 00:00,2022,7,GBC126,F1511,Civil Emergencies,D6001,Consultancy,ACG00,Emergency Planning,ACG,Emergency Planning,AC,Central Services to the Public,A,Central Services
GUILDFORD BOROUGH COUNCIL,Case Services,829540,Eden Brown Ltd,25/10/2022,30084029,854.4,0,Agency,Other Recruitment Agencies And Service Providers,Invoice,BACS,No,28/09/2022 00:00,2022,7,1299359,C6100,Case Services,A5191,Agency,DBX35,Finance (including Internal Audit),DBX,Support Service and Management Costs,DB,Children's Social Care,E,Childrens and Education Services
GUILDFORD BOROUGH COUNCIL,Countryside and Parks Services,851140,Monatrix Ltd,25/10/2022,30083418,661.5,0,Asset Maintenance,Closed Circuit Television (Cctv) Suppliers,Invoice,BACS,No,28/09/2022 00:00,2022,7,16323,A1130,Castle Grounds,B1001,Asset Maintenance,CCE00,Community Parks & Open Spaces,CCE,Open Spaces,CC,Cultural & Related Services,C,"Cultural, Environmental & Planning Services"
GUILDFORD BOROUGH COUNCIL,Off Street Parking,851140,Monatrix Ltd,25/10/2022,30083954,982,0,Equipment,Closed Circuit Television (Cctv) Suppliers,Invoice,BACS,No,30/09/2022 00:00,2022,7,16356,B2111,Car Parks - Administration,D2001,Equipment,HTP10,Off-Street Parking,HTP,Parking Services,HT,"Highways, Roads and Transport Services",H,"Highways, Roads and Transport Services"
GUILDFORD BOROUGH COUNCIL,Development Control,871110,BNP Paribas Real Estate Advisory,25/10/2022,30084244,7000,0,Consultancy,Property Letting And Estate Agents,Invoice,BACS,No,30/09/2022 00:00,2022,7,285058,D5100,Development Control - Fee Earn,D6001,Consultancy,CPC00,Development Control Advice,CPC,Development Control,CP,Planning and Development Services,C,"Cultural, Environmental & Planning Services"
GUILDFORD BOROUGH COUNCIL,Property,872990,Marks Consulting Partners Limited,25/10/2022,30085270,3000,0,Consultants Fees,Other Recruitment Agencies And Service Providers,Invoice,BACS,No,17/08/2022 00:00,2022,7,INV-5869,P74040,Slyfield Area Regeneration Project,1221,Consultants Fees,XXX99,*** UNASSIGNED ***,WCC,CEC Recharges,WC,CEC Recharges,A,Central Services
GUILDFORD BOROUGH COUNCIL,Industrial Estates,874420,Artelia Projects UK Limited,25/10/2022,30083359,3478,0,Consultants Fees,Civil Engineers,Invoice,BACS,No,30/09/2022 00:00,2022,7,PIN012374,P72037,Midleton Ind Est Redevelop,1221,Consultants Fees,XXX99,*** UNASSIGNED ***,WCC,CEC Recharges,WC,CEC Recharges,A,Central Services
GUILDFORD BOROUGH COUNCIL,Industrial Estates,874420,Artelia Projects UK Limited,25/10/2022,30083347,2790,0,Consultants Fees,Civil Engineers,Invoice,BACS,No,30/09/2022 00:00,2022,7,PIN012375,P72037,Midleton Ind Est Redevelop,1221,Consultants Fees,XXX99,*** UNASSIGNED ***,WCC,CEC Recharges,WC,CEC Recharges,A,Central Services
GUILDFORD BOROUGH COUNCIL,Investment Properties,884470,Opus Energy Limited,25/10/2022,30084756,480.65,0,Utilities,Mains Electricity Suppliers,Invoice,BACS,No,29/09/2022 00:00,2022,7,73000519,B6111,Investment Property,B2001,Utilities,CPJ00,Market Undertakings,CPJ,Economic Development,CP,Planning and Development Services,C,"Cultural, Environmental & Planning Services"
GUILDFORD BOROUGH COUNCIL,Woking Road Depot,891110,Connect Vending Limited,25/10/2022,30084721,519.17,0,Services,,Invoice,BACS,No,30/09/2022 00:00,2022,7,6975,B4452,Woking Road Depot,D6004,Services,W3A48,Current Service Costs - Fleet Management,W3A,Current Service Costs adjustment,W3,Current Service Costs,W,Other Operating Income and Expenditure
GUILDFORD BOROUGH COUNCIL,Sheltered Housing,904780,Affinity Water Limited (HSE PROP),25/10/2022,30083702,1515.21,0,Utilities,Mains Water Suppliers,Invoice,BACS,No,28/09/2022 00:00,2022,7,3960517-2(280922),M1515,Sheltered Accomodation,B2001,Utilities,XXX99,*** UNASSIGNED ***,WCC,CEC Recharges,WC,CEC Recharges,A,Central Services
GUILDFORD BOROUGH COUNCIL,Day Services,908000,Beeline Taxis,25/10/2022,30083556,1998,0,Expenses,Taxis And Private Hire Companies,Invoice,BACS,No,30/09/2022 00:00,2022,7,658,C8100,Community Hubs,D8004,Expenses,KGU00,Supporting People - Strategy,KGU,Supporting People,KG,Housing General Fund,K,Housing Services
GUILDFORD BOROUGH COUNCIL,Income Collection,914220,Allpay Ltd,25/10/2022,30083558,1238,0,Bank Charges,Other Financial Service Providers,Invoice,BACS,No,30/09/2022 00:00,2022,7,748014,M1121,Income Collection (BHS),D8002,Bank Charges,XXX99,*** UNASSIGNED ***,WCC,CEC Recharges,WC,CEC Recharges,A,Central Services
GUILDFORD BOROUGH COUNCIL,Property,919010,Perfect Circle JV Ltd,25/10/2022,30083362,22293.03,0,Consultants Fees,Construction Project Management Consultants,Invoice,BACS,No,30/09/2022 00:00,2022,7,LNDM0034/029,P74040,Slyfield Area Regeneration Project,1221,Consultants Fees,XXX99,*** UNASSIGNED ***,WCC,CEC Recharges,WC,CEC Recharges,A,Central Services
GUILDFORD BOROUGH COUNCIL,Property,919010,Perfect Circle JV Ltd,25/10/2022,30083367,7481.35,0,Consultants Fees,Construction Project Management Consultants,Invoice,BACS,No,30/09/2022 00:00,2022,7,LNDM0032/020,P74040,Slyfield Area Regeneration Project,1221,Consultants Fees,XXX99,*** UNASSIGNED ***,WCC,CEC Recharges,WC,CEC Recharges,A,Central Services
GUILDFORD BOROUGH COUNCIL,Property,919010,Perfect Circle JV Ltd,25/10/2022,30083373,3529.41,0,Consultants Fees,Construction Project Management Consultants,Invoice,BACS,No,30/09/2022 00:00,2022,7,LNDM0031/041,P74040,Slyfield Area Regeneration Project,1221,Consultants Fees,XXX99,*** UNASSIGNED ***,WCC,CEC Recharges,WC,CEC Recharges,A,Central Services
GUILDFORD BOROUGH COUNCIL,Property,919010,Perfect Circle JV Ltd,25/10/2022,30083382,10826.79,0,Consultants Fees,Construction Project Management Consultants,Invoice,BACS,No,30/09/2022 00:00,2022,7,LNDM0035/024,P74040,Slyfield Area Regeneration Project,1221,Consultants Fees,XXX99,*** UNASSIGNED ***,WCC,CEC Recharges,WC,CEC Recharges,A,Central Services
GUILDFORD BOROUGH COUNCIL,Executive - Miscellaneous,919010,Perfect Circle JV Ltd,25/10/2022,30083370,12138.5,0,Consultants Fees,Construction Project Management Consultants,Invoice,BACS,No,30/09/2022 00:00,2022,7,LNDM0031/042,P79100,Wuv - Allotment Relocation,1221,Consultants Fees,,,,,,,,
GUILDFORD BOROUGH COUNCIL,Property,919010,Perfect Circle JV Ltd,25/10/2022,30083371,18328.04,0,Consultants Fees,Construction Project Management Consultants,Invoice,BACS,No,30/09/2022 00:00,2022,7,LNDM0036/017,P74040,Slyfield Area Regeneration Project,1221,Consultants Fees,XXX99,*** UNASSIGNED ***,WCC,CEC Recharges,WC,CEC Recharges,A,Central Services
GUILDFORD BOROUGH COUNCIL,Property,919010,Perfect Circle JV Ltd,25/10/2022,30083388,5027.56,0,Consultants Fees,Construction Project Management Consultants,Invoice,BACS,No,30/09/2022 00:00,2022,7,LNDM0034/030,P74040,Slyfield Area Regeneration Project,1221,Consultants Fees,XXX99,*** UNASSIGNED ***,WCC,CEC Recharges,WC,CEC Recharges,A,Central Services
GUILDFORD BOROUGH COUNCIL,Property,919010,Perfect Circle JV Ltd,25/10/2022,30083395,8638.25,0,Consultants Fees,Construction Project Management Consultants,Invoice,BACS,No,30/09/2022 00:00,2022,7,LNDM0031/040,P74040,Slyfield Area Regeneration Project,1221,Consultants Fees,XXX99,*** UNASSIGNED ***,WCC,CEC Recharges,WC,CEC Recharges,A,Central Services
GUILDFORD BOROUGH COUNCIL,Property,919010,Perfect Circle JV Ltd,25/10/2022,30083350,14058.22,0,Consultants Fees,Construction Project Management Consultants,Invoice,BACS,No,30/09/2022 00:00,2022,7,LNDM0033/025,P74040,Slyfield Area Regeneration Project,1221,Consultants Fees,XXX99,*** UNASSIGNED ***,WCC,CEC Recharges,WC,CEC Recharges,A,Central Services
GUILDFORD BOROUGH COUNCIL,Property,919010,Perfect Circle JV Ltd,25/10/2022,30083344,13327.07,0,Consultants Fees,Construction Project Management Consultants,Invoice,BACS,No,30/09/2022 00:00,2022,7,LNDM0035/025,P74040,Slyfield Area Regeneration Project,1221,Consultants Fees,XXX99,*** UNASSIGNED ***,WCC,CEC Recharges,WC,CEC Recharges,A,Central Services
GUILDFORD BOROUGH COUNCIL,Building Maintenance,921860,Cinnamon Construction Limited (CIS),25/10/2022,30085353,13203,0,Services,General Builders,Invoice,BACS,No,17/10/2022 00:00,2022,7,130,K1515,Building Maintenance,D6004,Services,DBX45,Property Services,DBX,Support Service and Management Costs,DB,Children's Social Care,E,Childrens and Education Services
GUILDFORD BOROUGH COUNCIL,Building Maintenance,921860,Cinnamon Construction Limited (CIS),25/10/2022,30085369,11710,0,Services,General Builders,Invoice,BACS,No,19/10/2022 00:00,2022,7,662022,K1515,Building Maintenance,D6004,Services,DBX45,Property Services,DBX,Support Service and Management Costs,DB,Children's Social Care,E,Childrens and Education Services
GUILDFORD BOROUGH COUNCIL,Homelessness Support,927730,anonymous,25/10/2022,30085301,2000,0,Deposit/Bonds Re-Paid,Software Developers,Invoice,BACS,No,21/10/2022 00:00,2022,7,Bond claim,C3311,Homelessness,D1202,Deposit/Bonds Re-Paid,KGU00,Supporting People - Strategy,KGU,Supporting People,KG,Housing General Fund,K,Housing Services
GUILDFORD BOROUGH COUNCIL,Industrial Estates,933760,Ant Structures Ltd,25/10/2022,30083950,830,0,Contractor Payments,Scaffolders,Invoice,BACS,No,30/09/2022 00:00,2022,7,953,P72045,Strategic Property Acquisitions,1233,Contractor Payments,,,,,,,,
GUILDFORD BOROUGH COUNCIL,Industrial Estates,933760,Ant Structures Ltd,25/10/2022,30083960,906,0,Contractor Payments,Scaffolders,Invoice,BACS,No,30/09/2022 00:00,2022,7,954,P72045,Strategic Property Acquisitions,1233,Contractor Payments,,,,,,,,
GUILDFORD BOROUGH COUNCIL,Private Sector Housing Maintenance,938540,BJC Design (Southeast) Ltd,25/10/2022,30084909,703.91,0,Services,Surveyors And Inspectors,Invoice,BACS,No,19/04/2022 00:00,2022,7,829,C5132,Care And Repair (Detr),D6004,Services,KGU00,Supporting People - Strategy,KGU,Supporting People,KG,Housing General Fund,K,Housing Services
GUILDFORD BOROUGH COUNCIL,Private Sector Housing Maintenance,938540,BJC Design (Southeast) Ltd,25/10/2022,30084918,723,0,Services,Surveyors And Inspectors,Invoice,BACS,No,07/04/2022 00:00,2022,7,822,C5132,Care And Repair (Detr),D6004,Services,KGU00,Supporting People - Strategy,KGU,Supporting People,KG,Housing General Fund,K,Housing Services
GUILDFORD BOROUGH COUNCIL,Private Sector Housing Maintenance,938540,BJC Design (Southeast) Ltd,25/10/2022,30084921,600.8,0,Contractors,Surveyors And Inspectors,Invoice,BACS,No,30/09/2022 00:00,2022,7,907,C5132,Care And Repair (Detr),D6012,Contractors,KGU00,Supporting People - Strategy,KGU,Supporting People,KG,Housing General Fund,K,Housing Services
GUILDFORD BOROUGH COUNCIL,Lead Specialist - HR,957830,TP Health Ltd,25/10/2022,30084920,535,0,Staff Costs,Health And Safety Training Providers,Invoice,BACS,No,30/09/2022 00:00,2022,7,7718,G2555,HR Services,A7100,Staff Costs,DBX70,Other Management Costs,DBX,Support Service and Management Costs,DB,Children's Social Care,E,Childrens and Education Services
GUILDFORD BOROUGH COUNCIL,Lead Specialist - HR,957830,TP Health Ltd,25/10/2022,30084640,4516.5,0,Staff Costs,Health And Safety Training Providers,Invoice,BACS,No,30/09/2022 00:00,2022,7,7758,G2555,HR Services,A7100,Staff Costs,DBX70,Other Management Costs,DBX,Support Service and Management Costs,DB,Children's Social Care,E,Childrens and Education Services
GUILDFORD BOROUGH COUNCIL,Licensing,968950,Mink Farm Boarding Kennels and Cattery,25/10/2022,30083575,2163.58,0,Specialist Services,Animal Boarding Service Providers,Invoice,BACS,No,30/09/2022 00:00,2022,7,47369,H2100,Licensing Services,D6009,Specialist Services,CEE15,Alcohol and entertainment licensing,CEE,Environmental Health (Regulatory Services),CE,Environmental & Regulatory Services,C,"Cultural, Environmental & Planning Services"
GUILDFORD BOROUGH COUNCIL,Property,974700,John Thompson & Partners LLP,25/10/2022,30083465,5000,0,Consultants Fees,,Invoice,BACS,No,30/09/2022 00:00,2022,7,S2991,P74040,Slyfield Area Regeneration Project,1221,Consultants Fees,XXX99,*** UNASSIGNED ***,WCC,CEC Recharges,WC,CEC Recharges,A,Central Services
GUILDFORD BOROUGH COUNCIL,Property,974700,John Thompson & Partners LLP,25/10/2022,30083477,10950,0,Consultants Fees,,Invoice,BACS,No,30/09/2022 00:00,2022,7,S2973,P74040,Slyfield Area Regeneration Project,1221,Consultants Fees,XXX99,*** UNASSIGNED ***,WCC,CEC Recharges,WC,CEC Recharges,A,Central Services
GUILDFORD BOROUGH COUNCIL,Property,974700,John Thompson & Partners LLP,25/10/2022,30083491,32970,0,Consultants Fees,,Invoice,BACS,No,30/09/2022 00:00,2022,7,S2995,P74040,Slyfield Area Regeneration Project,1221,Consultants Fees,XXX99,*** UNASSIGNED ***,WCC,CEC Recharges,WC,CEC Recharges,A,Central Services
GUILDFORD BOROUGH COUNCIL,Crematorium,974800,Contract Cleaning & Facilities Ltd,25/10/2022,30084022,650,0,Cleaning Contractors,Commercial Cleaners,Invoice,BACS,No,30/09/2022 00:00,2022,7,66133,A1500,Crematorium,D6006,Cleaning Contractors,CEA10,Crematoria,CEA,"Cemetery, Cremation and Mortuary Services",CE,Environmental & Regulatory Services,C,"Cultural, Environmental & Planning Services"
GUILDFORD BOROUGH COUNCIL,Grants,984970,The OT Practice Ltd,25/10/2022,30083936,1660,0,Contractor Payments,,Invoice,BACS,No,30/09/2022 00:00,2022,7,INV-037102,N51019,BCF Non Grant Expenditure,1233,Contractor Payments,XXX99,*** UNASSIGNED ***,WCC,CEC Recharges,WC,CEC Recharges,A,Central Services
GUILDFORD BOROUGH COUNCIL,Renovations,984970,The OT Practice Ltd,25/10/2022,30083946,405,0,Contractor Payments,,Invoice,BACS,No,30/09/2022 00:00,2022,7,INV-037104,N40295,Disabled adaptations,1233,Contractor Payments,,,,,,,,
GUILDFORD BOROUGH COUNCIL,Property,992900,Pinsent Masons LLP,25/10/2022,30083682,5498,0,Legal Expenses,Other Legal Service Providers,Invoice,BACS,No,29/09/2022 00:00,2022,7,6707064,P74040,Slyfield Area Regeneration Project,1395,Legal Expenses,XXX99,*** UNASSIGNED ***,WCC,CEC Recharges,WC,CEC Recharges,A,Central Services
GUILDFORD BOROUGH COUNCIL,Parks Countryside Management,1000015,Surrey First Aid Training,27/10/2022,30084240,408,0,Staff Costs,,Invoice,BACS,No,03/10/2022 00:00,2022,7,31022,A1300,Trees And Countryside,A7100,Staff Costs,CCE00,Community Parks & Open Spaces,CCE,Open Spaces,CC,Cultural & Related Services,C,"Cultural, Environmental & Planning Services"
GUILDFORD BOROUGH COUNCIL,Countryside and Parks Services,1000015,Surrey First Aid Training,27/10/2022,30084240,612,0,Staff Costs,,Invoice,BACS,No,03/10/2022 00:00,2022,7,31022,A1100,Horticulture,A7100,Staff Costs,CCE00,Community Parks & Open Spaces,CCE,Open Spaces,CC,Cultural & Related Services,C,"Cultural, Environmental & Planning Services"
GUILDFORD BOROUGH COUNCIL,Parks Countryside Management,1000016,Bill Kear Plant & Agricultural Cont. Ltd - Non CIS,27/10/2022,30084034,16442,0,Services,,Invoice,BACS,No,06/10/2022 00:00,2022,7,INV-1383,A1300,Trees And Countryside,D6004,Services,CCE00,Community Parks & Open Spaces,CCE,Open Spaces,CC,Cultural & Related Services,C,"Cultural, Environmental & Planning Services"
GUILDFORD BOROUGH COUNCIL,Major Projects,1000077,3R Finance Ltd,27/10/2022,30083539,1237.5,0,Agency,,Invoice,BACS,No,03/10/2022 00:00,2022,7,INV-73971,F5530,Major Projects,A5191,Agency,DBX70,Other Management Costs,DBX,Support Service and Management Costs,DB,Children's Social Care,E,Childrens and Education Services
GUILDFORD BOROUGH COUNCIL,Off Street Parking,1000332,SSG Support Services Group Ltd,27/10/2022,30083951,11666.67,0,Services,,Invoice,BACS,No,05/10/2022 00:00,2022,7,SSG/786/12385,B2216,General Upkeep- Urban Car Pks,D6004,Services,HTP10,Off-Street Parking,HTP,Parking Services,HT,"Highways, Roads and Transport Services",H,"Highways, Roads and Transport Services"
GUILDFORD BOROUGH COUNCIL,Family and Refugee Support Programme,1000434,First Advantage Europe Ltd,27/10/2022,30084890,430,0,Services,,Invoice,BACS,No,30/09/2022 00:00,2022,7,EC112652209,C3321,Refugee Support,D6004,Services,SSU00,Social Support  - Asylum Seeker Support,SSU,Social Support - Asylum Seeker Support,SS,Adult Social Care,S,Adult Social Care
GUILDFORD BOROUGH COUNCIL,Building Maintenance,1000451,AMG Electrical Ltd,27/10/2022,30085570,1175.23,0,Services,,Invoice,BACS,No,23/10/2022 00:00,2022,7,2210-06,K1515,Building Maintenance,D6004,Services,DBX45,Property Services,DBX,Support Service and Management Costs,DB,Children's Social Care,E,Childrens and Education Services
GUILDFORD BOROUGH COUNCIL,Building Maintenance,1000451,AMG Electrical Ltd,27/10/2022,30085570,252.92,0,Materials,,Invoice,BACS,No,23/10/2022 00:00,2022,7,2210-06,K1515,Building Maintenance,D2003,Materials,DBX45,Property Services,DBX,Support Service and Management Costs,DB,Children's Social Care,E,Childrens and Education Services
GUILDFORD BOROUGH COUNCIL,Digital Services,1000466,NimbusPoint Consulting Ltd,27/10/2022,30084033,8550,0,Services,,Invoice,BACS,No,07/10/2022 00:00,2022,7,1715,F1141,Internet Site Access,D6004,Services,DBX70,Other Management Costs,DBX,Support Service and Management Costs,DB,Children's Social Care,E,Childrens and Education Services
GUILDFORD BOROUGH COUNCIL,Homelessness Support,1000479,Legacy Lodgings Ltd,27/10/2022,30084002,309.19,0,Emergency Accomodation,,Invoice,BACS,No,03/10/2022 00:00,2022,7,INV-0638,C3311,Homelessness,D8009,Emergency Accomodation,KGU00,Supporting People - Strategy,KGU,Supporting People,KG,Housing General Fund,K,Housing Services
GUILDFORD BOROUGH COUNCIL,Homelessness Support,1000479,Legacy Lodgings Ltd,27/10/2022,30083978,280,0,Emergency Accomodation,,Invoice,BACS,No,03/10/2022 00:00,2022,7,INV-0625,C3311,Homelessness,D8009,Emergency Accomodation,KGU00,Supporting People - Strategy,KGU,Supporting People,KG,Housing General Fund,K,Housing Services
GUILDFORD BOROUGH COUNCIL,Renovations,1000518,Liquid Recruit Solutions Limited,27/10/2022,30083668,1375,0,Contractor Payments,,Invoice,BACS,No,04/10/2022 00:00,2022,7,12303,N40292,Fire protection works,1233,Contractor Payments,,,,,,,,
GUILDFORD BOROUGH COUNCIL,Renovations,1000518,Liquid Recruit Solutions Limited,27/10/2022,30083662,2116.05,0,Contractor Payments,,Invoice,BACS,No,04/10/2022 00:00,2022,7,12307,N40292,Fire protection works,1233,Contractor Payments,,,,,,,,
GUILDFORD BOROUGH COUNCIL,Renovations,1000518,Liquid Recruit Solutions Limited,27/10/2022,30083680,1929.58,0,Contractor Payments,,Invoice,BACS,No,04/10/2022 00:00,2022,7,12305,N40287,Electrical testing and smoke detectors,1233,Contractor Payments,,,,,,,,
GUILDFORD BOROUGH COUNCIL,Housing Surveying,1000518,Liquid Recruit Solutions Limited,27/10/2022,30083686,1865,0,Agency,,Invoice,BACS,No,04/10/2022 00:00,2022,7,12308,G6525,Housing Surveying Services,A5191,Agency,CEE20,Housing Standards,CEE,Environmental Health (Regulatory Services),CE,Environmental & Regulatory Services,C,"Cultural, Environmental & Planning Services"
GUILDFORD BOROUGH COUNCIL,Responsive & Planned Maintenance,1000518,Liquid Recruit Solutions Limited,27/10/2022,30083688,696.39,0,Agency,,Invoice,BACS,No,04/10/2022 00:00,2022,7,12304,M5111,Repairs-Admin (BHS),A5191,Agency,XXX99,*** UNASSIGNED ***,WCC,CEC Recharges,WC,CEC Recharges,A,Central Services
GUILDFORD BOROUGH COUNCIL,Renovations,1000518,Liquid Recruit Solutions Limited,27/10/2022,30083691,636.13,0,Contractor Payments,,Invoice,BACS,No,04/10/2022 00:00,2022,7,12306,N40287,Electrical testing and smoke detectors,1233,Contractor Payments,,,,,,,,
GUILDFORD BOROUGH COUNCIL,Renovations,1000518,Liquid Recruit Solutions Limited,27/10/2022,30083691,636.13,0,Contractor Payments,,Invoice,BACS,No,04/10/2022 00:00,2022,7,12306,N40292,Fire protection works,1233,Contractor Payments,,,,,,,,
GUILDFORD BOROUGH COUNCIL,Family and Refugee Support Programme,1000656,Defence Infrastructure Organisation,27/10/2022,30085580,416.67,0,Services,,Invoice,BACS,No,06/10/2022 00:00,2022,7,1155394,C3321,Refugee Support,D6004,Services,SSU00,Social Support  - Asylum Seeker Support,SSU,Social Support - Asylum Seeker Support,SS,Adult Social Care,S,Adult Social Care
GUILDFORD BOROUGH COUNCIL,Family and Refugee Support Programme,1000656,Defence Infrastructure Organisation,27/10/2022,30085571,416.67,0,Services,,Invoice,BACS,No,06/10/2022 00:00,2022,7,1155395,C3321,Refugee Support,D6004,Services,SSU00,Social Support  - Asylum Seeker Support,SSU,Social Support - Asylum Seeker Support,SS,Adult Social Care,S,Adult Social Care
GUILDFORD BOROUGH COUNCIL,New Build,1000700,Four Communications Ltd,27/10/2022,30083986,3000,0,Consultants Fees,,Invoice,BACS,No,06/10/2022 00:00,2022,7,FC042979,N30011,Guildford Park,1221,Consultants Fees,XXX99,*** UNASSIGNED ***,WCC,CEC Recharges,WC,CEC Recharges,A,Central Services
GUILDFORD BOROUGH COUNCIL,Industrial Estates,1000744,Ecotricity Limited,27/10/2022,30084753,268.1,0,Utilities,,Invoice,BACS,No,06/10/2022 00:00,2022,7,2756036,B5341,Midleton Industrial Estate,B2001,Utilities,CPJ00,Market Undertakings,CPJ,Economic Development,CP,Planning and Development Services,C,"Cultural, Environmental & Planning Services"
GUILDFORD BOROUGH COUNCIL,Community Safety,1000776,South West Surrey Domestic Abuse Outreach Service,27/10/2022,30084916,2000,0,Grants And Subscriptions,,Invoice,BACS,No,07/10/2022 00:00,2022,7,6,F5724,Safer Guildford Partnership,D9001,Grants And Subscriptions,CEH00,Community Safety (Safety Services),CEH,Community Safety (Safety Services),CE,Environmental & Regulatory Services,C,"Cultural, Environmental & Planning Services"
GUILDFORD BOROUGH COUNCIL,Investment Properties,1000814,HDP Building Surveyors,27/10/2022,30085295,2674,0,Valuers Fees,,Invoice,BACS,No,06/10/2022 00:00,2022,7,3379,B6111,Investment Property,D6002,Valuers Fees,CPJ00,Market Undertakings,CPJ,Economic Development,CP,Planning and Development Services,C,"Cultural, Environmental & Planning Services"
GUILDFORD BOROUGH COUNCIL,Telephony Holding Account (Service),105900,British Telecom (Durham),27/10/2022,30085356,1055.98,0,Telephones & Broadband,Fixed Telecoms Service Providers,Invoice,BACS,No,10/10/2022 00:00,2022,7,Q013DE,G1151,Telephony Holding Account,D7004,Telephones & Broadband,,,,,,,,
GUILDFORD BOROUGH COUNCIL,Building Maintenance,127500,Chambers Waste Management Plc,27/10/2022,30085001,667.79,0,Materials,Other Waste Disposal Suppliers,Invoice,BACS,No,09/10/2022 00:00,2022,7,P586288,K1515,Building Maintenance,D2003,Materials,DBX45,Property Services,DBX,Support Service and Management Costs,DB,Children's Social Care,E,Childrens and Education Services
GUILDFORD BOROUGH COUNCIL,Building Maintenance,127500,Chambers Waste Management Plc,27/10/2022,30084743,540.84,0,Materials,Other Waste Disposal Suppliers,Invoice,BACS,No,09/10/2022 00:00,2022,7,P585789,K1515,Building Maintenance,D2003,Materials,DBX45,Property Services,DBX,Support Service and Management Costs,DB,Children's Social Care,E,Childrens and Education Services
GUILDFORD BOROUGH COUNCIL,Vehicle Maintenance,145000,Connections UK,27/10/2022,30084382,283.95,0,Repair And Maintenance Of Vehicles,Event Management Agencies,Invoice,BACS,No,05/10/2022 00:00,2022,7,4177,K5551,Fleet Workshops,C1002,Repair And Maintenance Of Vehicles,W3A48,Current Service Costs - Fleet Management,W3A,Current Service Costs adjustment,W3,Current Service Costs,W,Other Operating Income and Expenditure
GUILDFORD BOROUGH COUNCIL,Tourism & Development,146900,Cooper & Withycombe Ltd,27/10/2022,30083945,866.25,0,GF Assets - Maintenance,Other Construction Consultants,Invoice,BACS,No,05/10/2022 00:00,2022,7,22-4166,F5525,Economic Development,B1004,GF Assets - Maintenance,CCF00,"Tourism Policy, Marketing & Development",CCF,Tourism,CC,Cultural & Related Services,C,"Cultural, Environmental & Planning Services"
GUILDFORD BOROUGH COUNCIL,Homelessness Support,147020,Catalyst Support Limited,27/10/2022,30083989,26270,0,Grants And Subscriptions,Third Party Supplier,Invoice,BACS,No,06/10/2022 00:00,2022,7,2022/38,C3311,Homelessness,D9001,Grants And Subscriptions,KGU00,Supporting People - Strategy,KGU,Supporting People,KG,Housing General Fund,K,Housing Services
GUILDFORD BOROUGH COUNCIL,Building Control,156250,Hays Specialist Recruitment Limited,27/10/2022,30084000,2433.95,0,Agency,Other Recruitment Agencies And Service Providers,Invoice,BACS,No,06/10/2022 00:00,2022,7,1012505668,D5700,Building Control - Fee,A5191,Agency,CPB00,Building Regulations,CPB,Building Control,CP,Planning and Development Services,C,"Cultural, Environmental & Planning Services"
GUILDFORD BOROUGH COUNCIL,Lead Specialist - Finance,156250,Hays Specialist Recruitment Limited,27/10/2022,30083666,2880,0,Agency,Other Recruitment Agencies And Service Providers,Invoice,BACS,No,04/10/2022 00:00,2022,7,1012499483,G3593,Procurement Services,A5191,Agency,DBX35,Finance (including Internal Audit),DBX,Support Service and Management Costs,DB,Children's Social Care,E,Childrens and Education Services
GUILDFORD BOROUGH COUNCIL,Crematorium,174500,anonymous,27/10/2022,30084032,3629,0,Services,,Invoice,BACS,No,08/10/2022 00:00,2022,7,22,A1500,Crematorium,D6004,Services,CEA10,Crematoria,CEA,"Cemetery, Cremation and Mortuary Services",CE,Environmental & Regulatory Services,C,"Cultural, Environmental & Planning Services"
GUILDFORD BOROUGH COUNCIL,Inventories,178400,Akw Medi-Care Limited,27/10/2022,30084360,2448.42,0,Purchases,Mobility Disability Equipment Suppliers,Invoice,BACS,No,05/10/2022 00:00,2022,7,2091960,I01001,Stocks,2591,Purchases,,,,,,,,
GUILDFORD BOROUGH COUNCIL,Other Property,178880,E.On,27/10/2022,30084772,354.72,0,Utilities,Mains Utility Multiple Service Providers,Invoice,BACS,No,06/10/2022 00:00,2022,7,KI-268F81FF-0016,B6594,White Hart Meadows Car Park,B2001,Utilities,DBX45,Property Services,DBX,Support Service and Management Costs,DB,Children's Social Care,E,Childrens and Education Services
GUILDFORD BOROUGH COUNCIL,Resources Caseworker,185800,Elliott Baxter & Company Limited,27/10/2022,30083698,600,0,Stationery & Paper,Paper Products Suppliers,Invoice,BACS,No,03/10/2022 00:00,2022,7,INV4097035,G4545,Reprographics,D5007,Stationery & Paper,DBX70,Other Management Costs,DBX,Support Service and Management Costs,DB,Children's Social Care,E,Childrens and Education Services
GUILDFORD BOROUGH COUNCIL,Resources Caseworker,186720,Quadient UK Ltd,27/10/2022,30084049,432,0,Materials,Postal Equipment Suppliers,Invoice,BACS,No,06/10/2022 00:00,2022,7,92920360,G4545,Reprographics,D2003,Materials,DBX70,Other Management Costs,DBX,Support Service and Management Costs,DB,Children's Social Care,E,Childrens and Education Services
GUILDFORD BOROUGH COUNCIL,Woking Road Depot,192880,Siemens Financial Services Limited,27/10/2022,30083935,1105,0,Services,Other Leasing Companies,Invoice,BACS,No,05/10/2022 00:00,2022,7,244/23/0002299,B4452,Woking Road Depot,D6004,Services,W3A48,Current Service Costs - Fleet Management,W3A,Current Service Costs adjustment,W3,Current Service Costs,W,Other Operating Income and Expenditure
GUILDFORD BOROUGH COUNCIL,Events,199300,FASTSIGNS (Guildford) Ltd,27/10/2022,30084038,385,0,"Advertising, Publicity & Promotion",Building Signage Suppliers,Invoice,BACS,No,07/10/2022 00:00,2022,7,858--18456,A1850,Parks Events And Bookings,D5002,"Advertising, Publicity & Promotion",CCD00,Community Centres and Public Halls,CCD,Recreation & Sport,CC,Cultural & Related Services,C,"Cultural, Environmental & Planning Services"
GUILDFORD BOROUGH COUNCIL,Vehicle Maintenance,221340,Aebi Schmidt UK Limited,27/10/2022,30083942,1062.42,0,Repair And Maintenance Of Vehicles,Other Vehicle Dealers,Invoice,BACS,No,05/10/2022 00:00,2022,7,60283473,K5551,Fleet Workshops,C1002,Repair And Maintenance Of Vehicles,W3A48,Current Service Costs - Fleet Management,W3A,Current Service Costs adjustment,W3,Current Service Costs,W,Other Operating Income and Expenditure
GUILDFORD BOROUGH COUNCIL,Building Maintenance,222430,Wastecare Ltd,27/10/2022,30083990,557,0,Materials,Other Waste Disposal Suppliers,Invoice,BACS,No,04/10/2022 00:00,2022,7,YSI-919266,K1515,Building Maintenance,D2003,Materials,DBX45,Property Services,DBX,Support Service and Management Costs,DB,Children's Social Care,E,Childrens and Education Services
GUILDFORD BOROUGH COUNCIL,Vehicle Maintenance,252180,Ecobat Battery UK Ltd (formerly Manbat Ltd),27/10/2022,30084696,340.62,0,Repair And Maintenance Of Vehicles,Third Party Supplier,Invoice,BACS,No,06/10/2022 00:00,2022,7,22227125,K5551,Fleet Workshops,C1002,Repair And Maintenance Of Vehicles,W3A48,Current Service Costs - Fleet Management,W3A,Current Service Costs adjustment,W3,Current Service Costs,W,Other Operating Income and Expenditure
GUILDFORD BOROUGH COUNCIL,Spectrum,259720,Guy Rutherford Management Ltd t/a Southern Industrial Roofing,27/10/2022,30085527,1064.22,0,Contractor Payments,Roofers,Invoice,BACS,No,12/10/2022 00:00,2022,7,6144,P22062,Spectrum Roof,1233,Contractor Payments,,,,,,,,
GUILDFORD BOROUGH COUNCIL,Corporate Property Management,291600,Lambert Smith Hampton Group Limited,27/10/2022,30083938,375,0,Valuers Fees,Outsourced Building Management Service Providers,Invoice,BACS,No,05/10/2022 00:00,2022,7,ARINV/00531762,G4575,Asset Management,D6002,Valuers Fees,DBX45,Property Services,DBX,Support Service and Management Costs,DB,Children's Social Care,E,Childrens and Education Services
GUILDFORD BOROUGH COUNCIL,Lead Specialist - HR,324350,Comensura Ltd,27/10/2022,30085581,28258.18,0,Agency,Other Recruitment Agencies And Service Providers,Invoice,BACS,No,23/10/2022 00:00,2022,7,1093078,G1161,Commensura Holding Account,A5191,Agency,,,,,,,,
GUILDFORD BOROUGH COUNCIL,Renovations,342910,Rand Associates Consultancy Services Ltd,27/10/2022,30083573,13149.5,0,Consultants Fees,Quantity Surveyors,Invoice,BACS,No,03/10/2022 00:00,2022,7,8756,N40291,Condition Appraisals,1221,Consultants Fees,,,,,,,,
GUILDFORD BOROUGH COUNCIL,Responsive & Planned Maintenance,442770,Clearway Environmental Services (UK) Ltd,27/10/2022,30084275,385,0,Cleaning Contractors,Other Waste Disposal Suppliers,Invoice,BACS,No,07/10/2022 00:00,2022,7,536041,M5113,Repairs-Responsive (BHS),D6006,Cleaning Contractors,XXX99,*** UNASSIGNED ***,WCC,CEC Recharges,WC,CEC Recharges,A,Central Services
GUILDFORD BOROUGH COUNCIL,Development Control,454730,Alexander Advertising (International) Ltd,27/10/2022,30084365,457.37,0,"Advertising, Publicity & Promotion",Full Service Marketing Agencies,Invoice,BACS,No,07/10/2022 00:00,2022,7,1303R23,D5100,Development Control - Fee Earn,D5002,"Advertising, Publicity & Promotion",CPC00,Development Control Advice,CPC,Development Control,CP,Planning and Development Services,C,"Cultural, Environmental & Planning Services"
GUILDFORD BOROUGH COUNCIL,Homelessness Support,461000,Adecco UK Ltd,27/10/2022,30084373,1252.13,0,Agency,Other Recruitment Agencies And Service Providers,Invoice,BACS,No,03/10/2022 00:00,2022,7,TP0104,C3311,Homelessness,A5191,Agency,KGU00,Supporting People - Strategy,KGU,Supporting People,KG,Housing General Fund,K,Housing Services
GUILDFORD BOROUGH COUNCIL,Responsive & Planned Maintenance,510000,Albury S.I. Limited,27/10/2022,30084315,1678,0,Consultancy,Third Party Supplier,Invoice,BACS,No,03/10/2022 00:00,2022,7,17512,M5113,Repairs-Responsive (BHS),D6001,Consultancy,XXX99,*** UNASSIGNED ***,WCC,CEC Recharges,WC,CEC Recharges,A,Central Services
GUILDFORD BOROUGH COUNCIL,Street Cleansing,601700,N A Brown Ltd,27/10/2022,30083957,1543.6,0,Repair And Maintenance Of Vehicles,Commercial Cleaners,Invoice,BACS,No,03/10/2022 00:00,2022,7,35130,K4551,Street Cleansing,C1002,Repair And Maintenance Of Vehicles,CES00,Street Cleansing (not chargeable to highways),CES,Street Cleansing (not chargeable to highways),CE,Environmental & Regulatory Services,C,"Cultural, Environmental & Planning Services"
GUILDFORD BOROUGH COUNCIL,Street Cleansing,601700,N A Brown Ltd,27/10/2022,30083957,463.5,0,Repair And Maintenance Of Vehicles,Commercial Cleaners,Invoice,BACS,No,03/10/2022 00:00,2022,7,35130,K4551,Street Cleansing,C1002,Repair And Maintenance Of Vehicles,CES00,Street Cleansing (not chargeable to highways),CES,Street Cleansing (not chargeable to highways),CE,Environmental & Regulatory Services,C,"Cultural, Environmental & Planning Services"
GUILDFORD BOROUGH COUNCIL,Street Cleansing,601700,N A Brown Ltd,27/10/2022,30083957,479,0,Repair And Maintenance Of Vehicles,Commercial Cleaners,Invoice,BACS,No,03/10/2022 00:00,2022,7,35130,K4551,Street Cleansing,C1002,Repair And Maintenance Of Vehicles,CES00,Street Cleansing (not chargeable to highways),CES,Street Cleansing (not chargeable to highways),CE,Environmental & Regulatory Services,C,"Cultural, Environmental & Planning Services"
GUILDFORD BOROUGH COUNCIL,Lead Specialist - ICT,668140,Softcat Limited,27/10/2022,30083674,3704.86,0,ICT Software,It Support Service Providers,Invoice,BACS,No,04/10/2022 00:00,2022,7,INVUK589299,G3548,ICT Technical & Infrastructure,D7002,ICT Software,DBX70,Other Management Costs,DBX,Support Service and Management Costs,DB,Children's Social Care,E,Childrens and Education Services
GUILDFORD BOROUGH COUNCIL,Countryside and Parks Services,668590,Land Skills Training & Assessments Ltd,27/10/2022,30084919,415,0,Staff Costs,Other Training Providers,Invoice,BACS,No,07/10/2022 00:00,2022,7,4828,A1100,Horticulture,A7100,Staff Costs,CCE00,Community Parks & Open Spaces,CCE,Open Spaces,CC,Cultural & Related Services,C,"Cultural, Environmental & Planning Services"
GUILDFORD BOROUGH COUNCIL,Building Maintenance,686720,Surrey County Windows Ltd,27/10/2022,30085569,1498.19,0,Services,Window And Door Installers,Invoice,BACS,No,19/10/2022 00:00,2022,7,NDH006,K1515,Building Maintenance,D6004,Services,DBX45,Property Services,DBX,Support Service and Management Costs,DB,Children's Social Care,E,Childrens and Education Services
GUILDFORD BOROUGH COUNCIL,Building Maintenance,686720,Surrey County Windows Ltd,27/10/2022,30085569,2353.15,0,Materials,Window And Door Installers,Invoice,BACS,No,19/10/2022 00:00,2022,7,NDH006,K1515,Building Maintenance,D2003,Materials,DBX45,Property Services,DBX,Support Service and Management Costs,DB,Children's Social Care,E,Childrens and Education Services
GUILDFORD BOROUGH COUNCIL,Property,704580,Energy Assess UK Ltd,27/10/2022,30083927,345,0,Contractor Payments,Surveyors And Inspectors,Invoice,BACS,No,05/10/2022 00:00,2022,7,17043,P74058,Energy Efficiency Compliance,1233,Contractor Payments,XXX99,*** UNASSIGNED ***,WCC,CEC Recharges,WC,CEC Recharges,A,Central Services
GUILDFORD BOROUGH COUNCIL,Property,704580,Energy Assess UK Ltd,27/10/2022,30083959,385,0,Contractor Payments,Surveyors And Inspectors,Invoice,BACS,No,05/10/2022 00:00,2022,7,17044,P74058,Energy Efficiency Compliance,1233,Contractor Payments,XXX99,*** UNASSIGNED ***,WCC,CEC Recharges,WC,CEC Recharges,A,Central Services
GUILDFORD BOROUGH COUNCIL,SPA Sites,705240,Countryside Contracts Ltd (CIS),27/10/2022,30085337,576,0,Grounds Maintenance,Tree Work Contractors,Invoice,BACS,No,07/10/2022 00:00,2022,7,2199,A1010,SPA Sites,B6001,Grounds Maintenance,CCE00,Community Parks & Open Spaces,CCE,Open Spaces,CC,Cultural & Related Services,C,"Cultural, Environmental & Planning Services"
GUILDFORD BOROUGH COUNCIL,Building Maintenance,713710,D G Property Refurbishment Ltd,27/10/2022,30085593,3068.71,0,Services,Restoration Specialists,Invoice,BACS,No,24/10/2022 00:00,2022,7,159,K1515,Building Maintenance,D6004,Services,DBX45,Property Services,DBX,Support Service and Management Costs,DB,Children's Social Care,E,Childrens and Education Services
GUILDFORD BOROUGH COUNCIL,Building Maintenance,713710,D G Property Refurbishment Ltd,27/10/2022,30085593,2700,0,Materials,Restoration Specialists,Invoice,BACS,No,24/10/2022 00:00,2022,7,159,K1515,Building Maintenance,D2003,Materials,DBX45,Property Services,DBX,Support Service and Management Costs,DB,Children's Social Care,E,Childrens and Education Services
GUILDFORD BOROUGH COUNCIL,Countryside and Parks Services,714600,Origin Amenity Solutions Ltd (OAS),27/10/2022,30083982,2352,0,Materials,Gardening Equipment Suppliers,Invoice,BACS,No,06/10/2022 00:00,2022,7,OASI0036685,A1200,Sports Grounds,D2003,Materials,CCE00,Community Parks & Open Spaces,CCE,Open Spaces,CC,Cultural & Related Services,C,"Cultural, Environmental & Planning Services"
GUILDFORD BOROUGH COUNCIL,Strategic Support,718130,A.I.M. Removals & Deliveries,27/10/2022,30084014,550,0,Expenses,Removal Service Providers,Invoice,BACS,No,06/10/2022 00:00,2022,7,1052,M8121,Strategic Support (SHS),D8004,Expenses,XXX99,*** UNASSIGNED ***,WCC,CEC Recharges,WC,CEC Recharges,A,Central Services
GUILDFORD BOROUGH COUNCIL,Responsive & Planned Maintenance,729420,Morgan Hunt UK Limited,27/10/2022,30084682,1846.6,0,Agency,Other Recruitment Agencies And Service Providers,Invoice,BACS,No,09/10/2022 00:00,2022,7,1289309,M5111,Repairs-Admin (BHS),A5191,Agency,XXX99,*** UNASSIGNED ***,WCC,CEC Recharges,WC,CEC Recharges,A,Central Services
GUILDFORD BOROUGH COUNCIL,Responsive & Planned Maintenance,729420,Morgan Hunt UK Limited,27/10/2022,30084692,1899.05,0,Agency,Other Recruitment Agencies And Service Providers,Invoice,BACS,No,09/10/2022 00:00,2022,7,1289310,M5111,Repairs-Admin (BHS),A5191,Agency,XXX99,*** UNASSIGNED ***,WCC,CEC Recharges,WC,CEC Recharges,A,Central Services
GUILDFORD BOROUGH COUNCIL,Responsive & Planned Maintenance,729420,Morgan Hunt UK Limited,27/10/2022,30084653,1328.6,0,Agency,Other Recruitment Agencies And Service Providers,Invoice,BACS,No,09/10/2022 00:00,2022,7,1289312,M5111,Repairs-Admin (BHS),A5191,Agency,XXX99,*** UNASSIGNED ***,WCC,CEC Recharges,WC,CEC Recharges,A,Central Services
GUILDFORD BOROUGH COUNCIL,Responsive & Planned Maintenance,729420,Morgan Hunt UK Limited,27/10/2022,30084709,1457.25,0,Agency,Other Recruitment Agencies And Service Providers,Invoice,BACS,No,09/10/2022 00:00,2022,7,1289314,M5111,Repairs-Admin (BHS),A5191,Agency,XXX99,*** UNASSIGNED ***,WCC,CEC Recharges,WC,CEC Recharges,A,Central Services
GUILDFORD BOROUGH COUNCIL,Renovations,729420,Morgan Hunt UK Limited,27/10/2022,30084710,323.16,0,Agency Staff,Other Recruitment Agencies And Service Providers,Invoice,BACS,No,09/10/2022 00:00,2022,7,1289311,N40292,Fire protection works,1222,Agency Staff,,,,,,,,
GUILDFORD BOROUGH COUNCIL,Modern Homes,729420,Morgan Hunt UK Limited,27/10/2022,30084710,430.88,0,Agency Staff,Other Recruitment Agencies And Service Providers,Invoice,BACS,No,09/10/2022 00:00,2022,7,1289311,N42068,"Kitchen, bathroom and electrical upgrades",1222,Agency Staff,,,,,,,,
GUILDFORD BOROUGH COUNCIL,Renovations,729420,Morgan Hunt UK Limited,27/10/2022,30084710,1400.36,0,Agency Staff,Other Recruitment Agencies And Service Providers,Invoice,BACS,No,09/10/2022 00:00,2022,7,1289311,N40287,Electrical testing and smoke detectors,1222,Agency Staff,,,,,,,,
GUILDFORD BOROUGH COUNCIL,Day Services,742000,Scattergoods Agency Ltd,27/10/2022,30083943,675,0,Agency,Other Recruitment Agencies And Service Providers,Invoice,BACS,No,04/10/2022 00:00,2022,7,431951,C8100,Community Hubs,A5191,Agency,KGU00,Supporting People - Strategy,KGU,Supporting People,KG,Housing General Fund,K,Housing Services
GUILDFORD BOROUGH COUNCIL,Off Street Parking,759110,Harpers Door Specialists,27/10/2022,30085325,450,0,GF Assets - Maintenance,"Security Shutter, Door And Gate Contractors",Invoice,BACS,No,20/10/2022 00:00,2022,7,SI-4023,B2244,Farnham Road Mscp,B1004,GF Assets - Maintenance,HTP10,Off-Street Parking,HTP,Parking Services,HT,"Highways, Roads and Transport Services",H,"Highways, Roads and Transport Services"
GUILDFORD BOROUGH COUNCIL,Tenant Services,760100,Southern Electric (Business Accounts),27/10/2022,30084235,622.65,0,Utilities,Mains Electricity Suppliers,Invoice,BACS,No,04/10/2022 00:00,2022,7,291791560-0041,M1151,Tenants Services (BHS),B2001,Utilities,XXX99,*** UNASSIGNED ***,WCC,CEC Recharges,WC,CEC Recharges,A,Central Services
GUILDFORD BOROUGH COUNCIL,Vehicle Maintenance,760300,Southern Electromotive Distribution Ltd,27/10/2022,30084741,341.92,0,Repair And Maintenance Of Vehicles,Car And Van Servicing And Maintenance Providers,Invoice,BACS,No,07/10/2022 00:00,2022,7,436724,K5551,Fleet Workshops,C1002,Repair And Maintenance Of Vehicles,W3A48,Current Service Costs - Fleet Management,W3A,Current Service Costs adjustment,W3,Current Service Costs,W,Other Operating Income and Expenditure
GUILDFORD BOROUGH COUNCIL,Lead Specialist - Finance,789120,Adelante Software Ltd,27/10/2022,30083974,534.2,0,ICT Software,Software Developers,Invoice,BACS,No,05/10/2022 00:00,2022,7,138467,G3565,Finance Specialists,D7002,ICT Software,DBX35,Finance (including Internal Audit),DBX,Support Service and Management Costs,DB,Children's Social Care,E,Childrens and Education Services
GUILDFORD BOROUGH COUNCIL,Parks Countryside Management,795800,CTG Enterprises Ltd,27/10/2022,30084410,7488,0,Materials,Other Cleaning And Janitorial Service Providers,Invoice,BACS,No,03/10/2022 00:00,2022,7,GU1983GBC,A1300,Trees And Countryside,D2003,Materials,CCE00,Community Parks & Open Spaces,CCE,Open Spaces,CC,Cultural & Related Services,C,"Cultural, Environmental & Planning Services"
GUILDFORD BOROUGH COUNCIL,Tenant Services,814220,The Oyster Partnership Ltd,27/10/2022,30083925,1110,0,Agency,Other Recruitment Agencies And Service Providers,Invoice,BACS,No,05/10/2022 00:00,2022,7,10940520,M1151,Tenants Services (BHS),A5191,Agency,XXX99,*** UNASSIGNED ***,WCC,CEC Recharges,WC,CEC Recharges,A,Central Services
GUILDFORD BOROUGH COUNCIL,Case Services,829540,Eden Brown Ltd,27/10/2022,30084041,987.9,0,Agency,Other Recruitment Agencies And Service Providers,Invoice,BACS,No,05/10/2022 00:00,2022,7,1299863,C6100,Case Services,A5191,Agency,DBX35,Finance (including Internal Audit),DBX,Support Service and Management Costs,DB,Children's Social Care,E,Childrens and Education Services
GUILDFORD BOROUGH COUNCIL,Building Maintenance,846250,Revive Services (CIS),27/10/2022,30085584,2230,0,Services,Other Cleaning And Janitorial Service Providers,Invoice,BACS,No,24/10/2022 00:00,2022,7,182,K1515,Building Maintenance,D6004,Services,DBX45,Property Services,DBX,Support Service and Management Costs,DB,Children's Social Care,E,Childrens and Education Services
GUILDFORD BOROUGH COUNCIL,Building Maintenance,846250,Revive Services (CIS),27/10/2022,30085602,500,0,Services,Other Cleaning And Janitorial Service Providers,Invoice,BACS,No,24/10/2022 00:00,2022,7,181,K1515,Building Maintenance,D6004,Services,DBX45,Property Services,DBX,Support Service and Management Costs,DB,Children's Social Care,E,Childrens and Education Services
GUILDFORD BOROUGH COUNCIL,Homelessness Support,847120,Project 114 Ltd,27/10/2022,30083591,2070,0,Emergency Accomodation,Property Letting And Estate Agents,Invoice,BACS,No,03/10/2022 00:00,2022,7,3490,C3311,Homelessness,D8009,Emergency Accomodation,KGU00,Supporting People - Strategy,KGU,Supporting People,KG,Housing General Fund,K,Housing Services
GUILDFORD BOROUGH COUNCIL,Telephony Holding Account (Service),853640,EE Limited (Airtime Payments),27/10/2022,30084705,8163.46,0,Telephones & Broadband,Mobile Communications Service Providers,Invoice,BACS,No,03/10/2022 00:00,2022,7,1287639678,G1151,Telephony Holding Account,D7004,Telephones & Broadband,,,,,,,,
GUILDFORD BOROUGH COUNCIL,New Build,856800,Vivid Resourcing Limited,27/10/2022,30083958,500,0,Consultants Fees,Other Recruitment Agencies And Service Providers,Invoice,BACS,No,05/10/2022 00:00,2022,7,90334,N30022,Manor House Flats,1221,Consultants Fees,XXX99,*** UNASSIGNED ***,WCC,CEC Recharges,WC,CEC Recharges,A,Central Services
GUILDFORD BOROUGH COUNCIL,New Build,856800,Vivid Resourcing Limited,27/10/2022,30083958,750,0,Consultants Fees,Other Recruitment Agencies And Service Providers,Invoice,BACS,No,05/10/2022 00:00,2022,7,90334,N30023,Bright Hill,1221,Consultants Fees,,,,,,,,
GUILDFORD BOROUGH COUNCIL,Homelessness Support,856800,Vivid Resourcing Limited,27/10/2022,30083961,1184,0,Agency,Other Recruitment Agencies And Service Providers,Invoice,BACS,No,05/10/2022 00:00,2022,7,90335,C3311,Homelessness,A5191,Agency,KGU00,Supporting People - Strategy,KGU,Supporting People,KG,Housing General Fund,K,Housing Services
GUILDFORD BOROUGH COUNCIL,Countryside and Parks Services,863000,Winchester Garden Machinery Limited,27/10/2022,30083690,857.01,0,Vehicle Operating Costs,Gardening Equipment Suppliers,Invoice,BACS,No,04/10/2022 00:00,2022,7,120678,A1100,Horticulture,C1001,Vehicle Operating Costs,CCE00,Community Parks & Open Spaces,CCE,Open Spaces,CC,Cultural & Related Services,C,"Cultural, Environmental & Planning Services"
GUILDFORD BOROUGH COUNCIL,Countryside and Parks Services,863000,Winchester Garden Machinery Limited,27/10/2022,30083690,834.75,0,Vehicle Operating Costs,Gardening Equipment Suppliers,Invoice,BACS,No,04/10/2022 00:00,2022,7,120678,A1100,Horticulture,C1001,Vehicle Operating Costs,CCE00,Community Parks & Open Spaces,CCE,Open Spaces,CC,Cultural & Related Services,C,"Cultural, Environmental & Planning Services"
GUILDFORD BOROUGH COUNCIL,Property,872990,Marks Consulting Partners Limited,27/10/2022,30083962,3000,0,Consultants Fees,Other Recruitment Agencies And Service Providers,Invoice,BACS,No,05/10/2022 00:00,2022,7,INV-6489,P74040,Slyfield Area Regeneration Project,1221,Consultants Fees,XXX99,*** UNASSIGNED ***,WCC,CEC Recharges,WC,CEC Recharges,A,Central Services
GUILDFORD BOROUGH COUNCIL,Building Control,877460,JJ Surveying Ltd,27/10/2022,30083559,577.5,0,Consultancy,Surveyors And Inspectors,Invoice,BACS,No,03/10/2022 00:00,2022,7,1610,D5700,Building Control - Fee,D6001,Consultancy,CPB00,Building Regulations,CPB,Building Control,CP,Planning and Development Services,C,"Cultural, Environmental & Planning Services"
GUILDFORD BOROUGH COUNCIL,Vehicle Maintenance,882220,Fuller Tyres Limited,27/10/2022,30085503,283,0,Repair And Maintenance Of Vehicles,Other Vehicle Equipment Providers,Invoice,BACS,No,15/09/2022 00:00,2022,7,FTI-40088,K5551,Fleet Workshops,C1002,Repair And Maintenance Of Vehicles,W3A48,Current Service Costs - Fleet Management,W3A,Current Service Costs adjustment,W3,Current Service Costs,W,Other Operating Income and Expenditure
GUILDFORD BOROUGH COUNCIL,Homelessness Support,898090,Top Mill Limited,27/10/2022,30084242,840,0,Emergency Accomodation,Hotels,Invoice,BACS,No,03/10/2022 00:00,2022,7,4437,C3311,Homelessness,D8009,Emergency Accomodation,KGU00,Supporting People - Strategy,KGU,Supporting People,KG,Housing General Fund,K,Housing Services
GUILDFORD BOROUGH COUNCIL,Homelessness Support,898090,Top Mill Limited,27/10/2022,30084245,450,0,Emergency Accomodation,Hotels,Invoice,BACS,No,03/10/2022 00:00,2022,7,4439,C3311,Homelessness,D8009,Emergency Accomodation,KGU00,Supporting People - Strategy,KGU,Supporting People,KG,Housing General Fund,K,Housing Services
GUILDFORD BOROUGH COUNCIL,Building Maintenance,921860,Cinnamon Construction Limited (CIS),27/10/2022,30085610,8868.5,0,Services,General Builders,Invoice,BACS,No,24/10/2022 00:00,2022,7,131,K1515,Building Maintenance,D6004,Services,DBX45,Property Services,DBX,Support Service and Management Costs,DB,Children's Social Care,E,Childrens and Education Services
GUILDFORD BOROUGH COUNCIL,Building Maintenance,946970,Davis Property Services GU Limited (CIS),27/10/2022,30085575,8522.83,0,Services,Roofers,Invoice,BACS,No,20/10/2022 00:00,2022,7,2252,K1515,Building Maintenance,D6004,Services,DBX45,Property Services,DBX,Support Service and Management Costs,DB,Children's Social Care,E,Childrens and Education Services
GUILDFORD BOROUGH COUNCIL,Building Maintenance,969700,A Star Maintenance Contractors Ltd (CIS),27/10/2022,30085621,700,0,Services,Property Maintenance Contractors,Invoice,BACS,No,19/10/2022 00:00,2022,7,14453,K1515,Building Maintenance,D6004,Services,DBX45,Property Services,DBX,Support Service and Management Costs,DB,Children's Social Care,E,Childrens and Education Services
GUILDFORD BOROUGH COUNCIL,Building Maintenance,969700,A Star Maintenance Contractors Ltd (CIS),27/10/2022,30085608,777,0,Services,Property Maintenance Contractors,Invoice,BACS,No,19/10/2022 00:00,2022,7,14452,K1515,Building Maintenance,D6004,Services,DBX45,Property Services,DBX,Support Service and Management Costs,DB,Children's Social Care,E,Childrens and Education Services
GUILDFORD BOROUGH COUNCIL,Building Maintenance,969700,A Star Maintenance Contractors Ltd (CIS),27/10/2022,30085608,381.1,0,Materials,Property Maintenance Contractors,Invoice,BACS,No,19/10/2022 00:00,2022,7,14452,K1515,Building Maintenance,D2003,Materials,DBX45,Property Services,DBX,Support Service and Management Costs,DB,Children's Social Care,E,Childrens and Education Services
GUILDFORD BOROUGH COUNCIL,Vehicle Maintenance,984320,Partsplusuk,27/10/2022,30084923,1765.4,0,Repair And Maintenance Of Vehicles,Third Party Supplier,Invoice,BACS,No,05/10/2022 00:00,2022,7,20924976,K5551,Fleet Workshops,C1002,Repair And Maintenance Of Vehicles,W3A48,Current Service Costs - Fleet Management,W3A,Current Service Costs adjustment,W3,Current Service Costs,W,Other Operating Income and Expenditure
GUILDFORD BOROUGH COUNCIL,Climate Change,105080,APSE,27/10/2022,30081325,2600,0,Consultancy,Trade Associations And Regulatory Bodies,Invoice,CHAPS,No,06/09/2022 00:00,2022,7,2223/1275,B3911,Climate Change Strategy,D6001,Consultancy,CEZ00,Climate Change Costs,CEZ,Climate Change Costs,CE,Environmental & Regulatory Services,C,"Cultural, Environmental & Planning Services"
GUILDFORD BOROUGH COUNCIL,Development Control,1000795,Planit Consulting Limited,27/10/2022,30085588,9024,0,Consultancy,,Invoice,CHAPS,No,24/10/2022 00:00,2022,7,I000718,D5100,Development Control - Fee Earn,D6001,Consultancy,CPC00,Development Control Advice,CPC,Development Control,CP,Planning and Development Services,C,"Cultural, Environmental & Planning Services"
GUILDFORD BOROUGH COUNCIL,Property,1000081,Openreach Ltd,01/11/2022,30085574,688.4,0,Consultants Fees,,Invoice,BACS,No,24/10/2022 00:00,2022,7,A231067,P74040,Slyfield Area Regeneration Project,1221,Consultants Fees,XXX99,*** UNASSIGNED ***,WCC,CEC Recharges,WC,CEC Recharges,A,Central Services
GUILDFORD BOROUGH COUNCIL,Building Maintenance,1000451,AMG Electrical Ltd,01/11/2022,30085890,2172.45,0,Services,,Invoice,BACS,No,24/10/2022 00:00,2022,7,S/10/22,K1515,Building Maintenance,D6004,Services,DBX45,Property Services,DBX,Support Service and Management Costs,DB,Children's Social Care,E,Childrens and Education Services
GUILDFORD BOROUGH COUNCIL,Renovations,1000554,Seville Developments,01/11/2022,30085814,356.42,0,Contractor Payments,,Invoice,BACS,No,12/09/2022 00:00,2022,7,5990,N40287,Electrical testing and smoke detectors,1233,Contractor Payments,,,,,,,,
GUILDFORD BOROUGH COUNCIL,Renovations,1000554,Seville Developments,01/11/2022,30085814,476.68,0,Contractor Payments,,Invoice,BACS,No,12/09/2022 00:00,2022,7,5990,N40287,Electrical testing and smoke detectors,1233,Contractor Payments,,,,,,,,
GUILDFORD BOROUGH COUNCIL,Renovations,1000554,Seville Developments,01/11/2022,30085814,1040.8,0,Contractor Payments,,Invoice,BACS,No,12/09/2022 00:00,2022,7,5990,N40287,Electrical testing and smoke detectors,1233,Contractor Payments,,,,,,,,
GUILDFORD BOROUGH COUNCIL,Renovations,1000554,Seville Developments,01/11/2022,30085814,1265.93,0,Contractor Payments,,Invoice,BACS,No,12/09/2022 00:00,2022,7,5990,N40287,Electrical testing and smoke detectors,1233,Contractor Payments,,,,,,,,
GUILDFORD BOROUGH COUNCIL,Renovations,1000554,Seville Developments,01/11/2022,30085814,1519.03,0,Contractor Payments,,Invoice,BACS,No,12/09/2022 00:00,2022,7,5990,N40287,Electrical testing and smoke detectors,1233,Contractor Payments,,,,,,,,
GUILDFORD BOROUGH COUNCIL,Renovations,1000554,Seville Developments,01/11/2022,30085814,1453.47,0,Contractor Payments,,Invoice,BACS,No,12/09/2022 00:00,2022,7,5990,N40287,Electrical testing and smoke detectors,1233,Contractor Payments,,,,,,,,
GUILDFORD BOROUGH COUNCIL,Renovations,1000554,Seville Developments,01/11/2022,30085814,1895.5,0,Contractor Payments,,Invoice,BACS,No,12/09/2022 00:00,2022,7,5990,N40287,Electrical testing and smoke detectors,1233,Contractor Payments,,,,,,,,
GUILDFORD BOROUGH COUNCIL,Renovations,1000554,Seville Developments,01/11/2022,30085814,1904.82,0,Contractor Payments,,Invoice,BACS,No,12/09/2022 00:00,2022,7,5990,N40287,Electrical testing and smoke detectors,1233,Contractor Payments,,,,,,,,
GUILDFORD BOROUGH COUNCIL,Renovations,1000554,Seville Developments,01/11/2022,30085814,898.84,0,Contractor Payments,,Invoice,BACS,No,12/09/2022 00:00,2022,7,5990,N40287,Electrical testing and smoke detectors,1233,Contractor Payments,,,,,,,,
GUILDFORD BOROUGH COUNCIL,Renovations,1000554,Seville Developments,01/11/2022,30085814,1443.59,0,Contractor Payments,,Invoice,BACS,No,12/09/2022 00:00,2022,7,5990,N40287,Electrical testing and smoke detectors,1233,Contractor Payments,,,,,,,,
GUILDFORD BOROUGH COUNCIL,Renovations,1000554,Seville Developments,01/11/2022,30085814,801.85,0,Contractor Payments,,Invoice,BACS,No,12/09/2022 00:00,2022,7,5990,N40287,Electrical testing and smoke detectors,1233,Contractor Payments,,,,,,,,
GUILDFORD BOROUGH COUNCIL,Renovations,1000554,Seville Developments,01/11/2022,30085814,1476.99,0,Contractor Payments,,Invoice,BACS,No,12/09/2022 00:00,2022,7,5990,N40287,Electrical testing and smoke detectors,1233,Contractor Payments,,,,,,,,
GUILDFORD BOROUGH COUNCIL,Renovations,1000554,Seville Developments,01/11/2022,30085814,1775.15,0,Contractor Payments,,Invoice,BACS,No,12/09/2022 00:00,2022,7,5990,N40287,Electrical testing and smoke detectors,1233,Contractor Payments,,,,,,,,
GUILDFORD BOROUGH COUNCIL,Renovations,1000554,Seville Developments,01/11/2022,30085814,1074.85,0,Contractor Payments,,Invoice,BACS,No,12/09/2022 00:00,2022,7,5990,N40287,Electrical testing and smoke detectors,1233,Contractor Payments,,,,,,,,
GUILDFORD BOROUGH COUNCIL,Renovations,1000554,Seville Developments,01/11/2022,30085814,1451.21,0,Contractor Payments,,Invoice,BACS,No,12/09/2022 00:00,2022,7,5990,N40287,Electrical testing and smoke detectors,1233,Contractor Payments,,,,,,,,
GUILDFORD BOROUGH COUNCIL,Renovations,1000554,Seville Developments,01/11/2022,30085814,1018.44,0,Contractor Payments,,Invoice,BACS,No,12/09/2022 00:00,2022,7,5990,N40287,Electrical testing and smoke detectors,1233,Contractor Payments,,,,,,,,
GUILDFORD BOROUGH COUNCIL,Renovations,1000554,Seville Developments,01/11/2022,30085814,1861.74,0,Contractor Payments,,Invoice,BACS,No,12/09/2022 00:00,2022,7,5990,N40287,Electrical testing and smoke detectors,1233,Contractor Payments,,,,,,,,
GUILDFORD BOROUGH COUNCIL,Renovations,1000554,Seville Developments,01/11/2022,30085814,1081.46,0,Contractor Payments,,Invoice,BACS,No,12/09/2022 00:00,2022,7,5990,N40287,Electrical testing and smoke detectors,1233,Contractor Payments,,,,,,,,
GUILDFORD BOROUGH COUNCIL,Renovations,1000554,Seville Developments,01/11/2022,30085814,389.5,0,Contractor Payments,,Invoice,BACS,No,12/09/2022 00:00,2022,7,5990,N40287,Electrical testing and smoke detectors,1233,Contractor Payments,,,,,,,,
GUILDFORD BOROUGH COUNCIL,Renovations,1000554,Seville Developments,01/11/2022,30085814,1006.04,0,Contractor Payments,,Invoice,BACS,No,12/09/2022 00:00,2022,7,5990,N40287,Electrical testing and smoke detectors,1233,Contractor Payments,,,,,,,,
GUILDFORD BOROUGH COUNCIL,Renovations,1000554,Seville Developments,01/11/2022,30085814,883.12,0,Contractor Payments,,Invoice,BACS,No,12/09/2022 00:00,2022,7,5990,N40287,Electrical testing and smoke detectors,1233,Contractor Payments,,,,,,,,
GUILDFORD BOROUGH COUNCIL,Renovations,1000554,Seville Developments,01/11/2022,30085814,543.24,0,Contractor Payments,,Invoice,BACS,No,12/09/2022 00:00,2022,7,5990,N40287,Electrical testing and smoke detectors,1233,Contractor Payments,,,,,,,,
GUILDFORD BOROUGH COUNCIL,Renovations,1000554,Seville Developments,01/11/2022,30085814,1330.54,0,Contractor Payments,,Invoice,BACS,No,12/09/2022 00:00,2022,7,5990,N40287,Electrical testing and smoke detectors,1233,Contractor Payments,,,,,,,,
GUILDFORD BOROUGH COUNCIL,Renovations,1000554,Seville Developments,01/11/2022,30085814,2008.96,0,Contractor Payments,,Invoice,BACS,No,12/09/2022 00:00,2022,7,5990,N40287,Electrical testing and smoke detectors,1233,Contractor Payments,,,,,,,,
GUILDFORD BOROUGH COUNCIL,Renovations,1000554,Seville Developments,01/11/2022,30085814,1061.71,0,Contractor Payments,,Invoice,BACS,No,12/09/2022 00:00,2022,7,5990,N40287,Electrical testing and smoke detectors,1233,Contractor Payments,,,,,,,,
GUILDFORD BOROUGH COUNCIL,Renovations,1000554,Seville Developments,01/11/2022,30085814,1667.94,0,Contractor Payments,,Invoice,BACS,No,12/09/2022 00:00,2022,7,5990,N40287,Electrical testing and smoke detectors,1233,Contractor Payments,,,,,,,,
GUILDFORD BOROUGH COUNCIL,Renovations,1000554,Seville Developments,01/11/2022,30085814,1338.49,0,Contractor Payments,,Invoice,BACS,No,12/09/2022 00:00,2022,7,5990,N40287,Electrical testing and smoke detectors,1233,Contractor Payments,,,,,,,,
GUILDFORD BOROUGH COUNCIL,Renovations,1000554,Seville Developments,01/11/2022,30085814,1114.26,0,Contractor Payments,,Invoice,BACS,No,12/09/2022 00:00,2022,7,5990,N40287,Electrical testing and smoke detectors,1233,Contractor Payments,,,,,,,,
GUILDFORD BOROUGH COUNCIL,Renovations,1000554,Seville Developments,01/11/2022,30085814,782.82,0,Contractor Payments,,Invoice,BACS,No,12/09/2022 00:00,2022,7,5990,N40287,Electrical testing and smoke detectors,1233,Contractor Payments,,,,,,,,
GUILDFORD BOROUGH COUNCIL,Renovations,1000554,Seville Developments,01/11/2022,30085814,1100.71,0,Contractor Payments,,Invoice,BACS,No,12/09/2022 00:00,2022,7,5990,N40287,Electrical testing and smoke detectors,1233,Contractor Payments,,,,,,,,
GUILDFORD BOROUGH COUNCIL,Renovations,1000554,Seville Developments,01/11/2022,30085814,788.73,0,Contractor Payments,,Invoice,BACS,No,12/09/2022 00:00,2022,7,5990,N40287,Electrical testing and smoke detectors,1233,Contractor Payments,,,,,,,,
GUILDFORD BOROUGH COUNCIL,Renovations,1000554,Seville Developments,01/11/2022,30085814,1079.11,0,Contractor Payments,,Invoice,BACS,No,12/09/2022 00:00,2022,7,5990,N40287,Electrical testing and smoke detectors,1233,Contractor Payments,,,,,,,,
GUILDFORD BOROUGH COUNCIL,Renovations,1000554,Seville Developments,01/11/2022,30085814,1154.05,0,Contractor Payments,,Invoice,BACS,No,12/09/2022 00:00,2022,7,5990,N40287,Electrical testing and smoke detectors,1233,Contractor Payments,,,,,,,,
GUILDFORD BOROUGH COUNCIL,Renovations,1000554,Seville Developments,01/11/2022,30085814,1296.63,0,Contractor Payments,,Invoice,BACS,No,12/09/2022 00:00,2022,7,5990,N40287,Electrical testing and smoke detectors,1233,Contractor Payments,,,,,,,,
